{"text_format":"1","workbook":"xlsx","n_sheets":3,"sheets":["MC Sheet","PM Sheet","Summary Sheet"],"not_rendered":{"charts":0,"images":0,"macros":1,"external_links":0,"defined_names":5,"comments":0,"pivot_tables":0},"unopened":[],"bounds":{"document_bytes":16777216,"sheet_cells":100000,"rows_first":2000,"rows_last":500,"rows_between":2000,"halvings":0,"cell_chars":16384,"cell_head_chars":4096},"cells_cut":0,"cells_raw":0,"read":"whole","date_system":"1900"}

{"sheet":"MC Sheet","index":0,"n_rows":71,"n_cols":16,"rows_kept":71,"cut":false,"hidden":false,"merged":[[49,7,54,7],[57,0,66,7],[19,7,24,7],[25,7,28,7],[29,7,33,7],[34,7,42,7],[43,7,45,7],[46,7,48,7],[56,0,56,1],[49,0,53,0],[49,1,53,1],[49,5,54,5],[49,6,54,6],[54,0,54,4],[46,0,47,0],[46,1,47,1],[0,0,0,7],[1,0,1,7],[3,0,3,7],[6,7,9,7],[10,7,14,7],[15,7,18,7],[2,3,2,4],[6,6,9,6],[14,0,14,4],[10,6,14,6],[6,0,8,0],[6,1,8,1],[9,0,9,4],[6,5,9,5],[10,0,13,0],[46,5,48,5],[46,6,48,6],[48,0,48,4],[43,0,44,0],[43,1,44,1],[43,5,45,5],[43,6,45,6],[45,0,45,4],[34,5,42,5],[34,6,42,6],[37,3,39,4],[42,0,42,4],[34,0,41,0],[34,1,41,1],[29,6,33,6],[10,5,14,5],[19,5,24,5],[25,5,28,5],[25,6,28,6],[15,6,18,6],[19,6,24,6],[33,0,33,4],[28,0,28,4],[25,0,27,0],[15,5,18,5],[10,1,13,1],[24,0,24,4],[29,0,32,0],[29,1,32,1],[29,5,33,5],[25,1,27,1],[19,0,23,0],[19,1,23,1],[18,0,18,4],[15,0,17,0],[15,1,17,1]]}
["lj/u~h pk dxfgu/kflnsfsf] sfof{no , ",null,null,null,null,null,null,null,null,null,null,{"$f":"OR(ISBLANK(A1),ISBLANK(B3),ISBLANK(A4))","v":false},null,null,null,"dfkg tflnsf cg';f/ lrGx nufpg cu|]hL ;fgf] cIf/ P 6fOk ug'{xf];\\ ."]
["gu/kflnsfsf] cf=j= @)&).&! sf] Go\"gtd\\ zt{ dfkgsf] d\"Nof+sg glthf tflnsf",null,null,null,null,null,null,null,null,null,null,null,null,null,null,"Pp6} cj:yfdf 5 / 5}g b'j}df lrGx nfUof], Pp6f x6fpg' xf];\\ ."]
[";d\"x  M","@*","gu/kflnsf sf]8 M","",null,null,null,null,null,null,null,"",null,null,null,""]
[""]
[]
[";\"rs","g+","ljZn]if0f tflnsf",5,"5}g","Go\"gtd\\ zt{ k'/f","JofVof / k'i6\\ofO{  ",">f]tx? ",null,null,null,";a} 5 ",";a} 5}g ",5,"5}g","5 . 5}gsf] ldl>t"]
["jflif{s sfo{qmd tyf ah]6 :jLs[lt ",1,"rfn' cf=j=sf] ah]6 tyf sfo{qmd ut cf j sf] kf}if d;fGtleq} gu/ kl/ifb\\n] :jLs[t u/]sf] ","a",null,{"$f":"IF(G7=\"\",P3,(IF(P7=2,P2,IF(P8=2,P2,IF(P9=2,P2,(IF(L7=3,\"ePsf]\",IF(M7>=1,\"gePsf]\",P1))))))))","v":"ePsf]"},"cf=j= )&!÷)&@ sf] aflif{s sfo{qmd tyf ah]6 kfl/t u/]sf] gu/ kl/ifbsf] a}7s lg0f{o ldlt M @)&)÷(÷@( .\njL/u+h pk–dxfgu/kflnsfsf] ldlt @)&).)(.@( gu/kl/ifb a}7s lg0f{o cg';f/ cf=j= )&!÷)&@ sf] cg'dflgt s'n ah]6 /sd ?= ($,&*,&!)))÷ To; dWo] ;fwf/0f vr{ ?= (,$^,&!,)))÷– sfo{qmd vr{\n?= !#,*^,^#,%))÷– k\"Fhut vr{ ah]6 ?= &!,$%,#^,%))÷– kfO{Psf] 5 . cfof]hgfut af8kmf8 u/]sf] ah]6 /sd ?= &!,$%,)^,%))÷–df P=l8=la=sf] ;xof]udf ;+rflnt  demf}nf zx/ Plss[t zx/L jftfj/0fLo ;'wf/ cfof]hgfsf] nfut ?= $!,^#,#^,%))÷– tyf l86l8Pkmsf] C0f ;xof]udf lgdf{0f x'g] a; 6ld{gn/sf] nfut ?= !$,@@,%%,))) tyf ;8s af]8{af6 ;+rfng x'g] ;8s ;'wf/ sfo{qmd Dorl/Ë km08sf] /sd, ;zt{ cg'bfgsf of]hgf, s[lif ;8s ;d]tsf] ah]6 / gu/kflnsfaf6 ;+rfng x'g] ef}lts k\"jf{wf/sf cfof]hgfsf] nfut vr{ ;d]t ;dfj]z ePsf] . o; kl/ifbsf] s'n s'n ah]6 ljlgof]hg ubf{ rfn' vr{ tyf k'FhLut vr{dfq pNn]v gu/L sfo{qmd vr{ eGg] 5'6\\6} lzif{s ;d]t sfo{qmd ul/Psf] / ;f]xL cg';f/ of]hgf tyf sfo{qmd agfO{Psf] 5 . \ncfof]hgf ;+Vof M @)# - g=kf=af6 ;+rfng x'g] @)!, l86l8Pkm km08af6 !, Pl8ljsf] ;xof]udf ;+rfng x'g] ! ;d]t _\nsfo{qmdut ?kdf af8kmf8 u/]sf] ah]6 /sd M !#,*^,^#,%))÷–\nsfo{qmd ;+Vof ^ -ljleGg of]hgf ;dfj]z_\n:jLs[t sfo{qmd ah]6 ljj/0f dGqfnodf k7fPsf] ldlt M @)&)÷!)÷!) r=g+= &@$! dfWod x'nfs \n:jLs[t ah]6 thf sfo{qmd lh=lj=;= k;f{df k7fPsf] ldlt M @)&)÷!)÷!) r=g+= &@$@ dfWod a'emfPsf] ekf{O\ncg'dflgt cfo M ($,&*,&!,)))÷–\ncfo>f]t M cfGtl/s cfo ?=@*,&(,^@,)))÷–\ncg'bfg M ?= @!,*%,)(,)))÷–\n/fhZj afF8 kmfF8 ?= @,)),)),)))÷– \nC0f tyf ;fk6L ?= $),)),)),)))÷– cGo cg'bfg M !),)),)))).– \n;fdflhs ;'/Iff eQf ?= @,)$,)),)))÷–\ncf=j= )&!÷)&@ sf] ah]6 /sd cfa08fdf /fv]sf] kfO{Pg .\npk/f]St cfwf/df g+= ! ;\"rs k'/f ePsf] 5 .","gu/kl/ifbsf]  lg0fo{ /  lh=la=; / dGqfnodf k7fPsf] kq ",null,null,null,{"$f":"COUNTIF(D7:D9,\"a\")","v":3},{"$f":"COUNTIF(E7:E9,\"a\")","v":0},{"$f":"COUNTIF(D7,\"a\")","v":1},0,{"$f":"N7+O7","v":1}]
[null,null,";a} ah]6 sfo{qmdut jf cfof]hgfut ?kdf afF8kmfF8 u/L :jLs[t ePsf]","a",null,null,null,null,null,null,null,null,null,1,0,{"$f":"N8+O8","v":1}]
[null,null,":jLs[t sfo{qmd / ah]6 ljj/0f kfl/t ePsf] ldltn] Ps dlxgf leq dGqfno / lhlj;df k7fPsf] ","a",null,null,null,null,null,null,null,null,null,1,0,{"$f":"N9+O9","v":1}]
["dfkg tflnsfsf] ;j} sf]7fsf] æ5Ædf -a _ lrGx nfu]df of] zt{ k\"/f x'g] ."]
["jflif{s k|ult ;dLIff ",2,"Jfflif{s k|ult ;dLIffsf nflu ;a} ;/f]sf/jfnfx? -/fhgLlts bn ;~rf/sdL{, gful/s ;dfhsf k|ltlglwx? nufot _ nfO{ cfdGq0f u/]sf] ","a",null,{"$f":"IF(G11=\"\",P3,(IF(P11=2,P2,IF(P12=2,P2,IF(P13=2,P2,(IF(P14=2,P2,(IF(L11=4,\"ePsf]\",IF(M11>=1,\"gePsf]\",P1))))))))))","v":"ePsf]"},"jL/u+h pk–dxfgu/kflnsfsf] r=g+= #!^@ ldlt @)&)÷^÷^ sf] kqaf6 / :yfgLo klqsf k|tLs b}lgs nufot :yfgLo klqsfaf6 aflif{s k|ult ;ldIffsf] nfuL ;/f]sf/jfnfnfO{ cfdGq0f ul/Psf] 5 .\ncfdGq0f ul/Psf ;/f]sf/jfnfx? M /fhgLlts bn !&, ;+rf/qmdL{, gful/s ;dfhsf k|ltlglw, lhNnf l:yt ;/sf/L sfof{nosf k|d'v / k|ltlglwx?, u}x« ;/sf/L ;+3 ;+:yfsf k|ltlglwx?,  \nk|ult ;ldIff u/]sf] ldlt M @)&)÷^÷!!\nk|ult ;ldIfdf pkl:yt ;+Vof M #(, k|ult ;ldIff a}7ssf k|d'v lg0f{ox? M\n!= jL=p=d=gkf=sf] cf=j= )^(÷)&) sf] cfDbfgL vr{sf] ljj/0f k|:t't eO{ 5nkmn u/L cfufdL jif{ cem k|efj/sfL 9+un] sfo{qmd ;+rfng ug]{ .\n@= kmf]xf]/d}nf Joj:yfkgdf k|efjsfl/tf Nofpg] .\n#= lgdf{0flwg cfof]hgf ;dod} ;DkGg ug{ Wofg lbg] eGg] ;d]t lg0f{o ;+Vof M%\n;ldIffsf] lgisif{ ;fj{hlgs u/]sf] ldlt M @)&)÷^÷!@\ndfWod M ldlt @)&)÷^÷!@ df :yfgLo klqsf c+s'z dfkm{t of]hgf zfvfsf] r=g+= !*÷)&)÷)&! cg';f/ ;\"rgfkf6Ldf 6fF;]sf] d'r'Nsf . @)&)÷^÷@) ut] j]j;fO{6 dfkm{t ;fj{hlgs ul/Psf] . -j]j;fO{6df cknf]8 u/]sf] ldlt M @)&)÷^÷@)_\n;ldIff k|ltj]bg M jL/u+h pk–dxfgu/kflnsfsf] r=g+= #*!@ ldlt @)&)÷^÷@) sf] kq ;fy ;+3Lo dfldnf tyf :yfgLo ljsf; dGqfnodf sd{rf/L x:t] k7fO{Psf] b]lvPsf] . \npk/f]Qm cfwf/df g+= @ ;\"rs k'/f ePsf] 5 . \n\n",";ldIff a}7slg0f{o  k'l:tsf k7fPsf]  lr7L kq k|sflzt klqsf",null,null,null,{"$f":"COUNTIF(D11:D14,\"a\")","v":4},{"$f":"COUNTIF(E11:E14,\"a\")","v":0},{"$f":"COUNTIF(D11,\"a\")","v":1},{"$f":"COUNTIF(E11,\"a\")","v":0},{"$f":"N11+O11","v":1}]
[null,null,"ut cf=j= eGbf cl3Nnf] cf=j=df ;DkGg sfo{qmdsf] jflif{s k|ult  ;dLIff  ut cf= j= sf] k|yd rf}dfl;s cjlw leq ;DkGg u/]sf] ","a",null,null,null,null,null,null,null,null,null,{"$f":"COUNTIF(D12,\"a\")","v":1},{"$f":"COUNTIF(E12,\"a\")","v":0},{"$f":"N12+O12","v":1}]
[null,null,"k|ult ;dLIffsf] k|ltj]bg ;dLIff ePsf] ldltn] Ps dlxgf leq  dGqfnodf k7fPsf] ","a",null,null,null,null,null,null,null,null,null,{"$f":"COUNTIF(D13,\"a\")","v":1},{"$f":"COUNTIF(E13,\"a\")","v":0},1]
[null,null,";dLIffsf] lgisif{ ;dLIff ;DkGg ePsf] ldltn] kGw| lbg leq ;\"rgf kf6L / j]e ;fO6 jf :yfgLo /]l8of] jf klqsf dfkm{t ;fj{hlgs u/]sf] ","a",null,null,null,null,null,null,null,null,null,1,0,1]
["dfkg tflnsf sf] ;a} sf]7fsf] æ5Ædf -a _ lrGx nfu]df of] zt{ k\"/f  x'g] ."]
["rf}dfl;s tyf jflif{s k|ult k|ltj]bg",3,"k|yd rf}dfl;s k|ult k|ltj]bg ut cf=j=sf] dfu{ ;ft ut] leq k7fPsf]","a",null,{"$f":"IF(G16=\"\",P3,IF(P16=2,P2,IF(P17=2,P2,(IF(P18=2,P2,IF(L16=3,\"ePsf]\",IF(M16>=1,\"gePsf]\",P1)))))))","v":"ePsf]"},"jL/u+h pk–dxfgu/kflnsfsf] k|yd rf}dfl;s k|ult k|ltj]bg k7fPsf] ldlt @)&)÷*÷& r=g+= $$(!\njL/u+h pk–dxfgu/kflnsfsf] cf=j= )&)÷)&! sf] bf]>f] rf}dfl;s k|ltj]bg k7fPsf] ldlt @)&)÷!@÷% r=g+= *(*) \njL/u+h pk–dxfgu/kflnsfsf] t]>f] rf}dfl;s k|ult k|ltj]bg k7fPsf] ldlt @)&!÷$÷!! r=g+= )% -of]hgf zfvf_\njL/u+h pk–dxfgu/kflnsfsf] aflif{s k|ult k|ltj]bg k7fPsf] ldlt @)&!÷$÷!! r=g+= )% -of]hgf zfvf_\nk|ult k|ltj]bg k7fPsf] dfWod M pk/f]Qm rf}dfl;s k|ult k|ltj]bgx? x'nfs Pj+ sd{rf/L dfkm{t\\ k7fO{Psf] b]lvPsf] . \nWBRS df k7fpg] gul/Psf]\npk/f]Qm cfwf/df g+= # ;\"rssf] zt{ k'/f ePsf] 5 . ","q}dfl;s tyf aflif{s ef}lts k|ult laj/0f",null,null,null,{"$f":"COUNTIF(D16:D18,\"a\")","v":3},{"$f":"COUNTIF(E16:E18,\"a\")","v":0},1,0,1]
[null,null,"bf];|f] rf}dfl;s k|ult k|ltj]bg ut cf=j= sf] r}q ;ft ut]leq k7fPsf]","a",null,null,null,null,null,null,null,null,null,1,0,1]
[null,null,"t]>f] rf}dfl;s tyf jflif{s k|ult k|ltj]bg rfn' cf=j= sf] >fj0f kGw| ut] leq k7fPsf]","a",null,null,null,null,null,null,null,null,null,1,0,1]
["dfkg tflnsfsf] ;j} sf]7fsf] æ5Ædf -a_ lrGx nfu]df of] zt{ k\"/f x'g]  ."]
["gu/kflnsf sf]ifsf] vftf ;~rfng",4,"gu/kflnsf s]fif vftf ;~rfng ePsf] . ","a",null,{"$f":"IF(G20=\"\",P3,(IF(P20=2,P2,IF(P21=2,P2,IF(P22=2,P2,IF(P23=2,P2,(IF(P24=2,P2,IF(L20=5,\"ePsf]\",IF(M20>=1,\"gePsf]\",P1))))))))))","v":"ePsf]"},"gu/kflnsfsf] gfddf kfKt ;a} k|sf/sf cfDbfgL /sd g=kf sf]if - u=–$_ u}x« sfo{ ;+rfng vftfdf cfDbfgL afw]sf] 5 . \nu}x« sfo{ ;+rfng - u=–$_ vftf /x]sf] a}+s g]=/f= a}+s, jL/u+h . Vftf g+= !&)$&)@))!)$&%@$ \nsfo{ ;+rfng vftfx? !&)$&)@))!)@!%@$ -rfn'_ !&)$&)@))!!@@%@$ -k\"FhLut_ !&)$&)@))!)@@%@$ -k'hLut dd{t ;+ef/ vftf_\nvftf /x]sf] a+s g]=/f= a}+s, jL/u+h .\ncf=j= )&)÷)&! sf] cGtdf u}x« sfo{ ;+rfng vftfdf afFsL /sd ?= !#&))(#^.&*\nsfo{ ;+rfng vftfdf /sd afFsL 5}g . lk|mh u/]sf] /sd 5}g . \ncf=j= sf] cGtdf sfo{ ;+rfng vftfdf /x]sf] /sd  lg0f{o cg';f/ u=$ vftfdf\n:yfgfGt/0f ePsf] 5 . sf]lnlgsfnfnfO{ lkmtf{ ePsf] /sd 5}g . \nsfo{ ;+rfng vftfdf /sd :yfgfGt/0f ug]{ k|lqmof – gu/kflnsfsf] gfdf k|fKt x'g] ;a} k|sf/sf cfDbfgL :yfgLo :jfoQ zf;g P]g @)%% sf] bkmf !@% adf]lhd gu/kflnsf sf]if u}/ sfo{ ;+rfng vftfdf hDdf eO{ :jLs[t ah]6 / sfo{qmdsf cfwf/df cfjZostf cg';f/ sfo{ ;+rfng vftfdf - rfn' tyf kFhLut vr{ vftf_ :yfgfGt/0f u/L vr{ n]Vg' kg]{ / vr{ eO{ afFsL /sd cf=j= sf] cGtddf u=–$ vftfdf lkmtf{ ug'{ kg]{ sfg'gL Joj:yf eP adf]lhd jL/u+h pk–dxfgu/kflnsfn] pk/f]Qmfg';f/ k|lqmof k'/f u/L ;j{k|yd ;a} k|fKt /sd u=–$ u}x« ;+rfng vftfdf hdf u/L lg0f{o tyf ah]6 sfo{qmd cg';f/ u=–@ vftfdf :yfgfGt/0f u/L sfo{ ;DkGg kZrft cf=j= sf] cGtdf afFsL /x]sf] /sd pQm u–$ vftfdf k'gM 6«fG;km/ u/L sfo{ ;+rfng vftf z'Go u/]sf] b]lvof] . /sd lk|mh ug'{ ug]{ cj:yf b]lvPg . pQm u}/ sfo{ ;+rfng vftfaf6 l;w} e'QmfgL lbPsf] 5}g . pk/f]Qm cfwf/df g+=$ ;'rssf] ;t{ k'/f ePsf] 5 . \n\n","gu/kflnsfsf] sf]if tyf sfo{;+rfng vftfx?",null,null,null,{"$f":"COUNTIF(D20:D24,\"a\")","v":5},{"$f":"COUNTIF(E20:E24,\"a\")","v":0},1,0,1]
[null,null,"gu/kflnsfsf] gfddf k|fKt ;j} k|sf/sf cfDbfgL /sd g=kf= sf]if - u $ _ df cfDbfgL afw]sf]   ","a",null,null,null,null,null,null,null,null,null,1,0,1]
[null,null,":jLs[t ah]6 / sfo{qmdsf cfwf/df sfo{;~rfng vftfdf :yfgfGt/0f u/]sf]","a",null,null,null,null,null,null,null,null,null,1,0,1]
[null,null,"sfo{;~rfng vftfdf /x]sf] /sddWo] cf=j= sf] cGTodf jFfsL x'g cfPsf] /sd g= kf= sf]ifdf hDdf u/]sf]","a",null,null,null,null,null,null,null,null,null,1,0,1]
[null,null,"cf=j= sf] cGTodf lk|mh ug'{kg]{ ;a} /sd lk|mh u/]sf] ","a",null,null,null,null,null,null,null,null,null,1,0,1]
["Gf]f6 M lk|mh x'g] /sd eGgfn] g]kfn ;/sf/af6 lgsf;f ePsf] ;a} lgMzt{, ;zt{, kF\"lhut tyf rfn\" cg'bfg /sdnfO hgfp5 .\ndfkg tflnsfsf] ;j} sf]7fsf] æ5Ædf -a _ lrGx nfu]df of] zt{ k\"/f x'g] ."]
["s/ tyf cfo;|f]tsf] clen]v   ",5,"dfnkf]tsf] cBfjlws clen]v Jojl:yt ul//fv]sf] ","a",null,{"$f":"IF(G26=\"\",P3,(IF(P26=2,P2,IF(P27=2,P2,IF(P28=2,P2,IF(L26=3,\"ePsf]\",IF(M26>=1,\"gePsf]\",P1)))))))","v":"ePsf]"},"cf=j= )&)÷)&! ;Dd 3/ hUuf s/ nfu' ePsf] . Plss[t ;DklQ s/ @)&!÷)&@ b]lv dfq nfu' ePsf] . \ndfnkf]tsf] clen]v Jojl:yt u/L /fv]sf] . s/ bftf ;+Vof M &$!)#\n;+slnt /sd ?= @%$@&%^.$^, pi7\\g afFsL /sd ?= $%&@$#.$$\n3/ hUuf s/sf] clen]v /fv]sf] 5 . s/ bftf ;+Vof !%)*! ;=slnt /sd \n?= #!#^@#%%.*^, pi7\\g afFsL /sd ?= !*^#&^$$.!$\nJoj;flos s/sf] clen]v /fv]sf] 5 . s/ bftf ;+Vof $%!&, ;+slnt /sd \n?= %@*!!&&, p7\\g afFsL ?= $&!**@#. pk/f]Qm cfwf/df g+=% ;'rssf] ;t{ k'/f ePsf] 5 . ","s/ tyf  cfo>f]tsf  clen]vx?",null,null,null,{"$f":"COUNTIF(D26:D28,\"a\")","v":3},{"$f":"COUNTIF(E26:E28,\"a\")","v":0},1,0,1]
[null,null,"3/ hUuf s/\njf PsLs[t ;DklQ s/sf] cBfjlws clen]v Jojl:yt ul//fv]sf] ","a",null,null,null,null,null,null,null,null,null,1,0,1]
[null,null,"Joj;fo s/sf] cBfjlws clen]v Jojl:yt ul//fv]sf] ","a",null,null,null,null,null,null,null,null,null,1,0,1]
["dfkg tflnsfsf] ;a} sf]7fsf] æ5Ædf -a _ lrGx nfu]df of] zt{ k\"/f x'g] . t/ Plss[t ;DklQ s/ nfu\" ePsf gu/kflnsfsf] xsdf bf];|f] / t];|f] sf]7fsf] æ5Æ df  -a _ lrGx nfu]df of] zt{ k\"/f x'g] ."]
["n]vfk/LIf0f tyf a]?h' km5\\of}{6 ",6,"ut cf=j= eGbf cl3Nnf] cf=j=sf] clGtd n]vfk/LIf0f ut cf j leq ;DkGg u/]sf] ","a",null,{"$f":"IF(G30=\"\",P3,(IF(P30=2,P2,IF(P31=2,P2,IF(P32=2,P2,IF(P33=2,P2,IF(L30=4,\"ePsf]\",IF(M30>=1,\"gePsf]\",P1))))))))","v":"ePsf]"},"ut cf=j= eGbf cl3Nnf] cf=j= )^(÷)&) sf] n]=k= ut cf=j= leq ;DkGg ePsf] 5 .\nn]vfkl/If0f ug]{ sDkgL rf6{8 PsfpG6]G6 ;'af]w P;f]l;P6\\;, sf7df08f}+ .\nn]vfkl/If0f k|ltj]bg k|fKt ldlt M @)&!÷#÷% b=g+= !*((^ \nn]=k= k|ltj]bg k|:t't ePsf] gu/ ljz]if kl/ifbsf] a}7s ldlt M @)&!÷#÷@^\nn]=k k|ltj]bg k]z ePsf] cf=j= @)^(÷)&) \nn]=k= k|ltj]bg pk/ kl/ifbaf6 b]xfo cg';f/ lg0f{o eof] M\n!= gu/ kl/ifbsf] lg0f{o g+= @ -ª_ cg';f/ cf=j= )^(÷)&) sf] n]=k= k|ltj]bg cg';f/ c;'n pk/ ug'{ kg]{ a]?h'x? s8fO{sf ;fy c;'n pk/ ug{ sfof{nonfO{ lgb]{zg lbg] lg0f{o . \na]?h'sf] cWofjlws clen]v :yfgLo lgsfo cf=k+| lgodfjnL @)^$ sf] lgod ^) sf] pk lgod ! sf] v08 -sif_ ;+u ;DalGwt cg';\"rL &% adf]lhdsf] 9frfdf /flvPsf] \n5 . \nk]ZsL tyf a]h'? km5{of}6 ;DaGwL kqfrf/ tyf t/ tfs]tf u/L sf/jfxL tyf c;'n km5{of}6 ul/Psf] 5 . h; cg';f/ km5{of}6 ePsf] k]ZsL a]?h' $%%%()^&.#^\ncGo a]?h' ?= !@*^).\nkm5}of}6 x'g afFsL s'n a]?h' /sd ?= *@(%!**!.!&  pk/f]Qm cfwf/df g+=^ ;'rssf] ;t{ k'/f ePsf] 5 . \n","k]ZsL tyf  a]?h' laj/0f",null,null,null,{"$f":"COUNTIF(D30:D33,\"a\")","v":4},{"$f":"COUNTIF(E30:E33,\"a\")","v":0},1,0,1]
[null,null,"n]vfk/LIf0f k|ltj]bg pk/ gu/ kl/ifb\\\\df 5nkmn eO lg0f{o ePsf]  ","a",null,null,null,null,null,null,null,null,null,1,0,1]
[null,null,"ut cf=j= eGbf cl3Nnf] cf= j= ;Ddsf] j]?h'sf] cBfjlws clen]v cfly{s kzf;g lgodfjnL sf] cg';\"rL &% sf] 9fFrfdf /fv]sf] ","a",null,null,null,null,null,null,null,null,null,1,0,1]
[null,null,"k]ZsL tyf a]?h' km5\\of}{6 ;DaGwL sf/jfxL u/]sf] ","a",null,null,null,null,null,null,null,null,null,1,0,1]
["gf]6 M gu/kl/ifb\\ ;DkGg x'Fbfsf] cj:yfdf ut cf=j=eGbf cl3Nnf] cf=j= sf] n]vfk/LIf0f k|ltj]bg k|fKt eO g;s]sf] eP ;f]eGbf cl3Nnf] cf=j= sf] n]vfk/LIf0f k|ltj]bg / ;f] k|ltj]bg k|:t't eO;s]sf] eP ;f] k|ltj]bgn] pNn]v u/]sf a]?h' tyf a]?h' km5\\of}{6 ;DjGwdf ePsf k|ult pk/ 5nkmn u/L lg0f{o ePsf] x'g'kg]{5 . \ndfkg tflnsfsf] ;a} sf]7fsf] æ5Ædf -a _ lrGx nfu]df of] zt{ k\"/f x'g] . "]
[";DklQ Joj:yfkg",7,"ut cf=j= ;Dd cfkm\\gf] xs ef]udf /x]sf] vr{ eP/ hfg] / vKg] ;fdfgsf] 5'6\\6f5'6\\6} lhG;L lstfadf cfDbfgL afFwL /fv]sf] ","a",null,{"$f":"IF(G35=\"\",P3,(IF(P35=2,P2,IF(P36=2,P2,IF(P37=2,P2,IF(P41=2,P2,IF(P42=2,P2,IF(L35=5,\"ePsf]\",IF(M35>=1,\"gePsf]\",P1)))))))))","v":"ePsf]"},"jL/u+h pk–dxfgu/kflnsfsf] vKg] ;fdfgsf] cg'?k lhG;L vftf g+= $& cg';f/sf] clen]v b'?:t /x]sf] kfOof]\njL/u+h pk–dxfgu/kflnsfsf] vr{ eP/ hfg] ;fdfgsf] dn]km  vftf g+= %@ cg';f/ b'?:t /x]sf] kfO{of] .\ncf=j=)^(.&) sf]  lhG;L lgl/If0f  ul/ @ dlxgf leq k|ltj]bg lbg tf]lsPsf] sd{rf/Lsf] ] gfd lbjfs/0f s[i0f dfgGw/, kqsf] r=g+= !)%^& , @)^(.&) ldlt @)&).!.!& kb M v]ns'b clws[t \n cf=j=)^(.&) lhG;L lgl/If0f u/L k|ltj]bg lbPsf] ldlt M @)&)÷#÷@% sf=k|=tf]s cfb]z ldlt @)&).%.!^ b=g+= @#(^\nlhG;L lgl/If0f k|ltj]bgdf lgDg s'/fx? pNn]v ePsf] kfO{of] M–\nvl/b ePsf ;a} ;fdfgsf] cfDbfgL aflwPsf] sf/0f cfDbfgL gaflwPsf ;fdfgsf] ljj/0f pNn]v gePsf]\ndfn;fdfg ;+/If0f / ;Def/ Joj:yfsf] pNn]v ePsf] . dd{t ug'{ kg]{ / lnnfd ug'{ kg]{ ;fdfgsf] ljj/0f pNn]v ePsf] . dd{t ;Def/ ug'{ kg]{ ;fdfgsf] ;+Vof M!@*\ndd{t ;Def/ u/]sf ;dfgsf] ;+Vof M @(\ndd{t ;Def/df vr{ ePsf] /sd M ? $,^^,*@).#(\nlnnfd ug'{ kg]{ ;fdfgsf] ;+Vof M %@, \nlhG;L lgl/If0f cf=j= Joltt ePsf] ! jif{ leq Joltt cf=j=sf] lhG;L lgl/If0f ug{ ;lsg] k|fjwfg ePsf] sf/0f cf=j= )^(÷)&) sf] lhG;L ;fdfgsf] lgl/If0f cf=j= )&)÷)&! sf] cGtdf ePsf] / ;f] cf=j=df )^(÷)&) sf] ;fdfg lnnfd ljqmL gePsf] eg] hfgsf/L k|fKt ePsf] . lhG;L lgl/If0fsf] ldlt / k|ltj]bg k|fKt ldlt x]bf{ ;f]xL Joxf]/f b]lvg cfPsf] . lnnfd ljqmL ug'{ kg]{ ;fdfg lnnfd ljqmL gePsf] sf/0f lnnfd ljqmL jfkt /sd k|fKt gePsf] cf=j=)&!.&@sf] ldlt )&!.^.@@df lnnfd ljam|L ug\"{kg{] ;dfgsf] lnnfd k|s[of cuf8L a8fO{;s]sf] kfOPsf]  . cf=j= )&).)&! df lnnfd ljqmL ug'{kg]{ ;fdfg lnnfd ljqmL gePsf] sf/0f lnnfd ljqmL jfktsf] /sd k|fKt gePsf] . \npk/f]Qm cfwf/df g+= & ;\"rssf] zt{ k'/f ePsf] 5 . ","lhG;L  clen]v /  lhG;L  lgl/If0f  k|ltj]g tyf kqx? ",null,null,null,{"$f":"COUNTIF(D35:D42,\"a\")","v":5},{"$f":"COUNTIF(E35:E42,\"a\")","v":0},1,0,1]
[null,null,"ut cf=j=df lhG;L lg/LIf0f u/L k|ltj]bg k]z u/]sf]] ","a",null,null,null,null,null,null,null,null,null,1,0,1]
[null,null,";DkGg lhG;L lg/LIf0f k|ltj]bgdf lgDg s'/fx? pNn]v ePsf] M","a",null,null,null,null,null,null,null,null,null,1,0,1]
[null,null,"s_ lhG;L lstfadf cfDbfgL gaFflwPsf ;fdfgx? eP ;f]sf] ljj/0f   ",null,null,null,null,null,null,null,null,null,null,0,0,0]
[null,null,"v_ dfn;fdfg ;+/If0f / ;Def/ Joj:yfsf] cj:yf pNn]v ",null,null,null,null,null,null,null,null,null,null,0,0,0]
[null,null,"u_ dd{t ug'{kg]{ / lnnfd ug'{kg]{ eP ;f] ;fdfgsf] ljj/0f",null,null,null,null,null,null,null,null,null,null,0,0,0]
[null,null,"k|ltj]bgdf pNn]v ePadf]lhd dd{t ;Def/ jf lnnfd laqmL ug'{kg]{df u/]sf] / cfDbfgL afFWg 5'6 ePsf] ;fdfg eP cfDbfgL afFw]sf] ","a",null,null,null,null,null,null,null,null,null,1,0,1]
[null,null,";/sf/L ÷;fj{hlgs hUUufsf] cBfjlws clen]v Jojl:yt u/L /fv]sf]","a",null,null,null,null,null,null,null,null,null,1,0,1]
["dfkg tflnsfsf] ;a}}} sf]7fsf] æ5Æ df -a _ df lrGx nfu]df of] zt{ k\"/f x'g] ."]
["ejg lgdf{0f tyf gS;f kf; ",8,"ejg lgdf{0f ;DaGwL dfkb08 :jLs[t u/L sfof{Gjogdf NofPsf] ","a",null,{"$f":"IF(G44=\"\",P3,(IF(P44=2,P2,IF(P45=2,P2,IF(L44=2,\"ePsf]\",IF(M44>=1,\"gePsf]\",P1))))))","v":"ePsf]"},"ldlt @)^*.(.@* df a;]sf] !^ cf}+ gu/kl/ifbsf] a}7ssf] lg0f{o g+= ^ n] sfof{nosf] sfdnfO{ k|efjsf/L tj/n] ;~rfng ug{ ejg lgdf{0f ;DaGwL dfkb08 -;+zf]wg ;lxt_ @)^* / ejg lgdf{0f tyf gS;fkf; sfo{ljlw @)^* -;+zf]wg ;lxt_ ;+zf]wg u/L sfof{Gjogdf NofPsf] . h; cg';f/ ejg lgdf{0f cg'dltsf nflu :6Sr/n l8hfOg ;lxtsf] bvf{:t lng] u/]sf] :jLs[t gS;f / /fli6«o ejg lgdf{0f ;+lxtf cg';f/ eP gePsf] ;DaGwdf :ynut lg/LIf0f u/L k|fljlws k|ltj]bg lng] u/]sf] . clgoldt ug{] pk/ sf/jfxL ug{] Joj:yf ;d]t ePsf] . ","gu/ kl/ifbsf] lg0f{o,  ejg lgdf{0f ;DaGwL dfkb08 tyf sfo{ljlw @)^* .",null,null,null,{"$f":"COUNTIF(D44:D45,\"a\")","v":2},{"$f":"COUNTIF(E44:E45,\"a\")","v":0},1,0,1]
[null,null,"ejg lgdf{0f tyf gS;fkf; ;DaGwL sfo{ljlw :jLs[t u/L sfof{Gjogdf NofPsf]","a",null,null,null,null,null,null,null,null,null,1,0,1]
["dfkg tflnsfsf] ;j} sf]7fsf] æ5Ædf -a _ lrGx nfu]df of] zt{ k\"/f x'g] ."]
["cfo–Joo ljj/0f / /fh:jsf b/x? ;fj{hlgsLs/0f",9,"ut cf= j= sf] cfo Joo ljj/0f rfn' cf=j= sf] >fj0f d;fGtleq ;\"rgf kf6L / j]e ;fO6 jf kqklqsf dfkm{t ;fj{hlgs u/]sf]  ","a",null,{"$f":"IF(G47=\"\",P3,(IF(P47=2,P2,IF(P48=2,P2,IF(L47=2,\"ePsf]\",IF(M47>=1,\"gePsf]\",P1))))))","v":"ePsf]"},"cf=j= )&)÷)&! sf] aflif{s cfo ljj/0f rfn' cf=j= sf] >fj0f d;fGt leq \n;fj{hlgs u/]sf] 5 . ;fj{hlgs u/]sf] ldlt M @)&!÷$÷!) \ndfWod M ;\"rgf kf6L @)&!÷$÷!) df 6fF; u/]sf] \nj]j;fO{6df M @)&!÷$÷!) df /fv]sf] \ncf=j= )&!÷)&@ sf] /fhZj b/sf] ljj/0f @)&)÷(÷#) df ;fj{hlgs u/]sf] 5 . \ndfWod M :yfgLo klqsf-b}lgs c+s'z c+s #!!_, ;\"rgf kf6L{ / j]j;fO{6\n;\"rgf kf6L{df @)&).)(.#) df 6fF; u/]sf] 5 . \nj]j;fO{6df cknf]8 u/]sf]  ldlt @)&).!).)!, ;do %M!&M)@\nj]e;fO6 M www.birgunjsmc.gov.np\npk/f]Qm cfwf/df g+= ( ;'rssf] ;t{ k'/f ePsf] 5 . \n ","cfo Joo laj/0f  tyf  g=kf=sfoff{nosf clen]vx?",null,null,null,{"$f":"COUNTIF(D47:D48,\"a\")","v":2},{"$f":"COUNTIF(E47:E48,\"a\")","v":0},1,0,1]
[null,null,"rfn' cf=j=sf] /fh:jsf b/x?sf] ljj/0f gu/kl/ifb\\\\n] kfl/t u/]sf] Ps dlxgfleq  j]e ;fO6 / kqklqsf dfkm{t ;fj{hlgs u/]sf] ","a",null,null,null,null,null,null,null,null,null,1,0,1]
["dfkg tflnsfsf] ;j} sf]7fsf] æ5Ædf -a _ lrGx nfu]df of] zt{ k\"/f x'g] ."]
["sd{rf/L Joj:yfkg",10,"P]gsf] bkmf @$( adf]lhdsf] k|lqmof k\"/f u/L kl/ifbaf6 b/aGbL :jLs[t ePsf]  ","a",null,{"$f":"IF(G50=\"\",P3,(IF(P50=2,P2,IF(P51=2,P2,IF(P52=2,P2,IF(P53=2,P2,IF(P54=2,P2,IF(L50=5,\"ePsf]\",IF(M50>=1,\"gePsf]\",P1)))))))))","v":"ePsf]"},"jL/u+h pk–dxfgu/kflnsfsf] ldlt @)&)÷(÷@( df ePsf] !* cf}+ gu/ kl/ifbn]\n cf=j= )&!÷)&@ b]lv nfu' x'g] u/L b/jGbL :jLs[t u/]sf] 5 . b/jGbL :jLs[t ubf{ PN=P;=lh=P=sf] bkmf @$( sf] k|fjwfg k'/f ePsf] 5 . PsfplG6ljln6L Olgl;Pl6e k|f=ln=n] cWoog u/L k]z u/]sf] ;+u7g tyf sfo{ ljj/0f k'g/fjnf]sg l/kf]6{ @)&) kf}if cg';f/ kl/ifbaf6 gu/ kflnsfsf] b/jGbL k'g/fjnf]sg lg0f{o ePsf] 5 . o;df klxn]sf] sd{rf/L b/aGbL ;+Vof &!! nfO{ 36fO{ b/aGbL ^!^ sfod ul/Psf]5 . \nb/jGbL :jLs[t ug]{ a}7ssf] lg0f{o ldlt M @)&)÷(÷@(\nkbk'tL{ ;ldltsf] a}7sdf pkl:yt nf]s;]jf k|ltlglwsf] gfd M zflns /fd bxfn\nkb M clws[t , :jLs[t b/jGbL ;+Vof M ^!^, sfo{/t b/jGbL ;+Vof %%( -%& l/St_\ncf=j= )&)÷)&! df c:yfoL lgo'QmL kfPsf sd{rf/L b]lvPg .\n:jLs[t b/jGbL eGbf al9 sd{rf/L lgo'QmL ePsf] kfOPg . \ncf=j= )&)÷)&! sf] s'n k|zf;lgs vr{ M %,^@,$@,@#%.%&\npQm k|zf;lgs vr{ cfGtl/s >f]taf6 dfq Joxf]/]sf] b]lvG5 . /fhZj af8kmf8 nufot cGo >f]taf6 vr{ ePsf] b]lvPg . \nk|zf;lgs vr{ Joxf]l/Psf] cfGtl/s cfo zLif{sut ?kdf o; k|sf/ 5 |\n!= s/af6 ?= ^,%(,%$,&^!.$^\n@= ;]jf z'Nsaf6 ?= (@,#@,@*).)%\n#= b:t'/af6 ?= !,&@)#)*@.$(\n$= ef8faf6 ?= !!^%)))\n  hDdf    ?= (,#%,%%,!@$. \ns'n cfGtl/s cfosf] k|zf;lgs vr{sf] ^)=!! k|ltzt vr{ ePsf] 5 .\no; cf=j=df jL/u+h pk–dxfgu/kflnsfdf c:yfoL sd{rf/L lgo'QmL gu/]sf] :jLs[t b/jGbL leqsf kbx? %& klg k\"lt{ gu/L l/Qm /fv]sf] t/ ;fnj;fnL sd{rf/L vr{ a9\\b} hfg] / :yfoL sd{rf/L cjsfz lbg gl;sg] cj:yfdf tf]lsPsf] cfo cfGtl/s k|ltztn] g=kf=sf] k|zf;lgs vr{ Joxf]g{ g;lsg] cj:yf ePsf]n] lgodn] tf]s]sf] k|ltzt eGbf a9L vr{ eP tfklg Go\"gtd zt{ k'/f gePsf] eGg g;lsg] \npk/f]Qm cfwf/df Go\"gtd zt{sf] ;\"rs g+= !) sf] zt{ k'/f ePsf] 5 .","g=k= lg0f{o, kbk'lt{ laj/0f  tyf  cGo clen]v",null,null,null,{"$f":"COUNTIF(D50:D54,\"a\")","v":5},{"$f":"COUNTIF(E50:E54,\"a\")","v":0},1,0,1]
[null,null,":jLs[t b/aGbLdf k|zf;lgs vr{sf] l;df ggf3\\g] u/L kbk\"lt{ ;ldltsf] l;kmfl/zdf  lgo'lQm u/]sf] ","a",null,null,null,null,null,null,null,null,null,1,0,1]
[null,null,"nf]s ;]jf cfof]usf] k|ltlglw ;lxtsf] pkl:yltdf kbk\"lt{ ;ldltn] kbk\"lt{ ;DaGwL lg0f{o u/]sf] ","a",null,null,null,null,null,null,null,null,null,1,0,1]
[null,null," :jLs[t :yfoL b/aGbL eGbf al9 sd{rf/L lgo'lQm gu/]sf] ","a",null,null,null,null,null,null,null,null,null,1,0,1]
[null,null," :jLs[t :yfoL b/aGbLdf c:yfoL lgo'lQm gu/]sf]","a",null,null,null,null,null,null,null,null,null,1,0,1]
["dfkg tflnsfsf]] ;a} sf]7fsf] æ5Ædf -a _  lrGx nfu]df of] zt{ k\"/f x'g] ."]
[]
["lgisif{ / ;'emfj M"]
[]
[]
[]
[]
[]
[]
[]
[]
[]
[]
["ljQLo Aoj:yfkg lj1",null,"",null,null,":yfgLo zf;g lj1",""]
["gfd M",null,"",null,null,"gfd M",""]
[";Dks{ g+=",null,"",null,null,";Dks{ g+=",""]
["ldlt M",null,"",null,null,"ldlt M",""]

{"sheet":"PM Sheet","index":1,"n_rows":228,"n_cols":18,"rows_kept":228,"cut":false,"hidden":false,"merged":[[227,1,227,3],[227,5,227,7],[212,9,217,9],[179,9,186,9],[187,9,190,9],[191,9,196,9],[197,9,201,9],[202,9,206,9],[207,9,211,9],[220,4,220,6],[221,4,221,6],[222,4,222,6],[187,7,190,7],[187,8,190,8],[179,8,186,8],[191,1,195,1],[191,2,195,2],[191,3,195,3],[187,1,189,1],[225,1,225,3],[180,6,181,6],[187,2,189,2],[180,5,181,5],[72,9,75,9],[76,9,77,9],[78,9,81,9],[224,1,224,3],[59,9,62,9],[63,9,68,9],[69,9,71,9],[102,1,105,1],[43,9,45,9],[46,9,50,9],[54,9,58,9],[51,0,51,6],[52,0,52,6],[53,0,53,6],[82,9,86,9],[87,9,90,9],[91,9,94,9],[95,9,98,9],[217,1,217,6],[206,1,206,6],[171,0,217,0],[187,3,189,3],[164,1,166,1],[164,2,166,2],[146,9,151,9],[152,9,155,9],[156,9,158,9],[159,9,163,9],[164,9,167,9],[171,9,178,9],[111,9,116,9],[117,9,121,9],[122,9,127,9],[128,9,132,9],[133,9,137,9],[138,9,142,9],[168,0,168,6],[218,0,218,6],[179,3,185,3],[202,7,206,7],[202,8,206,8],[197,1,200,1],[138,3,141,3],[102,0,142,0],[111,1,115,1],[111,2,115,2],[202,2,205,2],[202,3,205,3],[164,3,166,3],[164,7,167,7],[164,8,167,8],[167,1,167,6],[179,1,185,1],[179,2,185,2],[190,1,190,6],[178,1,178,6],[186,1,186,6],[171,2,177,2],[171,3,177,3],[0,0,0,9],[1,0,1,9],[3,0,3,9],[6,9,11,9],[12,9,15,9],[16,9,18,9],[6,2,10,2],[6,3,10,3],[11,1,11,6],[6,7,11,7],[2,5,2,6],[12,1,14,1],[12,2,14,2],[6,1,10,1],[6,0,50,0],[16,7,18,7],[12,3,14,3],[12,7,15,7],[12,8,15,8],[19,9,23,9],[24,9,30,9],[31,9,42,9],[15,1,15,6],[19,3,22,3],[102,9,106,9],[107,9,110,9],[212,1,216,1],[212,2,216,2],[212,3,216,3],[197,2,200,2],[197,3,200,3],[212,7,217,7],[212,8,217,8],[171,8,178,8],[171,1,177,1],[191,7,196,7],[191,8,196,8],[196,1,196,6],[171,7,178,7],[207,1,210,1],[207,2,210,2],[207,3,210,3],[207,7,211,7],[207,8,211,8],[211,1,211,6],[197,8,201,8],[201,1,201,6],[202,1,205,1],[159,8,163,8],[163,1,163,6],[156,1,157,1],[156,2,157,2],[156,3,157,3],[156,7,158,7],[156,8,158,8],[158,1,158,6],[159,1,162,1],[159,2,162,2],[159,3,162,3],[146,8,151,8],[151,1,151,6],[152,7,155,7],[152,8,155,8],[152,1,154,1],[152,2,154,2],[146,1,150,1],[146,2,150,2],[146,3,150,3],[152,3,154,3],[155,1,155,6],[138,8,142,8],[142,1,142,6],[133,1,136,1],[133,2,136,2],[133,3,136,3],[133,7,137,7],[133,8,137,8],[111,7,116,7],[111,8,116,8],[117,7,121,7],[117,8,121,8],[121,1,121,6],[122,1,126,1],[122,2,126,2],[122,3,126,3],[116,1,116,6],[122,7,127,7],[138,1,141,1],[138,2,141,2],[18,1,18,6],[16,1,17,1],[16,2,17,2],[16,3,17,3],[19,7,23,7],[24,1,29,1],[24,2,29,2],[24,7,30,7],[23,1,23,6],[19,1,22,1],[19,2,22,2],[24,3,29,3],[46,8,50,8],[50,1,50,6],[31,1,41,1],[31,2,41,2],[102,2,105,2],[102,3,105,3],[102,7,106,7],[102,8,106,8],[106,1,106,6],[63,1,67,1],[63,2,67,2],[63,3,67,3],[99,0,99,6],[63,8,68,8],[69,3,70,3],[69,7,71,7],[58,1,58,6],[59,1,61,1],[59,2,61,2],[59,3,61,3],[69,8,71,8],[59,7,62,7],[59,8,62,8],[62,1,62,6],[54,7,58,7],[54,8,58,8],[19,8,23,8],[24,8,30,8],[30,1,30,6],[43,1,44,1],[43,2,44,2],[43,3,44,3],[43,7,45,7],[43,8,45,8],[45,1,45,6],[31,8,42,8],[31,7,42,7],[34,5,40,6],[42,1,42,6],[31,3,41,3],[46,1,49,1],[46,2,49,2],[46,3,49,3],[46,7,50,7],[78,8,81,8],[81,1,81,6],[82,1,85,1],[82,2,85,2],[82,3,85,3],[82,7,86,7],[82,8,86,8],[86,1,86,6],[72,7,75,7],[72,8,75,8],[75,1,75,6],[72,1,74,1],[72,2,74,2],[72,3,74,3],[76,7,77,7],[76,8,77,8],[77,1,77,6],[91,8,94,8],[94,1,94,6],[122,8,127,8],[127,1,127,6],[87,1,89,1],[87,2,89,2],[87,3,89,3],[87,7,90,7],[87,8,90,8],[90,1,90,6],[111,3,115,3],[117,3,120,3],[117,2,120,2],[117,1,120,1],[107,7,110,7],[6,8,11,8],[16,8,18,8],[226,1,226,3],[224,5,224,7],[225,5,225,7],[226,5,226,7],[179,7,186,7],[197,7,201,7],[128,1,131,1],[128,2,131,2],[128,3,131,3],[128,7,132,7],[128,8,132,8],[107,8,110,8],[107,1,109,1],[107,2,109,2],[107,3,109,3],[110,1,110,6],[95,8,98,8],[98,1,98,6],[91,1,93,1],[91,2,93,2],[91,3,93,3],[91,7,94,7],[146,0,167,0],[137,1,137,6],[54,0,98,0],[95,1,97,1],[95,2,97,2],[95,3,97,3],[95,7,98,7],[78,1,80,1],[78,2,80,2],[78,3,80,3],[78,7,81,7],[71,1,71,6],[63,7,68,7],[54,1,57,1],[54,2,57,2],[54,3,57,3],[138,7,142,7],[132,1,132,6],[68,1,68,6],[69,1,70,1],[69,2,70,2],[146,7,151,7],[159,7,163,7],[143,0,143,6]]}
[{"$f":"'MC Sheet'!A1","v":"lj/u~h pk dxfgu/kflnsfsf] sfof{no , "},null,null,null,null,null,null,null,null,null,null,null,null,null,null,"dfkg tflnsf cg';f/ lrGx nufpg cu|]hL ;fgf] cIf/ P ^fOk ug'{xf];\\ .","pQm sfo{If]qdf ;kmn ePsf]"]
["gu/kflnsfsf] cf=j= @)&).&! sf] sfo{ ;Dkfbg dfkgsf] d\"Nof+sg glthf tflnsf",null,null,null,null,null,null,null,null,null,null,null,null,null,null,"Pp^} cj:yfdf % / %}g b'j}df lrGx nfUof], Pp^f x^fpg\" xf];\\ .","pQm sfo{If]qdf ;kmn gePsf]"]
[";d\"x  M",{"$f":"'MC Sheet'!B3","v":"@*"},null,null,"gu/kflnsf sf]8 M",{"$f":"'MC Sheet'!D3","v":""},null,null,null,null,null,null,"",null,"",""]
[{"$f":"'MC Sheet'!A4","v":""}]
[]
["sfo{If]q",";\"rssf] ljj/0f","g+=","k\"0ff{Í","ljZn]if0f tflnsf",5,"5}g","k|fKtfÍ",{"$f":"'MC Sheet'!G6","v":"JofVof / k'i6\\ofO{  "},">f]tx?",null,";a} 5 ",";a} 5}g ",5,"5}g","5 . 5}gsf] ldl>t","k\"0ff{Í","s'n hDdf c+s"]
[":yfgLo  zf;g",";xeflutfTds gu/ of]hgf th'{df  ",1,4,";a} j8fx?nfO of]hgf th'{df ;DaGwL dfu{bz{g k7fPsf] .","a",null,{"$f":"IF(I7=\"\",P3,IF(OR(P7=2,P8=2,P9=2,P10=2,P11=2),P2,IF(L7=5,4,IF(L7=4,3,IF(AND(L7=3,N10=1),2,IF(M7>0,0,P1))))))","v":4},";a} j8fdf dfu{ bz{g k7fPsf] ldlt @)&).*.!$ r=g+++=$&&$ . j8f e]nf ;DaGwdf ofqf b}lgs 86sd dfkm{t ldlt @)&).*.@) df ;fj{hlts ;'rgf hf/l ul/sf] kfOof] . lj/u+~h gkfdf /x]sf] j8f e]nf lg0f{o k'l:tsf cg';f/ gu/kflnsf !( j6f j8fdf ldlt @)&).*.@@ df ePsf] j8f e]nfsf] pkl:ylt tyf l;kmfl/z ePsf of]hgf lgDg cg';f/ ePsf] kfOof] .  \nj8f g+=      pkl:ylt          j8f g+=       pkl:ytL  \n!             &(                !!            @!                      \n@             #@                 !@            !*                                    #             *%                !#            @%                                       $            !(                  !$           !(\n%             !)                  !%            !(              \n^             @*                  !^            %$              \n&             @!                  !&            !&              \n*             !$                  !*            @#              \n(             #!                  !(            $#              \n!)            %)             \ncf=j= @)&!.)&@ sf] sfo{s|d tyf ah]6 kfl/t ePsf] gu/ kl/ifbsf] a}7s ldlt @)&!.(.@( :jLs[t cfof]hgf ;+Vof @)#-g=kf=sf @)! tyf l6=l8 Pkm= tyf P-l8=jL=sf !÷! u/L @ ;lxt _j8faf6 l;kmfl/; ePsf of]hgf ;+Vof $*^ dWo] gu/ kl/ifbaf6 @)! of]hgf :jLs[t ePsf 5g . \n:jLs[t aflif{s sfo{s|d ldlt @)&).(.#) hg;[li6 ;d]t :yfgLo klqsf dfkm{t ;fj{hlgs ul/Psf] 5 . ","j8f  e]nf  /  gu/kl/ifb  lg0f{o  k':tLsf  ;dfrf/ kq k|sflzt  ;'rgf",null,{"$f":"COUNTIF(F7:F11,\"a\")","v":5},{"$f":"COUNTIF(G7:G11,\"a\")","v":0},{"$f":"COUNTIF(F7,\"a\")","v":1},0,{"$f":"N7+O7","v":1},{"$f":"D7","v":4},{"$f":"H7","v":4}]
[null,null,null,null,";a} j8fx?df ul/g] j8f e]nf ;DjGwdf :yfgLo /]l8of] jf klqsfaf6 ;\"rgf hf/L u/L hfgsf/L u/fPsf]","a",null,null,null,null,null,null,null,1,0,{"$f":"N8+O8","v":1}]
[null,null,null,null,":yfgLo:t/df lqmoflzn ;+3 ;+:yf ;d]tsf] ;xeflutfdf ;j} j8fdf j8f e]nf u/L ;f] sf] pkl:ylt tyf of]hgf 5gf}6sf] lg0f{osf] dfOGo'6 tof/ u/]sf]","a",null,null,null,null,null,null,null,1,0,{"$f":"N9+O9","v":1}]
[null,null,null,null,"j8f e]nfx? aff6 l;kmfl/z ul/Psf of]hgfx? ;d]t ;dfj]z u/L gu/kl/ifb\\\\af6 jflif{s of]hgf :jLs[t u/]sf]","a",null,null,null,null,null,null,null,1,0,{"$f":"N10+O10","v":1}]
[null,null,null,null,"gu/kl/ifb\\\\af6 :jLs[t jflif{s sfo{qmdsf] ljj/0f :jLs[t ePsf] ldltn] Ps dlxgf leq j]e ;fO6 jf /]l8of] jf klqsfjf6 ;fj{hlgs u/]sf]","a",null,null,null,null,null,null,null,1,0,{"$f":"N11+O11","v":1}]
[null,"dfkg tflnsfsf] ;a} sf]7fsf] æ5Æ df -a _] lrGx nfu]df rf/, s'g} rf/ j6f sf]7fsf] æ5Ædf  -a _] lrGx nfu]df tLg, rf}yf] ;lxt s'g} ltgj6f sf]7fsf] æ5Ædf -a _] lrGx nfu]df b'O / ;f] adf]lhd gePdf z'Go cÍ k|bfg ug{] ."]
[null,"nlIft ;d\"x ljsf; sfo{qmddf ljlgof]hg ",2,2,"ljkGg ju{sf dlxnfx?nfO k|ToIf kmfObf k'Ug] sfo{s|dsf nflu Go\"gtd bz k|ltzt ah]6 ljlgof]hg u/L kl/ifb\\jf6 cfof]hgf÷sfo{qmd ;d]t :jLs[t ePsf]] ","a",null,{"$f":"IF(I13=\"\",P3,IF(OR(P13=2,P14=2,P15=2),P2,IF(L13=3,2,IF(L13=2,1,IF(M13>0,0,P1)))))","v":2},"cfly{s jif{ )&!.&@ sf nflu :jLs[t s'n k\"lhut ah]6  /sd ?= @(,!!,((,%)).)) dWo] lgodfg';f/ s6fpg' kg]{ /sd s6fO{ ltgj6f nlIft ju{sf ;d\"xnfO{ s\"n jflif{s jh]6 ?=@,(&,%),))) 5'6ofO{osf] . dlxnf nlIft  sfo{qmd ;+Vof –#(  sf nflu ljlgof]lht ah]6 ?= *%,)),))).)) -@*=%&Ü_, afnaflnsf nlIft sfo{qmd ;+Vof  $( sf  nflu ?= *%,)),))).)) -@*=%&Ü_ / cfly{s ;fdflhs ?kdf lk5l8Psf ju{sf nflu sfo{qmd ;+Vof – #& sf  nflu ?=!,@&,%),))).)) -$@=*%Ü_ /x]sf]  . s'n k\"lhut ah]6  /sd ?= @(,!!,((,%)).)) dWo] lgodfg';f/ s6fpg' kg]{ Matching Fund,Contengency / cGo /sd ;d]t  s6fO{ ltgj6f nlIft ju{sf ;d\"xnfO{  ?=@,(&,%),))) 5'6ofO{Psf] b]lvG5 . "," )&).&!sf] jh]6 / sfo{qmd ljj/0f  .",null,{"$f":"COUNTIF(F13:F15,\"a\")","v":3},{"$f":"COUNTIF(G13:G15,\"a\")","v":0},{"$f":"COUNTIF(F13,\"a\")","v":1},0,{"$f":"N13+O13","v":1},{"$f":"D13","v":2},{"$f":"H13","v":2}]
[null,null,null,null,"ljkGg ju{sf afnaflnsx?nfO{ k|ToIf kmfObf k'Ug] sfo{s|dsf nflu Go\"gtd bz k|ltzt ah]6 ljlgof]hg u/L kl/ifb\\jf6 cfof]hgf÷sfo{qmd ;d]t :jLs[t ePsf]] ","a",null,null,null,null,null,null,null,1,0,{"$f":"N14+O14","v":1}]
[null,null,null,null,";a} hfthfltsf cfly{s ?kdf ljkGg tyf cfly{s Pjd\\ ;fdflhs ?kdf lk5l8Psf ju{ Pjd\\ If]q tyf g]kfn ;/sf/n] ;\"rgf k|sflzt u/L nlIft ;d\"x egL tf]lsPsf ju{ Pjd\\ ;d'bfon] k|ToIf kmfObf kfpg] sfo{qmd jf cfof]hgfsf nflu Go\"gtd kGw| k|ltzt ljlgof]hg u/L kl/ifb\\jf6 cfof]hgf÷sfo{qmd ;d]t :jLs[t ePsf]]","a",null,null,null,null,null,null,null,1,0,{"$f":"N15+O15","v":1}]
[null,"dfkg tflnsfsf] ;a} sf]7fsf] æ5Ædf -a _] lrGx nfu]df b'O , s'g} b'Oj6f sf]7fsf] æ5Ædf -a _] lrGx nfu]df Ps / cGo cj:yfdf z\"Go cÍ k|bfg ug{] ."]
[null,"nlIft ;d\"x ljsf; sfo{qmddf vr{ ",3,2,"tLgj6} nlIft ;d\"xsf nflu :jLs[t cfof]hgf÷sfo{qmddf ljlgof]lht ah]6sf] c;L k|ltzt jf ;f] eGbf j9L vr{ u/]sf]",null,null,{"$f":"IF(I17=\"\",P3,IF(OR(P17=2,P18=2,P17=P18),P2,IF(AND(L17=1,N17=1),2,IF(AND(L17=1,N18=1),1,IF(M17>=0,0,P1)))))","v":1},"ltgj6} nlIft ;d'xsf nfuL cf=j= )&)÷)&! Sf nfuL ljlgof]lht s'n ah]6 ?= @(&%))))÷–  s'n vr{ /sd ?= @#&(!$(@\n                      ljlgof]lht       vr{                 k|ltzt\ndlxnf nlIft         *%))))))      ^$#!(&$            &%=^&\nafnaflnsf nlIft     *%)))))         %&@%@^@              ^&=#^\ncGo ju{              !@&%))))       !!^#$@%^             (!=@%\n\nljlgof]hgsf] t'ngfdf vr{ k|ltzt &(=(&","aflif{s k|ult k|ltj]bg",null,{"$f":"COUNTIF(F17:F18,\"a\")","v":1},{"$f":"COUNTIF(G17:G18,\"a\")","v":0},{"$f":"COUNTIF(F17,\"a\")","v":0},{"$f":"COUNTIF(G17,\"a\")","v":0},{"$f":"N17+O17","v":0},{"$f":"D17","v":2},{"$f":"H17","v":1}]
[null,null,null,null,"tLgj6} nlIft ;d\"xsf nflu :jLs[t cfof]hgf÷sfo{qmddf ljlgof]lht ah]6sf] ;f7L b]lv c;L k|ltzt ;Dd /sd vr{ u/]sf] ","a",null,null,null,null,null,null,null,{"$f":"COUNTIF(F18,\"a\")","v":1},{"$f":"COUNTIF(G18,\"a\")","v":0},{"$f":"N18+O18","v":1}]
[null,"dfkg tflnsfsf] klxnf] sf]7fsf] æ5Æ df -a_] lrGx nfu]df b'O, bf];|f] sf]7fsf] æ5Æ df -a _] lrGx nfu]df Ps / cGo cj:yfdf z\"Go cÍ k|bfg ug{] . "]
[null,"afn ljsf; tyf ;+/If0f ",4,2,"afn lzIff÷afn ljsf; s]Gb| ;~rfngsf nflu jh]6 ljlgof]hg u/L vr{ u/]sf] ","a",null,{"$f":"IF(I20=\"\",P3,IF(OR(P20=2,P21=2,P22=2,P23=2),P2,IF(L20=4,2,IF(L20=3,1,IF(M20>=1,0,P1)))))","v":1},"afn lzIffsf nfuL vr{ ePsf] /sd ?= !(,$&,%(!.^# afn lzIffsf nflu ;+rflnt sfo{qmd lgDg cg';f/ ePsf] kfOof]\n!_ blnt afnaflnsf lzIff sfo{qmd  -@_ kf7ok':ts tyf ;fdfu|L vl/b -#_ ljBfyL{nfO{ kf]zfs ljt/0f -$_  afnaflnsf ljBfyL{nfO{ kf}li6s cfxf/ ljt/0f\no; jL/u+h g=kf= sfo{fnodf cgfy tyf ckf+u afn aflnsfsf] clen]v /x]sf] gkfO{Psf] . cgfy tyf ckf+u afnaflnsfsf] ;d'xut ljj/0f gePsf] . \nafn>d0f lgjf/0f ;DaGwdf u/]sf sfo{x? lgDg cg';f/ kfO{of]  \n!= afn>d tyf 3/]n' lx+;f ;DaGwL r]tgfd'ns sfo{qmd    @= afn>d lj?4sf] sfo{qmd \n#= 3/]n' afn >d Go\"lgs/0-f sfo{qmd       $= lgs[i6 afn>d lgoGq0f sfo{qmd \nafn>d0f lgjf/0f ;DaGwdf ?= %$$*)) vr{ ePsf] kfO{of] . afn d}qL zf;g kb\\tL cjnDjg ug]{ k|of; ul/Psf] 5 . ;f] ;DaGwdf gu/sf !( j8fdf g} gu/ :t/Lo afn Snj u7g ePsf] 5 . = ","aflif{s ah]6 sfo{qmd k':tLsf ;+rflnt sfo{qmd clen]v",null,{"$f":"COUNTIF(F20:F23,\"a\")","v":3},{"$f":"COUNTIF(G20:G23,\"a\")","v":1},{"$f":"COUNTIF(F20,\"a\")","v":1},0,{"$f":"N20+O20","v":1},{"$f":"D20","v":2},{"$f":"H20","v":1}]
[null,null,null,null,"c;xfo cgfy tyf ckfË afnaflnsfsf] clen]v /fv]sf]",null,"a",null,null,null,null,null,null,0,1,{"$f":"N21+O21","v":1}]
[null,null,null,null,"afn >d lgjf/0f ;DaGwL sfo{x? u/]sf]","a",null,null,null,null,null,null,null,1,0,{"$f":"N22+O22","v":1}]
[null,null,null,null,"afn d}qL :yfgLo zf;g k4lt cjnDjg u/]sf]","a",null,null,null,null,null,null,null,1,0,{"$f":"N23+O23","v":1}]
[null,"dfkg tflnsfsf] ;a} sf]7fsf] æ5Ædf -a _] lrGx nfu]df @, s'g} tLg sf]7fsf] æ5Ædf -a _] lrGx nfu]df ! / cGo cj:yfdf ) cÍ k|bfg ug{] ."]
[null,";\"rgf Joj:yfkg ",5,4,";\"rgf s]Gb| jf OsfO{sf] :yfkgf ePsf]","a",null,{"$f":"IF(I25=\"\",P3,IF(OR(P25=2,P26=2,P27=2,P28=2,P29=2,P30=2),P2,IF(L25=6,4,IF(L25>=4,3,IF(L25=3,2,IF(M25>0,0,P1))))))","v":3},";\"rgf tyf clen]v Pj+ dfgj ;+zfwg zfvfn] clen]v tyf ;\"rgf s]Gb|sf] ?kdf sfd u/]sf] 5 .\nwebsite www.brigunjsmc.gov.np :yfkgf ePsf], h;df /fh:jsf b/x? pkdxfgu/sf] gLlt tyf sfo{qmd, jflif{s k|ult ;ldIff uf]i7Lsf] ljj/0f, gful/s j8fkq tyf cGo ;\"rgfx? website dfk{mt k|sflzt ul/Psf] 5 .\n;\"rgf clwsf/Lsf] ?kdf gf=;'= k|]d s'df/ sfsL{nfO{ r=g++ ()*.)%(.^) sf] )%(.^.* sf] kqjf6 ;\"rgf clwsf/L tf]ls sfd nufOPsf] .\nk|]d s'df/ sfsL{nfO{ ;Dks{ JolQmsf] ?kdf klg tf]lsPsf] kfOG5 .\n)&).&! sf] k|To]s dlxgfsf] cfo Joo ljj/0f dlxgf ;dfKt ePsf] & lbgleq ;\"rgf zfvfnfO{ k7fOPsf] / ToxfF zfvfaf6 ;fj{hlgs x'g] u/]sf] 5 .\ntf]lsPsf] z\"Ns lt/L g=kf= af6 ;\"rgf dfUg cfpg]nfO{ ;\"rgf pknJw u/fpg] ul/Psf] . h:t}M )&!.#.#) df jL/uGh pk=d=g=kf= @ sf z]if hn;f]bLgn] :jLldË k'n tyf x]Ny Snjsf] ;Dem}ftf kqsf] gSsnx? ;\"rgf xs ;DjGwL P]g cg';f/ pknJw u/ffPsf] .\nGIS cGtu{t City Map, Themtic Map t}of/ u/L k|of]u ug]{, gS;f kf; ePsf]nfO{ /fv]/ update ug]{ sfd ePsf], GIS based data sf] File t}of/sf] qmddf /x]sf] .\nGIS ldlt @)^*.*.! b]lv k|of]udf NofOPsf] .\n;\"rgf ;\"lrs[t u/L k|sfzg u/]sf] b]lvPg .","cfo Joo ljj/0f ;fj{hlgs u/]sf d'r'Nsfx? . ;\"rgf clwsf/L tf]s]sf] kq . ",null,{"$f":"COUNTIF(F25:F30,\"a\")","v":5},{"$f":"COUNTIF(G25:G30,\"a\")","v":1},{"$f":"COUNTIF(F25,\"a\")","v":1},0,{"$f":"N25+O25","v":1},{"$f":"D25","v":4},{"$f":"H25","v":3}]
[null,null,null,null,"j]e ;fO6 -Web Site _ ;~rfng u/L ;f] dfkm{t cfwf/e\"t  ;\"rgfx? ;fj{hlgs u/]sf]","a",null,null,null,null,null,null,null,1,0,1]
[null,null,null,null,";\"rgfsf] xs ;DaGwL P]g @)^$ sf] bkmf ^ adf]lhd ;\"rgf pknAw u/fpg ;\"rgf clwsf/L tf]s]sf]]","a",null,null,null,null,null,null,null,1,0,1]
[null,null,null,null,";\"rgfsf] xs ;DaGwL P]g @)^$ sf] bkmf % adf]lhd ;\"rgf ;\"lrs[t u/L k|sfzg u/]sf]",null,"a",null,null,null,null,null,null,0,1,1]
[null,null,null,null,"ef}uf]lns ;\"rgf k|0ffnL (GIS) k|of]udf NofPsf]","a",null,null,null,null,null,null,null,1,0,1]
[null,null,null,null,"k|To]s dlxgf cfo Joo ljj/0f ;fj{hlgs u/]sf]","a",null,null,null,null,null,null,null,1,0,1]
[null,"dfkg tflnsfsf] ;j} sf]7fsf] æ5Æ df -a _] lrGx nfu]df rf/ cÍ, s'g} rf/ j6f sf]7fsf] æ5Æ df -a _] lrGx nfu]df tLg cÍ, s'g} tLgj6f sf]7fsf] æ5Ædf -a _] lrGx nfu]df b'O cÍ k|bfg ug{], cGo cj:yfdf z\"Go cÍ k|bfg ug]{ ."]
[null,";fdflhs ;'/Iff sfo{qmd sfof{Gjog",6,2,"ut cf= j= df nlIft ;d\"x cg';f/ eQf jf j[lQ k|fKt ug]{ JolQmx?sf] ljj/0f ut cf= j= sf] klxnf] rf}dfl;s leq j'n]l6g÷k'l:tsf dfkm{t ;fj{hlgs u/]sf]] ",null,"a",{"$f":"IF(I32=\"\",P3,IF(OR(P32=2,P33=2,P34=2,P42=2),P2,IF(L32=4,2,IF(L32=3,1,IF(M32>0,0,P1)))))","v":1},"cf=j= )&)÷)&! df ;f=;'= eQf kfpg]sf] ljj/0f j]j;fO{6df k|sflzt u/]sf] egL sDKo\"6/ clws[taf6 hjfkm k|fKt ePsf] t/ s'g ldltdf /flvof] xfn j]j;fO{6 cWofjlws ePsf]n] ldlt olsg ug{ g;lsPsf]\ncf=j= )&)÷)&! df ;fdflhs ;'/Iff eQf kfpg]sf] ;d'xut nut s§f ljj/0f o; k|sf/ 5\nh]i6 gful/s    M !&$, h]i6 gful/s cGo M *)(, ljwjf M !*@&, k\"0f{ c;St M%^, cf+lzs c;St M &$\nhDdf nut s§f M @&$)\neQf jf j[lQ kfO{ /x]sf nlIft JolQmx? dWo] d[To' ePsf jf a;fO{ ;/L uPsf JolQmx?sf] lgoldt nut s§f ug]{ ul/Psf]\ncf=j= )&)÷)&! df eQf j[lQ k|fKt ug]{ JolQmx?sf] ;d'xut ;+Vof o; k|sf/ 5 M\nh]i6 gful/s blnt M @)!, cGo h]i7 gful/s M ($), hDdf h]i7 gful/s M !!$!, nf]kf]Gd'v cflbjf;L hghftL– 5}g \nPsn dlxnf –, ljwjf @))( , k\"0f{ c;St ^$, cf+l;s c;St M@$, blnt afnaflnsf M !(*  \neQf ;'ljwf kfpg] s'n ;+Vof M #$$^, \ncf=j= )&!÷)&@ df eQf j[lQ k|fKt ug]{ gful/sx?sf] ljj/0f lhlj;df k7fPsf] ldlt M @)&)÷!)÷!), r=g+= &)^^, ;fdflhs ;'/Iff eQf gu/kflnsfsf] k|fKt /]s8{ cg';f/ a}s+dfkm{t g} ljt/0f x'g] u/]sf] kfOof] . ;f] cg'';f/ ;fdflhs ;'/Iff eQf afkt lhlj;af6 lgsf;f /sd ? !,&*,!&,^))÷– dWo] ?= vr{ ePsf] /sd ? !,%@,!^,^)).– ,  afFsL /sd @^,)!,)))÷– lk|mh ePsf] / ;f] ljj/0f  lh=lj=;=/ gkfnfO{ hfgsf/L u/fPsf] kfOPsf] . ;f]xL Joxf]/f gkfsf] r=g+=%(*!, ldlt )&).(.!&sf] kq4f/f lh=lj=;=nfO{ hfgsf/Lsf] nflu k7fPsf] b]lvPsf] . ",";fdflhs ;'/Iff eQf  clen]v / lr7Lx?",null,{"$f":"COUNTIF(F32:F42,\"a\")","v":3},{"$f":"COUNTIF(G32:G42,\"a\")","v":2},{"$f":"COUNTIF(F32,\"a\")","v":0},{"$f":"COUNTIF(G32,\"a\")","v":1},{"$f":"N32+O32","v":1},{"$f":"D32","v":2},{"$f":"H32","v":1}]
[null,null,null,null,"eQf jf j[lQ kfO{/x]sf nlIft JolQmx? dWo] d[To' ePsf jf a;fO{ ;/L uPsf   JolQmx?sf] nut s§f u/]sf] ","a",null,null,null,null,null,null,null,1,0,{"$f":"N33+O33","v":1}]
[null,null,null,null,"rfn' cf=j=df eQf jf j[lQ k|bfg ug'{kg]{ gful/ssf] lgDg adf]lhdsf] ljj/0f lhlj;df ut cf j sf] kf}if d;fGtleq k7fPsf] M— ",null,"a",null,null,null,null,null,null,0,1,1]
[null,null,null,null,"-s_ h]i7 gful/s ;+Vof M ","a",null,null,null,null,null,null,null,1,0,1]
[null,null,null,null,"    blnt afx]s  ",null,null,null,null,null,null,null,null,0,0,0]
[null,null,null,null,"    blnt dfq  ",null,null,null,null,null,null,null,null,0,0,0]
[null,null,null,null,"-v_ Psn dlxnf ;+Vof ",null,null,null,null,null,null,null,null,0,0,0]
[null,null,null,null,"-u_ cf+l;s c;Qm ckfË ;+Vof ",null,null,null,null,null,null,null,null,0,0,0]
[null,null,null,null,"-3_ k\"0f{ c;Qm ckfË ;+Vof ",null,null,null,null,null,null,null,null,0,0,0]
[null,null,null,null,"-ª_ nf]kf]Gd'v cflbaf;L hghftL ;+Vof ",null,null,null,null,null,null,null,null,0,0,0]
[null,null,null,null,";fdflhs ;'/Iff eQf jfktsf] k]ZsL lhlj;jf6 lnPsf] ldltn] #% lbg leq} km5\\of}{6 u/]sf]","a",null,null,null,null,null,null,null,1,0,1]
[null,"dfkg tflnsfsf] ;j} sf]7fsf] æ5Æ df -a _] lrGx nfu]df b'O cÍ k|bfg ug{], s'g} ltg sf]7fsf] æ5Æ df -a _] lrGx nfu]df Ps cÍ k|bfg ug{], cGoyf z\"Go cÍ k|bfg ug{] ."]
[null,"dfl;s tyf jflif{s ef}lts Pjd ljQLo k|ult ljj/0f",7,2,"tf]lsPsf] 9fFrfdf ;a} dlxgfsf] dfl;s ef}lts tyf ljQLo k|ult k|ltj]bg kl5Nnf] dlxgfsf] ;ft ut] leq dGqfnodf k7fPsf] ","a",null,{"$f":"IF(I44=\"\",P3,IF(OR(P44=2,P45=2),P2,IF(L44=2,2,IF(L44=1,1,IF(M44>0,0,P1)))))","v":2},"cf=j= )&)÷)&! sf] ef}lts tyf ljlQo k|ult k|ltj]bg lgDg cg';f/ k7fPsf] kfO{of] \n!= @)&) >fj0fsf] @)&)÷%÷&  r=g+= @))( sf] kqaf6 x' dfWodaf6\n@= @)&) efb| sf] @)&)÷^÷& r=g+= #@)& sf] kqaf6 x' dfWodaf6\n#= @)&) c;f]hsf] @)&)÷&÷& r=g+= $)$* sf] kqaf6 x' dfWodaf6\n$= @)&) sflt{ssf] @)&)÷*÷& r=g+= $$(! sf] kqaf6 x' dfWodaf6\n%= @)&) d+l;/sf] @)&)÷(÷& r=g+= %^*) sf] kqaf6 JolQm dfWoldaf6\n^= @)&) k';sf]  @)&)÷!)÷& r=g+= ^**$ sf] kqaf6 x' dfWodaf6\n&= @)&) df3sf] @)&)÷!!÷^ r=g+= 5'6 ePsf] kqaf6 x' dfWodaf6\n*= @)&) kmfNu'gsf] @)&)÷!@÷% r=g+= *(*) sf] kqaf6 x' dfWodaf6\n(= @)&) r}qsf] @)&!÷!÷& r=g+= vfnL kqaf6 x' dfWodaf6\n!)= @)&! j}zfvfsf] @)&!÷@÷& r=g+= !!#&% sf] kqaf6 x' dfWodaf6\n!!= @)&! h]i7sf] @)&!÷#÷^ r=g+= vfnL kqaf6 x' dfWodaf6\n!@= @)&! ciff9sf] @)&!÷$÷& r=g+= @@@ kqaf6 x' dfWodaf6\n@)&)÷)&! sf] aflif{s cfly{s ljj/0f / aflif{s cfo Joo ljj/l0f of]hgf zfvfsf] r=g+= %÷)&!÷)&@ ldlt @)&!÷$÷!! df sd{rf/L x:t] k7fO{ dGqfnoaf6 @)&!÷$÷!$ df a'pem]sf] ekf{O kfO{of] .","sfo{fnodf  /x]sf  kqx?",null,{"$f":"COUNTIF(F44:F45,\"a\")","v":2},{"$f":"COUNTIF(G44:G45,\"a\")","v":0},{"$f":"COUNTIF(F44,\"a\")","v":1},{"$f":"COUNTIF(G44,\"a\")","v":0},{"$f":"N44+O44","v":1},{"$f":"D44","v":2},{"$f":"H44","v":2}]
[null,null,null,null,"jflif{s cfly{s ljj/0f / jflif{s cfoJoo ljj/0f ut cf= j= ;dfKt ePsf] k}tL; lbg leq dGqfnodf k7fPsf]","a",null,null,null,null,null,null,null,{"$f":"COUNTIF(F45,\"a\")","v":1},{"$f":"COUNTIF(G45,\"a\")","v":0},{"$f":"N45+O45","v":1}]
[null,"dfkg tflnsfsf] b'j} sf]7fsf] æ5Æ df -a _] lrGx nfu]df b'O, s'g} Ps sf]7fsf] æ5Æ df -a _]  lrGx nfu]df Ps cÍ k|bfg ug{] / cGo cj:yfdf z\"Go cÍ k|bfg ug{] . "]
[null,";fj{hlgs ;'g'jfO",8,2,"x/]s rf}dfl;sdf Ps k6s kg]{ u/L sDtLdf tLg j6f ;fj{hlgs ;'g'jfO{ u/]sf] ","a",null,{"$f":"IF(I47=\"\",P3,IF(OR(P47=2,P48=2,P49=2,P50=2),P2,IF(AND(L47>2,N47=1,N49=1,N50=1),2,IF(AND(L47=3,N48=1,N49=1,N50=1),1,IF(M47>0,0,P1)))))","v":0},"cf=j= )&)÷)&! sf] ;j{hlgs ;'lgjfO{ lgDg cg';f/ ldlt / :yfgdf ePsf] kfO{of] M–\n      ldlt                 :yfg             pkl:ylt      ;dof]hg ug]{ ;+:yf\n!= @)&)÷&÷@!    g=kf=sf] v'Nnf rf}/           *&     Psfpg6flaln6L O{lgl;Pl6e k|f=ln=,sf7\n@= @)&)÷!!÷@(           ,,                   @^*    P;=P8=P;= 8]enf]kd]G6 sG;N6]G6 sf7=\n#= @)&)÷#÷@(            ,,                   !@$    Psfpg6flaln6L Olgl;Pl6e k|f=ln= sf7=\npQm ;fj{hlgs ;'g'jfO{sf] k|ltj]bg tof/ ePsf] 5 \nldlt @)&)÷&÷@! sf] ;fj{hlgs ;'gjfO{ pk/ ldlt @)&)÷*÷@% sf] af]8{ a}7sdf \nldlt @)&)÷!!÷@( sf] ;f=;' ;DaGwdf ldlt @)&)÷!@÷!* sf] af]8a}7sdf / ldlt @)&!÷#÷@( sf] ;f=;' ;aGwdf gkf= af]8{ a}7sdf 5nkmn ePsf] kfOPg  . \npk/f]Qm a}7sx?df lgDg cg';f/sf d'Vo d'Vo lg0f{o ePsf 5g\\\n!= k|ltj]bgn] JoQm u/]sf ;'emfj qmdzM sfof{Gjog ug]{\n@= k|ltj]bgsf] ;'emfj sfof{Gjog ub}{ hfg] / :yfgLo ljsf; dGqfnodf hfgsf/L k7fpg] ;d]t . \n\n",";fj{hlgs  ;'gjfO{sf  k|ltj]bg  af]8{ a}7s lg0f{o",null,{"$f":"COUNTIF(F47:F50,\"a\")","v":3},{"$f":"COUNTIF(G47:G50,\"a\")","v":1},{"$f":"COUNTIF(F47,\"a\")","v":1},0,{"$f":"N47+O47","v":1},{"$f":"D47","v":2},{"$f":"H47","v":0}]
[null,null,null,null,"s'g} b'O{ rf}dfl;sdf dfq ;fj{hlgs ;'g'jfO{ u/]sf] ","a",null,null,null,null,null,null,null,1,0,{"$f":"N48+O48","v":1}]
[null,null,null,null,"k|To]s ;fj{hlgs ;'g'jfO{sf] k|ltj]bg tof/ ePsf]","a",null,null,null,null,null,null,null,1,0,{"$f":"N49+O49","v":1}]
[null,null,null,null,"k|To]s ;fj{hlgs ;'g'jfO{sf] k|ltj]bg pk/ gkf a]f8{ a}7sdf 5nkmn tyf lg0f{o ePsf] ",null,"a",null,null,null,null,null,null,0,1,{"$f":"N50+O50","v":1}]
[null,"dfkg tflnsfsf] klxnf], t]>f] / rf}yf] sf]7fsf] æ5Æ df -a _] lrGx nfu]df b'O cÍ k|bfg ug{],  bf]>f], t]>f] / rf}yf] sf]7fsf] æ5Æ df -a _]  lrGx nfu]df Ps cÍ k|bfg ug]{,  cGoyf z\"Go cÍ k|bfg ug{] ."]
[":yfgLo  zf;g sfo{If]qsf] hDdf",null,null,null,null,null,null,{"$f":"SUM(H7:H51)","v":14},{"$f":"IF(I7=\"\",P3,IF(H52>7,Q1,Q2))","v":"pQm sfo{If]qdf ;kmn ePsf]"}]
[]
[]
["ljQLo ;|f]t kl/rfng tyf Joj:yfkg","/fh:j ;DefJotf cWoog / k|If]k0f  ",9,2,"gu/:t/Lo /fh:j k/fdz{ ;ldltsf] a}7s a;]sf]","a",null,{"$f":"IF(I55=\"\",P3,IF(OR(P55=2,P56=2,P57=2,P58=2),P2,IF(L55=4,2,IF(L55=3,1,IF(M55>0,0,P1)))))","v":2},"]/fhZj k/fdz{ ;ldltsf] a}7s ldlt @)&)÷(÷@@, @)&)÷(÷@$, @)&)÷(÷@^ / @)&)÷(÷@& df a;]sf] 5 \nlg0f{o\n/fhZj ;Defjotf cWoog ug]{ >L PsfpG6LlAn6L O{lG;Pl6e k|f=ln åf/f k]z ePsf]  /fhZj ;Defjotf cWoog\nk|ltj]bgdf pNn]lvt ;'emfj / 5'6g uPsf ljifo j:t'nfO{ ;d]t k|ltj]bgdf ;dfj]z u/L k]z ePsf] k|ltj]bg \nk|lqmofut ?kdf lg0f{o sfof{Gjogsf nfuL pk–dxfgu/kflnsfdf l;kmfl/; ug]{ lg0f{o .\n/fhZj ;DefJotf cWoog ePsf] 5 . cWoog ug]{ lj1 / cWoog 6f]nLsf sfo{bn ;b:ox?df z]if /fh Gof}kfg]\n/ dgf]h zdf{ x'g'x'G5 . pQm 6f]nLaf6 ldlt @)&)÷(÷@# df cWoog k|ltj]bg k|fKt ePsf] 5 . cWoogn] ;d]6]sf] cjlw cf=j= )&!÷)&@ b]lv @)&^÷)&& ;Dd % jif{sf] ePsf] . If]qx?df 3/ hUuf s/, Plss[t ;DklQ s/, Joj;fo s/, cGo s/x? h:t} 3/ axfn s/, lj6f}/L s/, dgf]/+hg s/, lj1fkg s/, ljleGg z'Ns x? h:t} M ejg lgdf{0f O{hfht z'Ns, l;kmfl/; b:t'/, kfls{Ë z'Ns, ef8f tyf cGo cfo .\ncWoog k|ltj]bgdf pNn]lvt sfo{ of]hgfx?df M ;dGjo tyf ;+u7g ljsf; tkm{ ljleGg sfo{of]hgf, cfo 8f6fa]; :yfkgf tyf ;+rfng, s/ tyf z'Ns c;'nL k|0ffnLdf ;'wf/, ;DklQ kl/rfng, cfosf gofF >f]tsf] klxrfg tyf kl/rfng, ;fj{hlgs lglh ;fem]bf/L . \n/fhZj ;DefJotf cWoog k|ltj]bg ldlt @)&)÷(÷@( df gu/ kl/ifbaf6 :jls[t ePsf] 5 . rfn' cf=j= )&!÷)&@ sf] /fhZj k|If]k0f /fhZj ;Defjotf cWoogsf cfwf/df ePsf] 5 . ;Defjotf cWoogdf pNn]lvt /sd ?= #@%$(*!)@.@),, k|If]k0f u/]sf] /sd ?= #@%$(*!)@.@),rfn' cf=j= )&!÷)&@ sf] ah]6 th'{df ;fdfGotof /fhZj k|If]k0fsf] cfwf/df ePsf] 5 . k|If]lkt /sd ?= #@%$(*!)@.@) ah]6df /fhZjaf6 ?= @*&(^@))).– -**=$^Ü_ Joxf]/]sf] 5 .  ","/fhZj ;Defjotf  cWoog k|ltj]bg",null,{"$f":"COUNTIF(F55:F58,\"a\")","v":4},{"$f":"COUNTIF(G55:G58,\"a\")","v":0},{"$f":"COUNTIF(F55,\"a\")","v":1},0,{"$f":"N55+O55","v":1},{"$f":"D55","v":2},{"$f":"H55","v":2}]
[null,null,null,null,"rfn' cf= j= ;d]t ;d]l6g] u/L ePsf] /fh:j ;DefJotf cWoog k|ltj]bg kl/ifb\\\\jf6 :jLs[t ePsf]","a",null,null,null,null,null,null,null,1,0,{"$f":"N56+O56","v":1}]
[null,null,null,null,"ut jif{ rfn' cf=j=sf lgldQ /fh:j ;+efJotf cWoogsf cfwf/df /fh:j k|If]k0f ul/Psf]","a",null,null,null,null,null,null,null,1,0,{"$f":"N57+O57","v":1}]
[null,null,null,null,"rfn' cf=j= sf] ah]6 th'{df /fh:j k|If]k0fsf cfwf/df ul/Psf] ","a",null,null,null,null,null,null,null,1,0,{"$f":"N58+O58","v":1}]
[null,"dfkg tflnsfsf] ;j}] sf]7fsf] æ5Æ df -a _] lrGx nfu]df b'O cÍ, s'g} tLg sf]7fsf] æ5Æ df -a _] lrGx nfu]df Ps cÍ k|bfg ug{], cGoyf z\"Go cÍ k|bfg ug{] . "]
[null,"cfo Joosf] oyfy{tf ",10,4,"cg'dflgt s'n cfGtl/s cfosf] t'ngfdf c;L k|ltzt b]lv Ps ;o aL; k|ltzt ;Dd cfo ;Íng ePsf] ",null,"a",{"$f":"IF(I60=\"\",P3,IF(OR(P60=2,P61=2,P62=2),P2,IF(L60=3,4,IF(L60=2,3,IF(L60=1,2,IF(M60>0,0,P1))))))","v":0},"ut cf=j= )&)÷)&! sf] s'n cfGtl/s cfo !$@!$!)))÷–, ;+zf]lwt ?= @%$@*)%@@÷– cg'dfg ul/Psf]df ?= (#%%%!@$÷– oyfy{ cfo k|fKt ePsf] 5  h'g ^%=*@ k|ltzt, ;+zf]lwt #^=&( k|ltzt x'g cfp5 .\ns'n Joo cg'dfg ?= %&#!$!)))÷– ;+zf]lwt ?= &!$!*(%@@÷– ePsf]df oyfy{ Joo ?= #&*!(%(*@.^* ePsf] 5 . h'g ^%=(* k|ltzt ;+zf]lwt %@=(% k|ltzt x'g cfp5 . \ncf=j= )&)÷)&! sf] nfuL ljlgof]lht s'n k\"FhLut tyf sfo{qmd ah]6 ?= ^@!#%^%@%÷– ePsf]df oyfy{ vr{ ?= @&@^$)&*^.(( ePsf] 5 h'g $#=** k|ltzt x'g cfp5 . ","cf=j=@)^(.&) sf]  cf=la=",null,{"$f":"COUNTIF(F60:F62,\"a\")","v":0},{"$f":"COUNTIF(G60:G62,\"a\")","v":3},{"$f":"COUNTIF(F60,\"a\")","v":0},1,{"$f":"N60+O60","v":1},{"$f":"D60","v":4},{"$f":"H60","v":0}]
[null,null,null,null,"cg'dflgt s'n Joosf] t'ngfdf gJa] k|ltzt jf ;f] eGbf a9L vr{ ePsf] ",null,"a",null,null,null,null,null,null,0,1,{"$f":"N61+O61","v":1}]
[null,null,null,null,"s'n ljlgof]lht k\"FhLut tyf sfo{qmd ah]6sf] *) k|ltzt jf ;f] eGbf a9L vr{ ePsf] ",null,"a",null,null,null,null,null,null,0,1,{"$f":"N62+O62","v":1}]
[null,"dfkg tflnsfsf] ;a} sf]7fsf] æ5Æ df -a _] lrGx nfu]df rf/ cÍ k|bfg ug{], s'g} b'O{  sf]7fsf] æ5Æ df -a _] lrGx nfu]df tLg cÍ, s'g} Ps sf]7fsf] æ5Æ df -a _]  lrGx nfu]df b'O cÍ k|bfg ug{], cGoyf z\"Go cÍ k|bfg ug{] ."]
[null,"/fh:j k|zf;gsf] Joj:yfkg",11,4,"Go\"gtd zt{ sf] ;\"rs g+= % df pNn]lvt s/ tyf /fhZjsf] cltl/Qm ;jf/L ;fwg clen]v, dgf]/~hg s/, axfn s/, la1fkg s/sf] clen]v Jojl:yt u/L /fv]sf] ","a",null,{"$f":"IF(I64=\"\",P3,IF(OR(P64=2,P65=2,P66=2,P67=2,P68=2),P2,IF(L64=5,4,IF(L64=4,3,IF(L64=3,2,IF(M64>0,0,P1))))))","v":4},"gu/kflnsfdf 3/ hUuf s/, Joj;fo s/, axfn s/, lj6f]/L s/, ;jf/L ;fwg s/, lj1fkg s/sf] clen]v Jojl:yt ul/Psf] 5 . ;\"rsdf pNn]lvt ;a} s/sf] clen]v /flvPsf] 5 . \ns/ b:t'/ tyf ;]jf z'Ns ;DaGwL ljj/0f s/bftfn] ;lhn} b]Vg a'em\\g ;Sg] u/L s/ zfvfdf /flvPsf] 5 . \n;fy} s/ ;DaGwL ;\"rgf tyf kmf/fdx? lgMz'Ns ?kdf pknAw u/fO{Psf] 5 . \n/fhZj k|0ffnL - 3/ hUuf, 3/ Joj;fo s/, cfo n]vf, nufot gu/kflnsfdf k|fKt x'g] ;a} cfosf] >f]t_ cf=j= )^^÷)^& sf] >fj0f ! ut] b]lv sDKo\"6/lqmt ul/Psf] 5 . \ns/bftf lzIff sfo{qmd ;r]tgfd'ns sfo{qmd ;+rfng ul/Psf] 5  cf=j= )&)÷)&! df # j6f sfo{qmd ;+rfng  ul/Psf] 5 .  cf=j\\=)&).&! sfo{qmd ;+rfng ul/Psf] ldlt M @)&).^.!$ , @)&!.@.@^ / @)&!.#.#! . pQm sfo{qmd pBf]u jfl0fHo ;+3 , /fhZj k/fdz{ ;ldlt ,gful/s ;dfh , kf6L{ k|ltlglw / s/bftf ;d]tnfO{ /fv]/ ;+rfng ul/Psf] 5 . cf=j= )&).&! eGbf cl3 cf=j= )^(.&) df ;d]t o:tf sfo{qmd ;+rfng ul/Psf] b]lvof] . ","sDk'6/ / clen]v",null,{"$f":"COUNTIF(F64:F68,\"a\")","v":5},{"$f":"COUNTIF(G64:G68,\"a\")","v":0},{"$f":"COUNTIF(F64,\"a\")","v":1},0,{"$f":"N64+O64","v":1},{"$f":"D64","v":4},{"$f":"H64","v":4}]
[null,null,null,null,"s/, b:t'/, ;]jf z'Nssf] b//]6 ;DaGwL cBfjlws ljj/0f s/bftfn] ;lhn} b]Vg / a'Efm\\g ;Sg] u/L s/ zfvfdf /flvPsf] ","a",null,null,null,null,null,null,null,1,0,1]
[null,null,null,null,"s/ ;DaGwL ;\"rgf / kmf/dx? lgz'Ns ?kdf pknAw u/fPsf] ","a",null,null,null,null,null,null,null,1,0,1]
[null,null,null,null,"/fh:j k|0ffnL - Plss[t ;Dklt s/ jf 3/ hUuf s/, Joj;fo s/, cfo n]vf nufot gkfdf k|fKt x'g] ;j} cfosf ;|f]t _ nfO{ sDKo'6/s[t u/]sf]","a",null,null,null,null,null,null,null,1,0,1]
[null,null,null,null,"s/bftf lzIff sfo{qmd ;~rfng u/]sf]","a",null,null,null,null,null,null,null,1,0,{"$f":"N68+O68","v":1}]
[null,"dfkg tflnsfsf] ;j} sf]7fsf] æ5Æ df -a _]  lrGx nfu]df rf/ cÍ, s'g} rf/ sf]7fsf] æ5Æ df -a_] lrGx nfu]df tLg cÍ, s'g} tLg sf]7fsf] æ5Æ df -a _] lrGx nfu]df b'O cÍ k|bfg ug{] , cGoyf z\"Go cÍ k|bfg ug{]  ."]
[null,"Plss[t ;Dklt s/ ",12,2,"PsLs[t ;DklQ s/ nfu\" u/]sf]",null,"a",{"$f":"IF(I70=\"\",P3,IF(OR(P70=2,P71=2),P2,IF(L70=2,2,IF(AND(L70=1,N70=1),1,IF(M70>0,0,P1)))))","v":0},"cf=j= )&).)&! ;Dd nfu' gePsf], )&!÷)&@ b]lv dfq Plss[t ;DklQ s/ nfu' gePsf] ","s/ clen]v",null,{"$f":"COUNTIF(F70:F71,\"a\")","v":0},{"$f":"COUNTIF(G70:G71,\"a\")","v":2},{"$f":"COUNTIF(F70,\"a\")","v":0},{"$f":"COUNTIF(G70,\"a\")","v":1},1,{"$f":"D70","v":2},{"$f":"H70","v":0}]
[null,null,null,null,"PsLs[t ;Dklt s/jf6 ut eGbf cl3Nnf] cf j eGbf ut cf j df  cfDbfgL a9fPsf]",null,"a",null,null,null,null,null,null,{"$f":"COUNTIF(F71,\"a\")","v":0},{"$f":"COUNTIF(G71,\"a\")","v":1},1]
[null,"dfkg tflnsfsf] b'a} sf]7fsf] æ5Ædf -a _] lrGx nfu]df @ cÍ k|bfg ug{], klxnf] sf]7fdf dfq æ5Ædf -a _] lrGx nfu]df ! cÍ k|bfg ug{] ,cGoyf ) cÍ k|bfg ug{] ."]
[null,";fj{hlgs lghL If]q ;fem]bf/L ",13,2,";fj{hlgs lghL If]q k|j4{g ;ldlt u7g eO s[oflzn /x]sf] ","a",null,{"$f":"IF(I73=\"\",P3,IF(OR(P73=2,P74=2,P75=2),P2,IF(L73=3,2,IF(AND(L73=2,N74=1),1,IF(M73>0,0,P1)))))","v":2},";fj{hlgs gLlh If]q k|jw{g ;ldlt u7g eO{ lqmoflzn /x]sf] / ;f]sf] a}7s ldlt @)&)÷!!÷$, @)&!÷!÷!@ / @)&!÷#÷@# df a;]sf] 5 . \n;f=lg=;f= sf] l;4fGt adf]lhd gu/kflnsfn] lghL ;fem]bf/L u/]sf] 5 . \nNfe nfut / hf]lug]sf] lx;fan] ;fem]bf/L ;/;kmfO{sf] If]qdf k|To]s aif{ @% k|ltzt gu/kflnsfsf] hgzlQmnfO{ s6f}tL ub}{ % jif{df gu/kflnsfn] v6fpg] hgzlQm z'Go agfpg] lg0f{o ePsf] 5 . \ngu/ ;ef kl/;/sf] Joj;foLs ;+rfng ;DaGwdf % jif{sf] nfuL ;Demf}tf eO{ gu/kflnsfn] ;+rfng ubf{ k|fKt /fhZj eGbf clwstd /fhZj k|fKt x'g] ;f] gu/ ;ef /]vb]vsf] nfuL gu/kflnsfn] sd{rf/L v6fpg' gkg]{ eO{ cfly{s ef/ sd kg]{, dd{t ;Def/ vr{ ;d]t hf]lug] tyf ;+/If0f tyf ;Djw{g ug]{ bfloTj ;d]t 36\\g] x'Fbf nfe nfut hf]lvdsf] lx;fan] ;fem]bf/L u/]sf] pko'Qm b]lvG5 . \n;Demf}tfsf] a'+bfx? != j8fx?sf] ;/;kmfO{ ;DaGwdf M–\n!= gu/kflnsfn] tf]lsPsf] :yfgx?df bf]>f] kIfn] ;/;kmfO{ Joj:yf ;+rfng ug]{, :jR5 jftfj/0f sfod /fVg] / kmf]xf]/nfO{ >f]tdf k|of]u ug]{ sfo{nfO{ k|fylstf lbg] . \ngu/ ;ef Joj;foLs ;+rfng ;DaGwdf M–\n;fem]bf/L Joj;foLn] gu/ ;ef kl/;/sf] ef}lts k\"jf{wf/ oyfcj:yfdf /fvL sfo{qmd cjlw k'/f ePkl5 gu/kflnsfnfO{ a'emfpg], gu/ ;ef kl/;/sf] jif{sf] Ps k6s /+ufpg] sfd ug]{ , ;fem]bf/L Joj;foLn] ;Demf}tf cg';f/ gu/kflnsfnfO{ a'emfpg' kg]{ s/ ;DaGwdf a'emfpg], kl/;/df ;f=lg=;f= sfo{qmdsf] af]8{ /fvL ;+rfng ug]{, \n;fem]bf/L ul/Psf] ;+:yf M– kmf]xf]/ d}nf Joj:yfkg ;DaGwdf cSsf g]kfn, o'jf ;/f]sf/ ;dfh, g]kfn lSng P08 lu|; l;6L, ln8\\;, u|fld0f ;dfh ljsf; s]Gb|, /fw]dfO{ ljsf; ;d'bfoL ;+:yf,  ;Demf}tf ePsf] ldlt @)&!÷$÷!# cjlw % jif{ . \ngu/ ;ef ;+rfng ;DaGwdf M – ;fem]bf/L Joj;foL  k|ltdf ;fx snjf/ /fx'n 6«]8;{ jL=p=d=g=kf –!# \n;demf}tf ePsf] ldlt M @)^(÷!!÷(, cjlw M % jif{, ;Demf}tf /sd ?= !&,%%,)))÷–\naflif{s ?= #,%!,)))÷– sf] lx;fan] a'emfpg' kg]{ . \n;fem]bf/Laf6 cf=j= )&)÷)&! df -?= #,)#,)))÷– gu/kflnsfn] ;+rfng ubf{ aflif{s ?= $*,)))÷– cfDbfgL x'g] u/]sf] lyof] _ cfo a[l4 ePsf] 5 . \ngu/kflnsfsf] bfloTj ;/;kmfO{ Joj:yfkg If]qdf @% k|ltzt hgzlQm s6f}tL x'g] eO{ bfloTj 36]sf] 5 . gu/ ;ef ;+rfngsf] nfuL sd{rf/L ;+rfng , dd{t ;Def/ vr{ sfo{df bfloTj 36]sf] , ;+/If0f tyf ;Daw{g ug]{ sfo{df ;d]t bfloTj 36]sf] 5 . pNn]lvt sfo{x? 7]Ssfaf6 geO{ ;f=lg=;f=sf] l;4fGt adf]lhd g} ;Demf}tf eO{ sfo{ ePsf] 5 . k|df0fsf] xsdf lj/u+h g=kf=sf] ljleGg j8fx?df ;f=lg=;f=sf] cjwf/0ffdf km]fxf]/d}nf Joj:yfkg u/L ;/;kmfO{ Joj:yf ;+rfng ug{] k|of]hgsf]nflu  k|sflzt ;'rgf cg';f/ ljleGg u}/ ;/sf/L  ;+:yf x? af6 sfo{ u/fpg] elg :yfgLo :jfoQ zf;g lgodfjnL @)%^efu ^ sf] lgod @&# -s_ adf]lhd ul7t ;fj{hlgs lglh If]q ;fe]mbf/L k|a4{g ;ldltsf] ldlt )&!.$.!!df a}7s a;L lg0f{o ePsf] 5 . To:t} pQm gkfn] :yfgLo cfo cfh{gsf] >f]tsf] ?kdf /x]sf] gu/ ;efu[x kl/;/sf] Jofj;flos k|of]hgdf clwstd ?kdf k|of]udf Nofpg ;f=lg=;f=sf] cjwf/0ff cGt{ut b}lgs klqsfdf ;'rgf k|sflzt ul/ k|:tfj k]z ug{ cfXjfg u/] adf]lhd ;af{]Ts[i6 k|:tjfssf] ?kdf lj/u+h g=kf= !# sf /fx'n 6«]n;{ ;u ;Dem}tf ul/ aflif{s ? #,%!,))).– sff b/n] % jif{;Dd ? !&,%%,))).–cfo ;+sng x'g] b]lvG5 . o;/L pk/f]Qm sfo{ ;fem]bf/L af6 u/fpbf gu/kflnsfsf] cfo ;d]t al4 x'g] / gu/ ;efs]f /]vb]v , dd{t ;+ef/ , cGo k|zf;lgs sfo{df bfloTj ;d]t  36]sf] kfOof] . ","sfof{no cln]v ",null,{"$f":"COUNTIF(F73:F75,\"a\")","v":3},{"$f":"COUNTIF(G73:G75,\"a\")","v":0},{"$f":"COUNTIF(F73,\"a\")","v":1},0,1,{"$f":"D73","v":2},{"$f":"H73","v":2}]
[null,null,null,null,";fj{hlgs lghL ;fem]bf/L u/]sf]  ","a",null,null,null,null,null,null,null,1,0,1]
[null,null,null,null,";fj{hlgs lghL ;fem]bf/Laf6 gu/kflnsfsf] cfGtl/s cfo a9]sf] jf bfloTj 36]sf] ","a",null,null,null,null,null,null,null,1,0,1]
[null,"dfkg tflnsfsf] ;j} sf]7fsf] æ5Æ df -a _] lrGx nfu]df b'O cÍ k|bfg ug{], bf];|f] sf]i7 ;lxt s'g} b'O sf]7fsf] æ5Æ df -a _] nfu]df Ps cÍ k|bfg ug{] / cGo cj:yfdf z\"Go cÍ k|bfg ug{] ."]
[null,"k|zf;lgs vr{sf] ;Ldf kfngf",14,2,"ut cf=j=df ;Ílnt jf:tljs cfGtl/s cfosf] kl/lwleq /xL k|zf;lgs vr{ u/]sf] cyf{t k|zf;lgs vr{ lgodsf] ;Ldf leq /x]sf] .",null,"a",{"$f":"IF(I77=\"\",P3,IF(P77=2,P2,IF(L77=1,2,IF(M77>0,0,P1))))","v":0},"ut cf=j= )&)÷)&! sf] oyfy{ cfGtl/s cfo ? =(#%%%!@$÷–\n s/ M – ?= ^%($%&^!.$^\n;]jf z'Ns ?= (@#@@*).)%\nb:t'/ ? M !&@)#)*@.$(\nef8f ? =    !!^%)))÷–\n       ?=  (#%%%!@$÷–\npQm oyfy{ cfosf] lgodfg';f/ @% k|ltztn] x'g cfpg] k|zf;lgs vr{ ;Ldf ?= @##**&*!÷– ut cf=j= )&)÷)&! sf] s'n k|zf;lgs vr{ ?= %^@$@@#%.%& -^)=!! k|ltzt_\npk/f]Qm cg';f/ k|zf;lgs vr{sf] ;Ldfsf] kfngf ePsf] 5}g . cyf{t l;df eGbf #%=!!Ü al9 vr{ ePsf] 5  .\ns'n k|zf;lgs vr{ Joxf]l/Psf] >f]t – cfGtl/s cfo /sdaf6 dfq ?%^@$@@#%.%&\ncfGtl/s cfoaf6 k|zf;lgs sfo{df ?= %^@$@@#%.%& vr{ ePsf] 5 . cGoaf6 vr{ ePsf] 5}g cGo >f]taf6 vr{ ePsf] 5}g  s'n k|zf;lgs vr{ ?= %^@$@@#%.%& -^)=!! k|ltzt_ ;Dk'0f{ cfGtl/s cfoaf6 Joxf]l/Psf] 5 .","cfly{s laj/0f ",null,{"$f":"COUNTIF(F77,\"a\")","v":0},{"$f":"COUNTIF(G77,\"a\")","v":1},{"$f":"COUNTIF(F77,\"a\")","v":0},{"$f":"COUNTIF(G77,\"a\")","v":1},1,{"$f":"D77","v":2},{"$f":"H77","v":0}]
[null,"dfkg tflnsfsf] sf]7fsf] æ5Æ df -a _] \\lrGx nfu]df b'O cÍ k|bfg ug{], cGoyf z\"Go cÍ k|bfg ug]{ ."]
[null,"k|f]b\\efjL  n]vf k|0ffnL ",15,2,"k|f]b\\efjL n]vf k|0ffnLdf hfg] ;DaGwdf lg0f{o ePsf]","a",null,{"$f":"IF(I79=\"\",P3,IF(OR(P79=2,P80=2,P81=2),P2,IF(L79=3,2,IF(AND(L79=2,N79=1),1,IF(M79>0,0,P1)))))","v":0}," cf=j= )^(.)&) b]lv k|f]b\\efjL n]vf k|0ffnL nfu' ug]{ elg !& cf}+ gu/ kl/ifbaf6 @)^(÷(÷@& df :jLs[t ePsf] 5 t/ nfu\" ul/Psf] 5}g ","sfof{sf/L clws[t / n]vf k|d'vaf6  k|fKt hfgsf/L ",null,{"$f":"COUNTIF(F79:F81,\"a\")","v":1},{"$f":"COUNTIF(G79:G81,\"a\")","v":2},{"$f":"COUNTIF(F79,\"a\")","v":1},0,1,{"$f":"D79","v":2},{"$f":"H79","v":0}]
[null,null,null,null,"k|f]b\\efjL n]vf k|0ffnL;+u tfbfTDotf x'g] u/L rf6{\\; ckm Psfp06\\; (Charts of Accounts ) tof/ kf/L k|of]udf NofPsf] ",null,"a",null,null,null,null,null,null,0,1,1]
[null,null,null,null,"gu/kflnsfsf] ;a} ;DklQ ljj/0f / bfloTj v'n]sf] z'? df}Hbft (Opening Balance) tof/ kfl/Psf] ",null,"a",null,null,null,null,null,null,0,1,1]
[null,"dfkg tflnsfsf] ;j}] sf]7fsf] æ5Æ df -a _] lrGx nfu]df b'O cÍ k|bfg ug{], klxnf] ;lxt s'g} b'O sf]7fsf] æ5Æ df -a _]  lrGx nfu]df Ps cÍ k|bfg ug{], cGoyf z\"Go cÍ k|bfg ug{] ."]
[null,"w/f}6L vftfsf] cj:yf",16,2,"w/f}6L vftfsf] /sd cGo k|of]hgdf vr{ gu/]sf]","a",null,{"$f":"IF(I83=\"\",P3,IF(OR(P83=2,P84=2,P85=2,P86=2),P2,IF(L83=4,2,IF(AND(L83=3,N83=1),1,IF(M83>0,0,P1)))))","v":2},"w/f}6L vftfsf] /sd cGo k|of]hgdf vr{ ePsf] 5}g . cfly{s jif{ )&)÷)&! df k|of]hg cjlw ;dfKt ePsf] w/f}6L /sd ?= @),#&,$().%@ ldlt @)&!.)!.!& df ;b/:ofxf ePsf] 5 . lkmtf{ ug'{ kg]{ w/f}6L /sd  lgodfg';f/ lkmtf{ ul/Psf] 5 . lkmtf{ ug'{ kg]{ w/f}6L /sd ?= @^@%@!&.%*, lkmtf{ ePsf] /sd\n?= @^@%@!&.%*\nDofb gf3]sf] /sd 5}g , w/f}6L /sdsf] ljj/0f v'Ng] u/L cWofjlws clen]v /flvPsf] 5 . \ncf=j= )&)÷)&! sf] w/f}6Lsf] z'? df}Hbft ?= %%%^$*^.^) \nclGtd df}Hbft ?= $((&$&%.$)","w/f}6L vftf  clen]v",null,{"$f":"COUNTIF(F83:F86,\"a\")","v":4},{"$f":"COUNTIF(G83:G86,\"a\")","v":0},{"$f":"COUNTIF(F83,\"a\")","v":1},0,1,{"$f":"D83","v":2},{"$f":"H83","v":2}]
[null,null,null,null,"lkmtf{ ug'{kg]{ w/f}6L vftfsf] /sd lgodfg';f/ lkmtf{ u/]sf] ","a",null,null,null,null,null,null,null,1,0,1]
[null,null,null,null,"Dofbleq lkmtf{ gePsf] w/f}6L /sdsf] ljj/0f v'Ng] u/L clen]v /fv]sf]","a",null,null,null,null,null,null,null,1,0,1]
[null,null,null,null,"k|of]hg ;dfKt eO lkmtf{ gePsf] w/f}6L /sd g= kf= sf]ifdf cfDbfgL a+fw]sf]","a",null,null,null,null,null,null,null,1,0,1]
[null,"dfkg tflnsfsf] ;j}] sf]7fsf] æ5Æ df -a _]  lrGx nfu]df b'O cÍ k|bfg ug{], klxnf] ;lxt s'g} ltg sf]7fsf] æ5Æ df -a _]  lrGx nfu]df Ps cÍ k|bfg ug{] , cGoyf z\"Go cÍ k|bfg ug{] ."]
[null,"cfly{s sf/f]jf/sf] u'0f:t/",17,2,"ut cf=j=eGbf cl3Nnf] cf=j=sf]] clGtd n]vfk/LIf0f k|lta]bgdf s\"n cfly{s sf/f]jf/sf] b'O k|ltzt eGbf sd a]?h' cf}+NofPsf] .",null,"a",{"$f":"IF(I88=\"\",P3,IF(OR(P88=2,P89=2,P90=2),P2,IF(AND(L88=2,N88=1,N89=1),2,IF(AND(L88=2,N89=1,N90=1),1,IF(M88>0,0,P1)))))","v":0},"cf=j= )^(÷)&) sf] s'n cfly{s sf/f]jf/ - cfo + Joo_ ?= $(@@%%)^#.!%\ncf=j= )^(÷)&) sf] >]:tfsf] clGtd n]=k= k|ltj]bgn] cf}NofPsf] s'n a]?h?  ?= !),**,!@,*)$.@$ -k]ZsL a]?h' !),*&,(%,%)$.@$, cGo a]?h' ?= !&,#)).–_\nn]=k= k|ltj]bg cg';f/ a]h'?sf] k|ltzt s'n cfly{s sf/f]jf/df @@=!) k|ltzt . \ncf=j= )&)÷)&! sf] dfq cGtdf Dofb gfv]sf] k]ZsL b]lvG5  h;cg';f/ cf=j= )&).&! sf] Dofb gf3]sf] k]ZsL ? !$#^&$$$*.#*  \ncf=j= )&)÷)&! ;Ddsf] Dofb gf3]sf] k]ZsL ?= ^^%&$*%@.(#","n]k k|ltj]bg / k]ZsL laj/0f",null,{"$f":"COUNTIF(F88:F90,\"a\")","v":0},{"$f":"COUNTIF(G88:G90,\"a\")","v":3},{"$f":"COUNTIF(F88,\"a\")","v":0},1,1,{"$f":"D88","v":2},{"$f":"H88","v":0}]
[null,null,null,null,"ut cf=j= sf] cGTodf Dofb gf3]sf] k]ZsL gePsf] .",null,"a",null,null,null,null,null,null,0,1,1]
[null,null,null,null,"ut cf=j=eGbf cl3Nnf] cf=j= sf] n]vfkl/If0f k|ltj]bgdf s\"n cfly{s sf/f]jf/sf]] @ b]lv % k|ltzt;Dd a]?h' cf}+NofPsf] .",null,"a",null,null,null,null,null,null,0,1,1]
[null,"dfkg tflnsfsf] klxnf] / bf];|f] sf]7fsf] æ5Æ df -a _] lrGx nfu]df b'O cÍ k|bfg ug{], bf];|f] / t];|f]] sf]7fsf] æ5Æ df -a _] lrGx nfu]df Ps cÍ  k|bfg ug{], cGoyf z\"Go cÍ k|bfg ug{] ."]
[null,"cfly{s ;xfotfsf] ;Ldf kfngf",18,2,"cfly{s ;xfotf vr{ lgodsf] ;Ldf leq /x]sf] ","a",null,{"$f":"IF(I92=\"\",P3,IF(OR(P92=2,P93=2,P94=2),P2,IF(L92=3,2,IF(AND(L92=2,N92=1),1,IF(M92>0,0,P1)))))","v":2},"cf=j= )&)÷)&! df p7fPsf] s'n cfGtl/s cfo ?= (#%%%!@$÷–\ns/        ?= ^%(%$&^!.$^\n;]jf z'Ns   ?= (@#@@*).)%\nb:t'/       ?= !&@)#)*@.$(\nef8f        ? = !!^%)))÷–\nhDdf        ?= (#%%%!@$÷–\npQm cfGtl/s cfosf] ! k|ltztn] x'g cfpg] /sd ?= (#%%%!.@$\nut cf=j= )&)÷)&! df s'g} klg /fhg}lts bn, sd{rf/L ;+3 ;DalGwt ;+3 ;+u7gx?nfO{ cfly{s ;xof]u k|bfg u/]sf] 5}g . ","sfof{no clen]v",null,{"$f":"COUNTIF(F92:F94,\"a\")","v":3},{"$f":"COUNTIF(G92:G94,\"a\")","v":0},{"$f":"COUNTIF(F92,\"a\")","v":1},0,1,{"$f":"D92","v":2},{"$f":"H92","v":2}]
[null,null,null,null,"/fhgLlts bn jf ltgsf eft[ tyf elugL ;+3 ;+u7gx?nfO cfly{s ;xof]u÷cg'bfg k|bfg gu/]sf] ","a",null,null,null,null,null,null,null,1,0,1]
[null,null,null,null,"sd{rf/L;+u ;DjlGwt ;+3 ;+u7gx?nfO cfly{s ;xof]u÷cg'bfg k|bfg gu/]sf]  ","a",null,null,null,null,null,null,null,1,0,1]
[null,"dfkg tflnsfsf] # j6} sf]7fsf] æ5Æ df -a _] lrGx nfu]df b'O cÍ, klxnf] ;lxt b'O sf]7fsf] æ5Æ df -a _]  lrGx nfu]df Ps cÍ k|bfg ug]{, cGoyf z\"Go cÍ k|bfg ug]{ ."]
[null,":yfgLo ;|f]t kl/rfng",19,4,"s/sf bfo/f÷If]qx? / s/bftf ;+Vof j[l4 u/]sf]","a",null,{"$f":"IF(I96=\"\",P3,IF(OR(P96=2,P97=2,P98=2),P2,IF(AND(L96=2,N96=1,N98=1),4,IF(AND(L96=2,N96=1,N97=1),3,IF(AND(L96=1,N98=1),2,IF(M96>0,0,P1))))))","v":4},"cf=j= )^(÷)&) sf] s'n s/ bftf ;+Vof (@(#!, s'n cfGtl/s cfo ?= ^^@)@@&#.$*\ncf=j= )&)÷)&! Sf] s'n s/ bftf ;+Vof (#(!!, s'n cfGtl/s cfo ?= (#%%%!@$÷–\ncf=j= )^(÷)&) sf] t'ngfdf cf=j= )&)÷)&! sf] cfo a[l4 k|ltzt $!=#!\nCf=j= )&)÷)&! df s/sf bfo/f a9]sf] If]qx? M– gePsf], s/sf] bfo/f a9]sf]\n","s/sf >f]t clen]v / cfly{s laj/0f",null,{"$f":"COUNTIF(F96:F98,\"a\")","v":2},{"$f":"COUNTIF(G96:G98,\"a\")","v":0},{"$f":"COUNTIF(F96,\"a\")","v":1},0,1,{"$f":"D96","v":4},{"$f":"H96","v":4}]
[null,null,null,null,"ut jif{ cl3Nnf] cf j eGbf !% k|ltzt b]lv @) k|ltzt ;Dd cfGtl/s cfo j[l4 u/]sf]",null,null,null,null,null,null,null,null,0,0,0]
[null,null,null,null,"ut jif{ cl3Nnf] cf j eGbf @) k|ltzt jf ;f] eGbf j9L cfGtl/s cfo j[l4 u/]sf]","a",null,null,null,null,null,null,null,1,0,1]
[null,"dfkg tflnsfsf] klxnf] / t];|f] sf]7fsf] æ5Ædf -a _] lrGx nfu]df rf/ cÍ, klxnf] / bf];|f]  sf]7fsf] æ5Ædf -a _]  lrGx nfu]df ltg cÍ, t];|f] sf]i6df dfq æ5Ædf -a _]  lrGx nfu]df b'O k|bfg ug]{, cGoyf ;\"Go cÍ k|bfg ug]{ ."]
["ljQLo ;|f]t kl/rfng tyf Joj:yfkg sfo{If]qsf] hDdf",null,null,null,null,null,null,{"$f":"SUM(H55:H99)","v":16},{"$f":"IF(I55=\"\",P3,IF(H100>10,Q1,Q2))","v":"pQm sfo{If]qdf ;kmn ePsf]"}]
[]
[]
["of]hgf tyf sfo{qmd Joj:yfkg ","cfjlws gu/ of]hgf ",20,2,"gu/ k|f]kmfOn tof/ u/L cBfjlws u/]sf]","a",null,{"$f":"IF(I103=\"\",P3,IF(OR(P103=2,P104=2,P105=2,P106=2),P2,IF(L103=4,2,IF(L103=3,1,IF(M103>0,0,P1)))))","v":0},"jL/u+h gu/kflnsfsf] k|f]kmfO{n tof/ ul/Psf] 5 . \ntof/ ug]{ ;+:yfM Olgl;Pl6e k|f=ln= aa/dxn . tof/ ePsf] k|f]kmfon jL/u+h g=kf=df= ldlt @)&)÷!!÷@ b=g+= !!%*! Df btf{ ePsf] t/ gu/kl/ifbaf6 :jLs[t ePsf] /]s8{ kfO{Pg .\ncfjlws gu/ of]hgf tof/ ePsf] 5 . tof/ ug]{ ;+:yf l/A; OlGhlgol/+u sG;N6]G6 k|f=ln=n] ldlt @)^^ ;fndf tof/ u/]sf] 5 . t/ gu/kl/ifbaf6 :jLs[t gePsf] sf/0f ;f] nfu' gePsf] kfOof] . \ngu/ oftfoft u'? of]hgf tof/ ePsf] kfO{Pg .\ncfjlws gu/ of]hgf cg';f/ aflif{s of]hgf tof/ ePsf] kfO{of] pbfx/0fsf] nfuL cfjlws of]hgfsf] l;=g+= @) df kz' lrlsT;fno kbd/f]8 b]lv /fd/fhf k'n ;Ddsf] kLr ;8s cf=j= @)^(÷&) cf=j=df hu]8f sf]ifdf /fvL ;DkGg ePsf] . \ncfjlws of]hgfsf] l;=g+= @% v]b' dxtf] wfg'ssf] 3/ b]lv -j8f g+= !$_ 3/ b]lv l;l;{of vf]nf;Dd kSsL gfnf tyf ;8s agfpg] elgPsf]df cf=j= )^*÷)^( df ;DkGg ePsf] b]lvPsf] . pk/f]Qm cfwf/df cfjlws of]hgfdf k/]sf w]/} of]hgf aflif{s of]hgfdf ;d]l6Psf] b]lvG5 . \ncfjlws gu/ of]hgf @)^^ ;fndf tof/ eO{ @)^^÷)^& ;fn b]lv @)&)÷)&! ;fn;Dd % jif{sf] nfuL tof/ ePsf] / rfn' @)&)÷)&! cf=j=nfO{ ;d6]sf] kfO{of] .","gu/ k|f]kmfO{n cfjlws of]hgf / g=k=lg0f{o",null,{"$f":"COUNTIF(F103:F106,\"a\")","v":2},{"$f":"COUNTIF(G103:G106,\"a\")","v":2},{"$f":"COUNTIF(F103,\"a\")","v":1},0,1,{"$f":"D103","v":2},{"$f":"H103","v":0}]
[null,null,null,null,"cfjlws gu/ of]hgf :jLs[t u/L sfof{Gjogdf NofPsf]",null,"a",null,null,null,null,null,null,0,1,1]
[null,null,null,null,"cfjlws gu/ of]hgf cg';f/ jflif{s of]hgf th'{df u/]sf]]","a",null,null,null,null,null,null,null,1,0,1]
[null,null,null,null,"gu/ oftfoft u'?of]hgf tof/ u/L sfof{Gjogdf NofPsf]]",null,"a",null,null,null,null,null,null,0,1,1]
[null,"dfkg tflnsfsf] ;j} sf]7fsf] æ5Ædf -a _] lrGx nfu]df b'O cÍ k|bfg ug{],  s'g} tLg sf]7fsf] æ5Ædf -a _] lrGx nfu]df Ps cÍ k|bfg ug{], cGo cj:yfdf ;\"Go cÍ k|bfg ug{] ."]
[null,";DefJotf cWoog ",21,2,"krf; nfv ?k}of eGbf a9L nfutsf ;j} cfof]hgfx? kl/ifb\\\\jf6 :jLs[t ug'{ k\"j{ ;DefJotf cWoog u/]/ dfq :jLs[t ul/Psf] .","a",null,{"$f":"IF(I108=\"\",P3,IF(OR(P108=2,P109=2,P110=2),P2,IF(AND(L108=2,N108=1,N110=1),2,IF(AND(L108=2,N109=1,N110=1),1,IF(M108>0,0,P1)))))","v":2},"rfn' cf=j= @)&!÷)&@ sf nfuL %),)),)))÷ eGbf al9 nfutsf :jLs[t cfof]hgf ;+Vof @\n!= a; 6ld{gn cfof]hgf , @= demf}nf zx/ Plss[t zx/L jftfj/0fLo ;'wf/ cfof]hgf\n:jls[t ePsf] %))))))÷– eGbf a9L sf b'j} cfof]hgfsf] ;Defjotf cWoog ePsf] / ;Defjotf cWoogdf ;fdflhs, cfly{s, jftfj/0fLo Pj+ k|fljlws kIfsf ;j} nfut cg'dfg gS;f, l8hfO{g, :k]l;lkms];g, of]hgfsf] lbuf]kg ;DaGwL ljifox? ;dfj]z ePsf 5g\\ .",";Defjotf cWoog k|ltj]bg",null,{"$f":"COUNTIF(F108:F110,\"a\")","v":2},{"$f":"COUNTIF(G108:G110,\"a\")","v":0},{"$f":"COUNTIF(F108,\"a\")","v":1},0,1,{"$f":"D108","v":2},{"$f":"H108","v":2}]
[null,null,null,null,"krf; nfv ?k}of eGbf a9L nfutsf cfof]hgf dWo] sDtLdf krf; k|ltzt cfof]hgfx?sf] ;DefJotf cWoog ul/Psf] .",null,null,null,null,null,null,null,null,0,0,0]
[null,null,null,null,";DefJotf cWoogdf ;fdflhs, cfly{s, jftfj/0fLo Pjd\\ k|fljlws kIfsf ;fy} nfut cg'dfg, gS;f, l8hfO{g, :k]lzlkms]zg cfof]hgfsf] bLuf]]kgf ;DaGwL Go\"gtd ljifox? ;dfj]z ePsf]","a",null,null,null,null,null,null,null,1,0,1]
[null,"dfkg tflnsfsf] klxnf] / t]>f] sf]7fsf] æ5Æ df -a _] lrGx nfu]df b'O cÍ k|bfg ug{], bf]>f] / t]>f] sf]7fsf] æ5Æ df -a _]  lrGx nfu]df Ps cÍ k|bfg ug{], cGoyf jf krf; nfv ?k}of eGbf j9L nfutsf cfof]hgf g} :jLs[t gePsf] cj:yfdf z\"Go cÍ k|bfg ug{] .\n"]
[null,"vl/b Joj:yfkg ",22,4,"rfn' cf= j= sf] nflu :jLs[t sfo{qmdx?sf] jflif{s vl/b of]hgf ut cf= j= sf] cfiff9 d;fGtleq} gu/kflnsf af]8{af6 :jLs[t ePsf] ","a",null,{"$f":"IF(I112=\"\",P3,IF(OR(P112=2,P113=2,P114=2,P115=2,P116=2),P2,IF(L112=5,4,IF(L112=4,3,IF(L112=3,2,IF(M112>0,0,P1))))))","v":3},";a} of]hgfsf] vl/b of]hgf @)&! cfiff9df tof/ e} gu/ kl/ifb\\sf] ljz]if j}7s ldlt @)&!.#.@% sf] lg=g+= @ -v_ cg';f/ vl/b of]hgf / sfo{tflnsf :jLs[t ePsf] .\nc7f/f}+ gu/ kl/ifb\\ @)&).(.@( af6 :jLs[t sfo{qmd cg';f/sf] vl/b of]hgf /x]sf] .\nof]hgf dGqfnodf k7fPsf] ldlt @)&!.#.#! r=g+== !#&$& jf6 .\nof]hgf / sfo{qmdsf] ;+rfng tflnsf g=kf= sf] )&!.#.@% sf] ljz]if kl/ifb\\af6 :jLs[t ePsf] .\nsfo{ ;+rfng tflnsf klqsf dfk{mt ;fj{hlgs ePsf] b]lvPg .\nebidding sf] nflu )&).&! df jL/uGh a; 6ld{gn cfof]hgf ! sf] nflu 7]Ssf e} ljB'tLo dfWodaf6 ;d]t ;+sng ul/Psf] .","g=kf= jf]8{sf] lg0f{o k'l:tsf . dGqfnodf k7fPsf] kqsf] sfof{no k|lt . ",null,{"$f":"COUNTIF(F112:F116,\"a\")","v":4},{"$f":"COUNTIF(G112:G116,\"a\")","v":1},{"$f":"COUNTIF(F112,\"a\")","v":1},0,1,{"$f":"D112","v":4},{"$f":"H112","v":3}]
[null,null,null,null,":jLs[t vl/b of]hgf rfn' cf= j= sf] >fj0f d;fGt leq dGqfnodf k7fPsf]","a",null,null,null,null,null,null,null,1,0,1]
[null,null,null,null,"rfn' cf=j= sf nflu :jLs[t ;a} of]hgf / sfo{qmdsf] ;~rfng tflnsf ut cf= j= df g} g= kf= af]8{af6 :jLs[t ePsf]","a",null,null,null,null,null,null,null,1,0,1]
[null,null,null,null,":jLs[t sfo{;~rfng tflnsf rfn' cf= j= sf] >fj0f d;fGtleq klqsf dfkm{t ;fj{hlgs u/]sf]",null,"a",null,null,null,null,null,null,0,1,1]
[null,null,null,null,"ljB'tLo af]nkq k|0ffnL sfof{Gjogdf NofPsf]","a",null,null,null,null,null,null,null,1,0,1]
[null,"dfkg tflnsfsf] ;a} sf]7fsf] æ5Æ df -a _] lrGx nfu]df rf/ cÍ k|bfg ug{], s'g} rf/ j6f sf]7fsf] æ5Æ -a _] lrGx nfu]df tLg cÍ, s'g} ltgj6f sf]7fsf] æ5Æ df -a _] lrGx nfu]df b'O cÍ k|bfg ug{] / cGo cj:yfdf z\"Go cÍ k|bfg ug]{ ."]
[null,"hfFrkf; tyf km/kmf/s",23,2,";a} cfof]hgf tyf sfo{qmd ;+rfng ug{] ;+:yf jf JolQmaf6 sfo{ ;DkGg ePsf] hfgsf/L k|fKt ePsf]","a",null,{"$f":"IF(I118=\"\",P3,IF(OR(P118=2,P119=2,P120=2,P121=2),P2,IF(L118=4,2,IF(L118=3,1,IF(M118>0,0,P1)))))","v":2},";a} cfof]hgf tyf sfo{qmd ;+rfng ug]{÷lgdf{0f ug]{ ;+:yf, JolQm - pkef]Qmf / 7]s]bf/_ af6 sfo{ ;DkGg ePsf] hfgsf/L g=kf=df k|fKt eP kl5 ef}lts k\"jf{wf/ ;DaGwL cfof]hgfx?sf] k|fljlws d\"NofÍg tyf sfo{;DkGg k|ltj]bg k]z eP kl5 dfq of]hgfsf] vr{ /sd e'QmfgL x'g] u/]sf] 5 . \ncf=j= )&)÷)&! df ;DkGg ePsf of]hgfx?sf] s'n ;+Vof M !*) - gofF !^$ / k'/fgf] !^ ;lxt_\n;DkGg ePsf of]hgf dWo] tf]lsPsf] ;do leq hfFr kfF; ;DkGg ePsf k\"jf{wf/ cfof]hgfsf] ;+Vof M!*) - k'/fgf ljut jif{sf of]hgfsf] ;d]t_\nhfFr kfF; km/kmf/s ePsf of]hgfx?sf] k|ltztM !)) k|ltzt .\n;a} of]hgfsf] km/kmf/s ug'{ k\"j{ gu/kflnsfn] tf]s]sf] sd{rf/L÷;xhstf{sf] pkl:ylt /x]sf] e]nfn] ;fj{hlgs kl/If0f u/]sf]÷u/fPsf] kfO{of] .\nhfFr kf; tyf km/kmf/s ;DaGwdf cf=j= )&@÷)&# sf] gu/ kl/ifbsf] ldlt @)&!÷(÷@^ sf] lg=g+= !) af6 cg'df]bg ePsf] kfO{of] . ","hfr  kf; km/kmf/s  lg)f{o  k':tLsf / ;DkGg of]hgfsf] clen]v",null,{"$f":"COUNTIF(F118:F121,\"a\")","v":4},{"$f":"COUNTIF(G118:G121,\"a\")","v":0},{"$f":"COUNTIF(F118,\"a\")","v":1},0,1,{"$f":"D118","v":2},{"$f":"H118","v":2}]
[null,null,null,null,"sfo{ ;DkGg ePsf] hfgsf/L k|fKt ePkl5 ef}lts k\"jf{wf/ ;DaGwL cfof]hgfx?sf] xsdf cfly{s k|zf;g lgodfjnLsf] lgod #) jdf]lhd k|fljlwsaf6 d\"NofÍg k|ltj]bg k|fKt u/]sf]","a",null,null,null,null,null,null,null,1,0,1]
[null,null,null,null,"sfo{ ;DkGg ePsf] hfgsf/L k|fKt ePsf] ldltn] Ps dlxgfleq sDtLdf gAa] k|ltzt cfof]hgfx?sf] hfFrkf; tyf km/kmf/s u/]sf] ","a",null,null,null,null,null,null,null,1,0,1]
[null,null,null,null,"hfFrkf; tyf km/kmf/s ;DaGwL lg0f{o cg'df]bgsf] nflu gu/kl/ifb\\\\df k]z ePsf] ","a",null,null,null,null,null,null,null,1,0,1]
[null,"dfkg tflnsfsf] ;a} sf]7fsf] æ5Æ df -a _] lrGx nfu]df b'O cÍ k|bfg ug{], sDtLdf tLg j6f sf]7fsf] æ5Æ df -a _] lrGx nfu]df Ps cÍ k|bfg ug{], cGo cj:yfdf z\"Go cÍ k|bfg ug{] . "]
[null,"dd{t ;+ef/ Joj:yf ",24,4,";DkGg ;j} k\"jf{wf/sf of]hgfx?sf] nut - Inventory ) v8f u/L /flvPsf]","a",null,{"$f":"IF(I123=\"\",P3,IF(OR(P123=2,P124=2,P125=2,P126=2,P127=2),P2,IF(L123=5,4,IF(L123=4,3,IF(L123=3,2,IF(L123=2,1,IF(M123>0,0,P1)))))))","v":3},"dd{t ;Def/sf] nfuL ;DkGg %^@ of]hgfsf] nut -OGe]G6«L_ /fv]sf] kfO{of] .\ndd{t ;Def/ ljz]if sf]ifsf] :yfkgf ePsf] 5 .  ljz]if sf]if vftf g]kfn /fi6« a}+sdf !&)$&)@÷))!÷))@@÷%@$ /x]sf] 5 . pQm sf]if vftfdf hDdf /sd ?= !()()%@@.!* /x]sf] 5 . dd{t ;Def/sf] /sdaf6 ;DalGwt k|of]hgsf] nfuL /sd ljlgof]hg u/L dd{t ;Def/sf] Joj:yf ldnfO{Psf] / o;  cf=j=df ;f] dd{t ;Def/ sf]ifsf] /sd ;8s ;Def/sf nfuL ;8s af]8{af6 k|fKt of]hgfdf DoflrË km08sf] ?kdf k|of]u ePsf] 5 . dd{t ;+ef/ sf]ifaf6 sfo{qmd th\"{df u/L dd{t ;DkGg k'jf{wf/ cfof]hgfsf] dd{t ;+ef/ u/]sf] kfOPg . \ndd{t ;Def/sf] nfuL pkef]Qmf;+u ;]jf z'Ns lng] ul/Psf] 5}g . cf=j= )&)÷)&! df dd{t ;Def/sf] nfuL ljlgof]lht /sd ?= $),)),)))÷– vr{ /sd ?= $),)),)))÷ ePsf] 5 .  \no; cf=j= df s'n cfGtl/s cfo M !!,^$,*&,^$#.%%\ndd{t ;Def/ sf]ifdf cfGtl/s cfosf] #=$# k|ltzt ljlgof]hg u/]sf] kfO{of] .","of]hgfsf] nut k':tLsf",null,{"$f":"COUNTIF(F123:F127,\"a\")","v":4},{"$f":"COUNTIF(G123:G127,\"a\")","v":1},{"$f":"COUNTIF(F123,\"a\")","v":1},0,1,{"$f":"D123","v":4},{"$f":"H123","v":3}]
[null,null,null,null,"dd{t ;Def/ ljz]if sf]ifsf] :yfkgf u/]sf]","a",null,null,null,null,null,null,null,1,0,1]
[null,null,null,null,"s\"n cfGtl/s cfosf] sDtLdf tLg k|ltzt /sd dd{t ;Def/ sf]ifdf hDdf u/]sf] ","a",null,null,null,null,null,null,null,1,0,1]
[null,null,null,null,"dd{t ;Def/ sf]ifaf6 sfo{qmd th'{df u/L ;DkGg k\"jf{wf/sf cfof]hgfsf] dd{t ;Def/ u/]sf] .","a",null,null,null,null,null,null,null,1,0,1]
[null,null,null,null,"dd{t ;Def/sf] nflu pkef]Qmf;+u ;]jf z'Ns lng] u/]sf]",null,"a",null,null,null,null,null,null,0,1,{"$f":"N127+O127","v":1}]
[null,"dfkg tflnsfsf] ;a} sf]7fsf] æ5Æ df -a _] lrGx nfu]df rf/ cÍ, s'g} rf/ j6f sf]7fsf] æ5Æ df -a _] lrGx nfu]df tLg cÍ, s'g} ltg j6f sf]7fsf] æ5Æ df -a_]  lrGx nfu]df b'O cÍ / s'g} b'O sf]7fsf] æ5Æ df -a _]  lrGx nfu]df Ps cÍ k|bfg ug{], cGo cj:yfdf z\"Go cÍ k|bfg ug{] . "]
[null,"cfof]hgf ;~rfngdf kf/blz{tf ",25,2,";a} cfof]hgf / sfo{qmdsf] ;fj{hlgs÷;fd'bflos k/LIf0f  u/]sf] ","a",null,{"$f":"IF(I129=\"\",P3,IF(OR(P129=2,P130=2,P131=2,P132=2),2,IF(AND(L129=3,N129=1,N131=1,N132=1),2,IF(AND(L129=3,N130=1,N131=1,N132=1),1,IF(M129>0,0,P1)))))","v":2},";DkGg k\"jf{wf/ cfof]hgfsf] ;+Vof  M !*) \n;fj{hlgs kl/If0f u/]sf] cfof]hgfsf] ;+Vof M !*)\nk|fKt ljj/0f cg';f/ ;j} of]hgf ;DkGg ePkl5 km/kmf/s ug'{ k\"j{ ;fj{hlgs kl/If0f ug]{ u/]sf] kfO{of] .\n- ;a} lsl;dsf 7]Ssf k§faf6 ;+rflnt / pkef]Qmf ;ldltaf6 ;+rflnt _ of]hgfx?sf] ;fj{hlgs kl/If0f u/fO{Psf] kfO{of] . \n?= %,)),)))÷ eGbf dflysf of]hgf ;+Vof M $^, \n?= %,)),)))÷– eGbf dflysf ;a} of]hgfsf] cfof]hgf :yndf ;\"rgf kf6L /fv]sf] hfgsf/L k|fKt ePsf] . ;\"rgfkf6Lsf] lvlrPsf kmf]6faf6 ;f]xL Joxf]/f k'li6 ePsf] t/ gu/ If]qsf sltko of]hgfsf] ;\"rgfkf6L x/fO{ ;s]sf] hfgsf/L k|fKt ePsf] ",";fj{hlgs kl/If)fk|ltj]bg / of]hgf  k':tLsf",null,{"$f":"COUNTIF(F129:F132,\"a\")","v":3},{"$f":"COUNTIF(G129:G132,\"a\")","v":0},{"$f":"COUNTIF(F129,\"a\")","v":1},0,1,{"$f":"D129","v":2},{"$f":"H129","v":2}]
[null,null,null,null,"pkef]Qmf ;ldltx?af6 ;~rflnt cfof]hgfx?sf] dfq ;fj{hlgs÷ ;fd'bflos k/LIf0f u/]sf]   ",null,null,null,null,null,null,null,null,0,0,0]
[null,null,null,null,";fj{hlgs÷ ;fd'bflos k/LIf0fdf gu/kflnsfn] tf]s]sf] sd{rf/L÷;xhstf{sf] pkl:ylt /x]sf]","a",null,null,null,null,null,null,null,1,0,1]
[null,null,null,null,"kfFr nfv ?k}of jf ;f] eGbf j9L nfutsf ;j} cfof]hgfx?sf] cfof]hgf:yndf ;\"rgf kf6L /fv]sf]","a",null,null,null,null,null,null,null,1,0,1]
[null,"dfkg tflnsfsf] klxnf], t];|f] / rf}yf] sf]7fsf] æ5Æ df -a _]  lrGx nfu]df b'O, bf]>f], t];|f] / rf}yf] sf]7fsf] æ5Æ df -a _]  lrGx nfu]df Ps cÍ k|bfg ug{], cGoyf z\"Go cÍ k|bfg ug]{ ."]
[null,"cg'udg tyf d\"NofÍg",26,2,"cg'udg tyf ;'k/Lj]If0f ;ldlt u7g eO lqmoflzn /x]sf]",null,"a",{"$f":"IF(I134=\"\",P3,IF(OR(P134=2,P135=2,P136=2,P137=2),P2,IF(L134=4,2,IF(L134=3,1,IF(M134>0,0,P1)))))","v":0},":yfgLo lgsfo >f]t kl/rfng sfo{ljlw adf]lhd cg'udg tyf ;'kl/j]If0f ;ldlt u7g u/]sf] kfO{Pg . ","cg'udg / ;'kl/j]If)f  a}&s k':tLsf tyff g=kf= af]*{sf] lg)f{o  ",null,{"$f":"COUNTIF(F134:F137,\"a\")","v":0},{"$f":"COUNTIF(G134:G137,\"a\")","v":4},{"$f":"COUNTIF(F134,\"a\")","v":0},1,1,{"$f":"D134","v":2},{"$f":"H134","v":0}]
[null,null,null,null,"cg'udg k|ltj]bg kmf/fd tof/ u/L nfu' ePsf]",null,"a",null,null,null,null,null,null,0,1,1]
[null,null,null,null,"cg'udg k|ltj]bg pk/ af]8{ a}7sdf 5nkmn tyf lg0f{o x'g] u/]sf]",null,"a",null,null,null,null,null,null,0,1,1]
[null,null,null,null,"cg'udg ul/Psf cfof]hgf tyf sfo{qmdx?sf] nut v8f u/L /flvPsf]",null,"a",null,null,null,null,null,null,0,1,1]
[null,"dfkg tflnsfsf] ;j} sf]7fsf] æ5Æ df -a _]  lrGx nfu]df b'O ,s'g} ltgj6f sf]7fsf] æ5Æ df  -a _] lrGx nfu]df Ps cÍ k|bfg ug{], cGoyf z\"Go cÍ k|bfg ug]{ ."]
[null,";fdflhs k/LIf0f ",27,2,";fdflhs k/LIf0fdf pkl:yltsf nflu ;a} ;/f]sf/jfnfnfO ldlt, ;do / :yfg tf]sL ;\"rgf u/]sf]","a",null,{"$f":"IF(I139=\"\",P3,IF(OR(P139=2,P140=2,P141=2,P142=2),P2,IF(L139=4,2,IF(AND(L139=3,N140=1),1,IF(M139>0,0,P1)))))","v":1},";fdflhs kl/If0fsf] nfuL ;/f]sf/jfnfnfO{ pkl:yltsf] nfuL k7fO{Psf] kqsf] ldlt @)&)÷&÷% r=g+= $!*$  . dfWod ef]hk'/L b}lgsdf ldlt @)&)_÷&÷!@ df c+s %! Dff tyf k|Hjn b}lgs, hge08f/ b}lgs nufot klqsfaf6  ;j{;fwf/0fnfO{ pkl:yltsf] nfuL cfx\\jfg ul/Psf] . \nldlt @)&)÷&÷!$ sf] a}7s lg=g+= ! cg';f/ ;fdflhs kl/If0fsf] k|f/lDes k|ltj]bg tof/ u/L e]nfdf 5nkmn u/fO{Psf] b]lvof] .\n;fdflhs kl/If0fsf] nfuL e]nf ;DkGg ldlt @)&)÷&÷!$ pkl:ylt ;+Vof (# :yfg g=kf= v'Nnf rf}/\n;fdflhs kl/If0f ug]{ u/fpg] ;+:yfsf] gfd M PsfpG6oflalnl6 Olgl;Pl6e k|f=ln=, sf7df08f} .\nclGtd k|ltj]bg dGqfnodf k7fPsf] ldlt M @)&)÷*÷@% r=g+= %@@% sf] kqaf6\nclGtd k|ltj]bg ;DaGwdf gu/ kl/ifbaf6 lg0f{o ePsf] ldlt M @)&)÷(÷@( lg=g+= !*",";fdflhs kl/If)f k|ltj]bg  / lg)f{ox? ",null,{"$f":"COUNTIF(F139:F142,\"a\")","v":3},{"$f":"COUNTIF(G139:G142,\"a\")","v":1},{"$f":"COUNTIF(F139,\"a\")","v":1},0,1,{"$f":"D139","v":2},{"$f":"H139","v":1}]
[null,null,null,null,"pQm e]nfdf ;fdflhs k/LIf0fsf] k|f/lDes k|ltj]bg k]z u/L 5nkmn u/]sf]","a",null,null,null,null,null,null,null,1,0,1]
[null,null,null,null,";fdflhs k/LIf0fsf] clGtd k|ltj]bg tof/ u/L e]nf ;DkGg ePsf] ldltn] Ps dlxgf leq dGqfnodf k7fPsf]",null,"a",null,null,null,null,null,null,0,1,1]
[null,null,null,null,";fdflhs k/LIf0fsf] clGtd k|ltj]bg gu/kl/ifb\\\\ ;dIf k]z u/]sf]","a",null,null,null,null,null,null,null,1,0,1]
[null,"dfkg tflnsfsf] ;j} sf]7fsf] æ5Æ df -a _]  lrGx nfu]df b'O cÍ k|bfg ug{], bf]>f]] ;lxt s'g} tLg sf]7fsf] æ5Æ df -a _]  lrGx nfu]df Ps cÍ k|bfg ug]{, cGoyf z\"Go cÍ k|bfg ug{] .",null,null,null,null,null,null,null,null,null,null,null,0,0,0]
["of]hgf tyf sfo{qmd Joj:yfkg sfo{If]qsf] hDdf",null,null,null,null,null,null,{"$f":"SUM(H103:H143)","v":13},{"$f":"IF(I103=\"\",P3,IF(H144>7,Q1,Q2))","v":"pQm sfo{If]qdf ;kmn ePsf]"}]
[]
[]
[";+u&g tyf hgzlQm ljsf; ","sd{rf/Lsf] sfo{ ljj/0f tyf dfl;s a}7s ",28,2,";a} sd{rf/Lx?nfO{ lnlvt ?kdf sfo{ ljj/0f pknJw u/fOPsf]  ",null,"a",{"$f":"IF(I147=\"\",P3,IF(OR(P147=2,P148=2,P149=2,P150=2,P151=2),P2,IF(AND(L147=4,N147=1,N149=1,N150=1,N151=1),2,IF(AND(L147=4,N148=1,N149=1,N150=1,N151=1),1,IF(M147>0,0,P1)))))","v":0},"sfo{ ljj/0f sfof{no ;xof]uL jfx]s cgo ;a} !(* hgf sd{rf/Lx?nfO{ pknJw u/fOPsf] .\nh:t} zfvf k|d'vx? ;a} tyf cGonfO{ sfo{ ljj/0f lbPsf] kfOof] . dfl;s j}7s lgDg cg';f/ j;]sf] j}7s k'l:tsfjf6 b]lvG5 .\n ldlt                   pkl:ylt\n @)&).$.#!                    @@\n @)&).%.!&                    !%\n @)&).^.(                     @(\n @)&).&.$                     !%\n @)&).&.@%                    @#\n @)&).(.&                     @)\n @)&).!).!(                   !(\n @)&).!!.@^                    !*\n @)&).!@.!&                    !(\n @)&!.!.@*                     !)\n @)&!.@.#)\n @)&!.#.!&\nsfo{/t s\"n sd{rf/L ;+Vof %%(, l/Qm %& -)&).(.@( ;Dd_ . sd{rf/Lsf] d\"NofÍgsf] nflu ;\"rs agfO{ nfu\" ul/Psf] b]lvPg . ;\"rs cfwf/df d\"NofÍg ug]{ ul/Psf] klg b]lvPg . ","sd{rf/L a}7s k'l:tsf . lnlvt sfo{ljj/0fsf kqx?, sd{rf/L d\"NofÍg kmf/fd .",null,{"$f":"COUNTIF(F147:F151,\"a\")","v":2},{"$f":"COUNTIF(G147:G151,\"a\")","v":3},{"$f":"COUNTIF(F147,\"a\")","v":0},1,1,{"$f":"D147","v":2},{"$f":"H147","v":0}]
[null,null,null,null,"lnlvt sfo{ ljj/0f sfof{no ;xof]uL afx]s cGo ;a} sd{rf/LnfO{ pknJw u/fOPsf] .","a",null,null,null,null,null,null,null,1,0,1]
[null,null,null,null,"sfo{ ljj/0fsf cfwf/df sd{rf/Lsf] d\"NofÍgsf ;\"rs agfO nfu\" u/]sf] ",null,"a",null,null,null,null,null,null,0,1,1]
[null,null,null,null,";\"rssf cfwf/df d\"NofÍg u/L sDtLdf Ps hgf pTs[i7 sd{rf/LnfO k'/:s[t u/]sf]",null,"a",null,null,null,null,null,null,0,1,1]
[null,null,null,null,"Ps dlxgfdf Ps k6s kg]{ u/L jif{df sDtLdf 5 k6s dfl;s sd{rf/L a}7s a;]sf]","a",null,null,null,null,null,null,null,1,0,1]
[null,"dfkg tflnsfsf] klxnf], t];|f], rf}yf], kfrf}+ sf]7fsf] æ5Æ df -a _]  lrGx nfu]df b'O cÍ k|bfg ug]{, bf];|f], t];|f], rf}yf], / kfFrf} sf]7fsf] æ5Æ df -a _]  nfu]df Ps cÍ k|bfg ug]{, cGoyf z\"Go cÍ k|bfg ug]{ ."]
[null,";]jf k|jfx Joj:yfkg ",29,2,"cBfjlws Gfful/s a8fkq ;a}n] b]Vg] u/L /fv]sf]","a",null,{"$f":"IF(I153=\"\",P3,IF(OR(P153=2,P154=2,P155=2),P2,IF(L153=3,2,IF(AND(L153=2,N153=1,N154=1),1,IF(M153>0,0,P1)))))","v":2},"cWofjlws gful/s a8fkq ;a}n] b]Vg] u/L /fv]sf] 5 . \nljlgod sfo{ljlw jf  lgb]{lzsf tof/ u/L ;f]xL adf]lhd sfo{ ;+rfng u/] u/fO{Psf] kfO{of] .\ntof/L u/L nfu' ePsf lalgod sfo{ljlw jf lalgodfjnL, lgb]{lzsf lgDg cg';f/ ePsf] kfO{of] . \n!= sd{rf/L sNof0f sf]if ;+rfng ljlgodfjnL kl/ifbaf6 :jLs[t ldlt  @)^&÷!÷#!\n@= cfly{s k|zf;g ;DaGwL ljlgod @)^& kl/ifbaf6 :jLs[t ldlt @)^&÷!÷#!\n#= sd{rf/L k|zf;g ljlgodfjnL @)^& kl/ifbaf6 :jLs[t ldlt @)^&÷!÷#!\npk/f]Qm ljlgod, ljlgodfjnL lg0f{o ldlt b]lv g} nfu' x'g] Joj:yf ePsf] sf/0f ldlt @)^&÷!÷#! b]lv g} nfu' ePsf 5g\\ .\npk/f]Qm gful/s a8f kq ljlgold sfo{ljlw tyf lgb]{lzsf adf]lhd sfo{ e} /x]sf] kfO{of] .","gful/s j8f  kq / :jLs[t lgb]{zLsf, lalgodfjnL  / g=k= lg0f{o",null,{"$f":"COUNTIF(F153:F155,\"a\")","v":3},{"$f":"COUNTIF(G153:G155,\"a\")","v":0},{"$f":"COUNTIF(F153,\"a\")","v":1},0,1,{"$f":"D153","v":2},{"$f":"H153","v":2}]
[null,null,null,null,"sDtLdf tLg j6f ljlgod÷sfo{ljlw÷ lgb]{lzsfx? :jLs[t u/L nfu\" ePsf] ","a",null,null,null,null,null,null,null,1,0,1]
[null,null,null,null,"gful/s a8fkq tyf sfo{ljlw adf]lhd sfo{ k|lqmof ;~rfng u/]sf] ","a",null,null,null,null,null,null,null,1,0,1]
[null,"dfkg tflnsfsf] ;j} sf]7fsf] æ5Æ df -a _] lrGx nfu]df b'O cÍ k|bfg ug{], klxnf] / bf]>f] sf]7fsf] æ5Æ df -a _] lrGx nfu]df Ps cÍ k|bfg ug{], cGoyf z\"Go cÍ k|bfg ug]{ ."]
[null,"sd{rf/L sNof0f sf]if ",30,2,"sd{rf/Lx?sf] Ps dlxgfsf] tnj a/fa/ /sd sd{rf/L sNof0f sf]ifdf hDdf u/]sf] ","a",null,{"$f":"IF(I157=\"\",P3,IF(OR(P157=2,P158=2),P2,IF(L157=2,2,IF(AND(L157=1,N157=1),1,IF(M157>0,0,P1)))))","v":2},"sd{rf/L sNof0f sf]ifsf] vftf g+= )!(!))&&@&))@&, ;g/fOh j}Í ln= df ePsf] kl5 )!()))*^) ;L sfod ePsf] .\nut jif{sf] tnj dfg cg';f/ dfl;s kfl/>lds rfn' / k\"+hLut ;d]t ?=!,)&,#),%&).@#\nbflvnf /sdsf] ljj/0f\n    ldlt      s'g vftfaf6      /sd             vftf g+=\n  @)&).!!.%     rfn' vftf        !),)),))).–     )!(!))&&@&))@&\n  @)&).!@.@$   rfn' vftf        @#,)),))).–     )!(!))&&@&))@&\n  @)&).!@.@$   k\"+hLut vftf     @*,^$,%)).–\n  @)&).(.(      k\"hLut vftf     %),%%,)().–    )!()))*^) ;L\n  @)&).^.&      k'hLut vftf     #@,)),))).–    )!()))*^) ;L\njL/uGh pkdxfgu/kflnsfsf] sd{rf/L sNof0f sf]if ljlgodfjnL @)^& jg]sf] tyf @)^&.!.#! df a;]sf] gu/ kl/ifb\\n] :jLs[t u/]sf] / :jLs[t ldltjf6 nfu' x'g] n]lvPsf] .\nsd{rf/L sNof0f sf]ifdf ! dlxgfsf] tnj dfg eGbf a9L /sd bflvnf ePsf] b]lvG5 .","sd{rf/L sNof0f sf]if lgb]{lzsf –@)^* / sd{rf/Lx?sf] k]/f]n",null,{"$f":"COUNTIF(F157:F158,\"a\")","v":2},{"$f":"COUNTIF(G157:G158,\"a\")","v":0},{"$f":"COUNTIF(F157,\"a\")","v":1},{"$f":"COUNTIF(G157,\"a\")","v":0},1,{"$f":"D157","v":2},{"$f":"H157","v":2}]
[null,null,null,null,"sd{rf/L sNof0f sf]if ;~rfng ;DjGwL lgb]{lzsf gu/kl/ifb\\\\jf6 :jLs[t u/L nfu\" u/]sf]","a",null,null,null,null,null,null,null,{"$f":"COUNTIF(F158,\"a\")","v":1},{"$f":"COUNTIF(G158,\"a\")","v":0},1]
[null,"dfkg tflnsfsf] ;a} sf]7fsf] æ5Æ df -a _] lrGx nfu]df b'O cÍ k|bfg ug{], klxnf] sf]7fsf] æ5Æ df -a _] lrGx nfu]df Ps cÍ k|bfg ug]{ cGoyf z\"Go cÍ k|bfg ug{] ."]
[null,";]jf s/f/",31,2,";]jf s/f/df lng] gu/kl/ifb\\\\\\af6 lg0f{o ePsf] ",null,"a",{"$f":"IF(I160=\"\",P3,IF(OR(P160=2,P161=2,P162=2,P163=2),P2,IF(L160=4,2,IF(AND(L160=3,N162=1),1,IF(M160>0,0,P1)))))","v":0},"ut cf=j= df ;]jf s/f/ lng s'g} kbsf] nflu s'g} lg0f{o ePsf] 5}g .\nut cf=j= df c:yfoL lgo'Qm ePsf] 5}g . \n:yfoL sfo{/tnfO{ cfGtl/s j9'jf dfq ePsf] kbk\"lt{ ;ldltsf] j}7sjf6 b]lvG5 .\n;+:yfut ;]jf s/f/ glnPsf] b]lvof] . \n;xof]uL sd{rf/Lsf] sfd ;]jf s/f/af6 ePsf] 5}g .","gu/ kl/ifbsf] lg0f{o k'l:tsf .            s/f/ ;Demf}tfx?  .",null,{"$f":"COUNTIF(F160:F163,\"a\")","v":2},{"$f":"COUNTIF(G160:G163,\"a\")","v":2},{"$f":"COUNTIF(F160,\"a\")","v":0},1,1,{"$f":"D160","v":2},{"$f":"H160","v":0}]
[null,null,null,null,"c:yfoL k|s[lt / ;xof]uL sd{rf/Lsf] sfd ;]jf s/f/df lbPsf] ","a",null,null,null,null,null,null,null,1,0,1]
[null,null,null,null,"c:yfoL k|s[ltsf] sfd jf ;xof]uL :t/n] ug]{ sfdsf nflu c:yfoL sd{rf/L egf{ gu/]sf]","a",null,null,null,null,null,null,null,1,0,1]
[null,null,null,null,"crn ;DklQx?sf] ;~rfng tyf dd{t ;Def/ ;DaGwL sfo{ -;fj{hlgs zff}rfnosf] ;kmfO{ tyf ;~rfng, kfs{ ;~rfng, ;/;kmfO{ cflb sfo{_ ;]jf s/f/ af6 ;Dkfbg ul/Psf] ",null,"a",null,null,null,null,null,null,0,1,1]
[null,"dfkg tflnsfsf] ;j} sf]7fsf] æ5Æ df -a _] lrGx nfu]df b'O cÍ k|bfg ug{], t];|f] ;lxt s'g} tLg sf]7fsf] æ5Æ df -a _] lrGx nfu]df Ps cÍ k|bfg ug{] / cGoyf z\"Go cÍ k|bfg ug{] ."]
[null,"cfrf/ ;+lxtf tyf ;DklQ ljj/0f ",32,2,"g kf jf]8{sf ;b:ox?sf] cfrf/ ;+lxtf th'{df u/L ;fj{hlgs u/]sf]",null,"a",{"$f":"IF(I165=\"\",P3,IF(OR(P165=2,P166=2,P167=2,P168=2),P2,IF(L165=3,2,IF(L165=2,1,IF(M165>0,0,P1)))))","v":1},"gu/kflnsf af]8{ gePsf] sf/0f af]8{ ;b:ox?sf] cfrf/;+lxtf th'{df gu/]sf] t/ gu/ kl/ifb / gu/kflnsf af]8{sf] ;d]t sfd ug]{ sfo{sf/L clws[tn] lghfdlt ;]jf P]gsf] cfrf/;+lxtf kfng ug'{ kg]{ ePsf]n] yk cfrf/;+lxtf th'{df gePsf] . \ns'n sd{rf/L ;+Vof M -%%(:yfoL_\ns'n sd{rf/L b/jGbL M ^!^ - xfn l/St %& eO{ sfo{/t %%(_ \ncf=j= )^(÷)&) sf] ;DklQ lj/0f k]z ug]{ sd{rf/Lsf] ;+Vof M %%( ;DklQ ljj/0f k]z ePsf] ldlt @)&)÷$÷# b]lv ldlt @)&)÷%÷@* ;Dddf ljleGg ldltdf \nk]z ePsf] ;DklQ ljj/0f jL/u+h pk–dxfgu/kjflnsfsf] r=g+= @(%$÷)&)÷)&! ldlt @)&)÷%÷#) sf] kqaf6 ;+3Lo dfldnf tyf :yfgLo ljsf; dGqfnodf k7fO{Psf] 5 . ",":jLs[t cfrf/ ;+lxtf / clen]v ",null,{"$f":"COUNTIF(F165:F167,\"a\")","v":2},{"$f":"COUNTIF(G165:G167,\"a\")","v":1},{"$f":"COUNTIF(F165,\"a\")","v":0},1,1,{"$f":"D165","v":2},{"$f":"H165","v":1}]
[null,null,null,null,"ut cfly{s aif{ k|f/De ePsf] ;f7L lbg leq gu/kflnsfsf ;a} kbflwsf/L tyf sd{rf/Lx?n] ;DklQ ljj/0f k]z u/]sf]","a",null,null,null,null,null,null,null,1,0,1]
[null,null,null,null,"g kf af]8{sf ;j} ;b:ox?sf] ;Dklt ljj/0f gu/kflnsf sfo{fnodf ut cf=j=k|f/De ePsf] ;f7L lbg leq k]z ePsf]","a",null,null,null,null,null,null,null,1,0,1]
[null,"dfkg tflnsfsf] ;j} sf]7fsf] æ5Æ df -a _] lrGx nfu]df b'O cÍ k|bfg ug{], s'g} b'O j6f  sf]7fsf] æ5Æ df -a _] lrGx nfu]df Ps cÍ k|bfg ug{], cGoyf z\"Go cÍ k|bfg ug{] .",null,null,null,null,null,null,null,null,null,null,null,0,0,0]
[";+u7g tyf hgzlQm ljsf; sfo{If]qsf] hDdf",null,null,null,null,null,null,{"$f":"SUM(H147:H168)","v":5},{"$f":"IF(I147=\"\",P3,IF(H169>3,Q1,Q2))","v":"pQm sfo{If]qdf ;kmn ePsf]"}]
[]
[]
["zx/L cfwf/e\"t ;]jf Joj:yfkg ",";/;kmfO{ tyf kmf]x/ Joj:yfkg ",33,4,"jflif{s sfo{qmddf kmf]x/ Joj:yfkg ;DaGwL sfo{ ;dfj]z ePsf] ","a",null,{"$f":"IF(I172=\"\",P3,IF(OR(P172=2,P173=2,P174=2,P175=2,P176=2,P177=2,P178=2),P2,IF(L172=7,4,IF(L172=6,3,IF(L172=5,2,IF(M172>0,0,P1))))))","v":0},"cf=j= )&)÷)&! sf] aflif{s sfo{qmddf kmf]xf]/ Joj:yfkg sfo{qmd ;dfj]z ePsf] 5 . cf=j= )&)÷)&! sf] gu/kflnsf of]hgf tyf sfo{qmdnfO{ kmf]xf]/nfO{ >f]tdf g} juL{s/0f u/L k'gM k|of]u ug]{ sfo{qmd nfu\" ul/Psf] 5}g . kmf]xf]/nfO{ juL{s[t gug]{ Joj:yf gul/Psf] sf/0f 5'§f 5'§} ;+sng ug]{ ul/Psf] 5}g . kmf]xf]/nfu{ tx nufpg] clGtd :ynsf] 5gf}6 ePsf] 5 . ;f] :yn af/f lhNnfsf] e]l8ofxL–& / O{l6ofxL–( aLrdf /x]sf] 5 .  ;f] :ynnfO{ Jojl:yt agfpg] sfo{ z'? ePsf] 5 . kmf]xf]/ d}nf Joj:yfkgdf tLg j6f j8fsf] s]xL If]qdf lghL If]q;+u ;xsfo{ eO{ /x]sf] 5 . ;f] ;xsfo{ ug]{ ;+:yf ln8\\; jL/u+h /x]sf] / ;f] ;+:yfsf] ;xsfo{af6 kmf]xf]/ d}nf Joj:yfkg Jojl:yt ug]{ sfo{ e} /x]sf] 5 . tLg j6f j8fdf  lghL If]q tyf ;fdflhs ;+:yf;+u ;xsfo{ u/L lghL If]qnfO{ ;+nug u/fpg] k|of; eO{/x]sf] 5  .","of]hgf k':tLsf :ynut lgl/If0fjf6 k|fKt hfgsf/L ",null,{"$f":"COUNTIF(F172:F178,\"a\")","v":4},{"$f":"COUNTIF(G172:G178,\"a\")","v":3},{"$f":"COUNTIF(F172,\"a\")","v":1},0,1,{"$f":"D172","v":4},{"$f":"H172","v":0}]
[null,null,null,null,"kmf]x/nfO h}ljs / ch}ljs ?kdf ;|f]td} jlu{s/0f ug]{ sfo{qmd sDtLdf kRrL; k|ltzt j8fx?df nfu\" u/]sf]",null,"a",null,null,null,null,null,null,0,1,1]
[null,null,null,null,"jlu{s[t kmf]x/nfO 5'6\\6f 5'6\\6} ;Íng ug]{ u/]sf]",null,"a",null,null,null,null,null,null,0,1,1]
[null,null,null,null,"kmf]x/ Joj:yfkg sfo{df lghL÷;fd'bflos If]qnfO kl/rfng u/]sf]","a",null,null,null,null,null,null,null,1,0,1]
[null,null,null,null,"kmf]x/nfO Jojl:yt 9Ën] clGtd ?kdf tx nufpg] :ynsf] Joj:yf u/]sf]","a",null,null,null,null,null,null,null,1,0,1]
[null,null,null,null,"kmf]x/sf] k'g k|of]u tyf k|zf]wg ;DaGwL sfo{ u/]sf]",null,"a",null,null,null,null,null,null,0,1,1]
[null,null,null,null,"kmf]x/ Joj:yfkg ;DaGwL hgr]tgf sfo{qmd ;~rfng u/]sf]","a",null,null,null,null,null,null,null,1,0,1]
[null,"dfkg tflnsfsf] ;a} sf]7fsf] æ5Æ df -a _] lrGx nfu]df rf/ cÍ , s'g}  5 j6f sf]7fsf] æ5Æ df -a _] lrGx nfu]df tLg cÍ, s'g} kfFr j6f sf]7fsf] æ5Æ df -a _] 7Ls lrGx nfu]df b'O cÍ k|bfg ug{], cGoyf z\"Go cÍ k|bfg ug{] ."]
[null,"jftfj/0f Joj:yfkg",34,4,"jftfj/0fLo k|efj d\"NofÍg (EIA) ÷ k|f/lDes jftfj/0fLo k/LIf0f (IEE) ug'{ kg]{df u/]sf] ","a",null,{"$f":"IF(I180=\"\",P3,IF(OR(P180=2,P181=2,P182=2,P183=2,P184=2,P185=2,P186=2),P2,IF(AND(L180>=5,N180=1,N181=1),4,IF(AND(L180=4,N180=1,N181=1),3,IF(AND(L180>=3,N181=1),2,IF(M180>0,0,P1))))))","v":0},"jL/u+h g=kf=df  cf=j= )&)÷)&! df  O{=cfO{=P= ug'{ kg]{ of]hgf ;+Vof ! / cfO{=O{= ug'{ kg]{ of]hgf ;+Vof ! ;d]t O{=cfO{=P / cfO{=O{= ug'{ kg]{ @ of]hgf ePsf] kfO{of] . O{=cfO{=P ug'{ kg]{ of]hgfsf] gfd aL=p=d=g=kf= Nof8 lkmN8 ;fO{6 tyf cfO{=O{= ug'{ kg]{ of]hgf demf}nf zx/ Plss[t jftfj/0fL ;'wf/ cfof]hgf /x]sf 5g\\ . \njL/u+h pk–dxfgu/kflnsfdf /x]sf] s'n ;8s nDafO{ ;+Vof o; k|sf/ /x]sf] 5. \nsRrL ;8s M $*=@% ls=dL,   u|fe]n ;8s M *^=%& lsdL, lkr ;8s M%@=** lsdL, cGo ;8s $$=$* lsdL /x]sf] kfO{of] . \ngu/ If]qleq j[Iff /f]k0f ePsf] v08sf] gfd / nDafO{ lgDg cg';f/ ePsf] hfgsf/L k|fKt ePsf] 5 . \nkfj/xfp; rf}s b]lv blIf0f 306f3/;Dd @ lsdL, 306f3/ b]lv k\"j{ efg' rf}s ;Dd ! lsdL, ;d]t hDdf # sL=dL= k\"n ;8s, ;8s nDafO{sf] !) k|ltzt b]lvPg . \nhnjfo' kl/jt{g k|efj Go\"lgs/0f ug{ :ki6 cg's'ng sfo{qmd th'{df u/L sfof{Gjog gu/]sf] sf/0f ;f]sf] nfuL ah]6 ljlgof]hg ePsf] kfO{Pg t/ gu/kflnsf / lgDa; aLr xl/ofnL Joj:yfkg af/] ;Demf}tf ePsf] 5 . lgDa;n] vr{ Joxf]g]{ ePsf] kfO{of] . \njftfj/0f zfvf OsfO{ u7g ePsf] kfO{Pg . \njftfj/0f ;Dks{ JolQm tf]s]sf] kfO{Pg . \njftfj/0f ;+/If0f ljz]if sf]if g/x]sf] ;f]xL sf/0f vftf g+= / /sd gePsf] .\njftfj/0f ljz]if sf]if g/x]sf], /sd g/x]sf] sf/0f jftfj/0f If]qdf vr{ x'g ;Sg] cj:yf gePsf] .\ncf=j= )&)÷)&! df gu/ kl/ifbaf6 :jR5 tyf jftfj/0f / ;/;kmfO{ jftfj/0f gLlt eg] kfl/t ePsf] .  ","aftfj/0f clen]v / ;8s laj/0f",null,{"$f":"COUNTIF(F180:F186,\"a\")","v":1},{"$f":"COUNTIF(G180:G186,\"a\")","v":5},{"$f":"COUNTIF(F180,\"a\")","v":1},0,1,{"$f":"D180","v":4},{"$f":"H180","v":0}]
[null,null,null,null,"gu/If]qsf ;8ssf bfofF afofF j[Iff/f]k0f u/L xl/ofnL sfod u/]sf]",null,"a",null,null,null,null,null,null,0,1,1]
[null,null,null,null,"-k|To]s jif{ s\"n ;8ssf] slDtdf !)∞ ;8sdf j[Iff/f]k0f u/L ;+/If0f ug'{k5{ _",null,null,null,null,null,null,null,null,0,0,0]
[null,null,null,null,"jftfj/0f ;+/If0f sfo{qmd th'{df u/L nfu\" u/]sf] ",null,"a",null,null,null,null,null,null,0,1,1]
[null,null,null,null,"hnjfo\" kl/jt{gsf k|efj Go\"lgs/0f ug{ cg's\"ngsf sfo{qmd th'{df u/L sfof{Gjog u/]sf]",null,"a",null,null,null,null,null,null,0,1,1]
[null,null,null,null,"jftfj/0f zfvf÷OsfO÷:yfkgf u/L jf ;Dks{ JolQm tf]sL sfo{ lhDdjf/L :ki6 tf]lsPsf]",null,"a",null,null,null,null,null,null,0,1,1]
[null,null,null,null,"jftfj/0f ;+/If0f ljz]if sf]if v8f u/L ah]6 lgsfzf u/]sf]",null,"a",null,null,null,null,null,null,0,1,1]
[null,"dfkg tflnsfsf] klxnf] / bf];|f] ;lxt s'g} kfFr sf]7fsf] æ5Æ df -a _] lrGx nfu]df rf/ cÍ, klxnf] / bf];|f] ;lxt s'g} rf/ j6f sf]7fsf] æ5Æ df -a _] lrGx nfu]df tLg cÍ, bf];|f] ;lxt s'g} tLg j6f sf]7fsf] æ5Æ df -a _] lrGx nfu]df b'O cÍ k|bfg ug]{, cGoyf z\"Go cÍ k|bfg ug{] ."]
[null,";jf/L ;fwg kfls{Ë Joj:yfkg ",35,2,"gu/ If]qleq j;kfs{sf] Joj:yf u/]sf]","a",null,{"$f":"IF(I188=\"\",P3,IF(OR(P188=2,P189=2,P190=2),P2,IF(L188=3,2,IF(L188=2,1,IF(M188>0,0,P1)))))","v":2},"gu/ If]qdf a; kfs{ /x]sf] :yfg  j8f g+= !( efg' rf]s .\na; kfs{sf] Ifdtf M #%) a; c6\\g ;Sg] If]=km= %–!$–) -lj3f_\nxfnsf] a; kfs{df lgDg ;'ljwf pknAw u/fPsf 5g\\ \n!= rd]gf u[x, @= zf}rfno, #= kfgL, $= aQL, %= ofq' k|ltIffno, \njL/u+h g=kf=af6 cGoq hfg] ;jf/L ;fwg a;kfs{af6 dfq 5'6\\g] Joj:yf ldnfO{Psf] 5 . ","sfof{no clen]v",null,{"$f":"COUNTIF(F188:F190,\"a\")","v":3},{"$f":"COUNTIF(G188:G190,\"a\")","v":0},{"$f":"COUNTIF(F188,\"a\")","v":1},0,1,{"$f":"D188","v":2},{"$f":"H188","v":2}]
[null,null,null,null,"j;kfs{df zf}rfno,kfgL tyf aQLsf] Joj:yf ePsf]","a",null,null,null,null,null,null,null,1,0,1]
[null,null,null,null,"tf]lsPsf] a;kfs{df dfq a; kfls{Ësf] Joj:yf u/]sf]","a",null,null,null,null,null,null,null,1,0,1]
[null,"dfkg tflnsfsf] ;a} sf]7fsf] æ5Æ df -a _] lrGx nfu]df b'O cÍ k|bfg ug{], s'g} b'Oj6f sf]7fsf] æ5Æ df -a _] lrGx nfu]df Ps cÍ k|bfg ug]{, cGoyf z\"Go cÍ k|bfg ug{] . "]
[null,"df;' k;nsf] lgodg tyf Joj:yfkg ",36,2,"df;' k;nx?sf] Joj;fo btf{ u/L clen]v Jojl:yt u/L /fv]sf]","a",null,{"$f":"IF(I192=\"\",P3,IF(OR(P192=2,P193=2,P194=2,P195=2,P196=2),P2,IF(L192=5,2,IF(L192>=3,1,IF(M192>0,0,P1)))))","v":1},"jL/u+h pk–dxfgukflnsfdf df;' k;n bhf{ u/L clen]v /fVg] ul/Psf] 5 . \nbtf{ /x]sf] df;' k;n ;+Vof M cf=j= )&)÷)&!df !( / xfn;Dd yk ePsf ;d]t xfn df;' k;n ;+Vof #( ePsf] /]s8{af6 b]lvG5 . \nut cf=j= df btf{ df;' k;n ;+Vof M !(\ndf;' k;n ;DaGwL dfkb08 agfPsf] kfOPg . \ndf;' k;n lgDg ldltdf cg'udg ePsf] kfO{of] M\n!= @)&)÷^÷*,   @= @)&)÷^÷( #= @)&)÷*÷@#,  $= @)&)÷*÷@%, %= @)&!÷@÷@)\ndf;' k;n cg'udgdf ;+nUg kbflwsf/Lx? M– != jL/u+h pk–dxfgu/kflnsfsf vfB clws[t, @= lhNnf kz' ;]jf sfof{nosf k|ltlglw, #= lhNnf k|zf;g sfof{nosf k|ltlglw, $= afl0fHo sfof{nosf k|ltlglw, %= u'0f:t/ tyf gfd tf}n sfof{nosf k|ltlglw, ^= lhNnf k|x/L sfof{nosf k|ltlglw. &= pkef]Qmf d~rsf k|ltlglw .\ncg'udg k|ltj]bg k]z ePsf ldltx? \n!_ @)&)÷^÷*,   @_ @)&)÷^÷(  #_ @)&)÷*÷@#,  $_ @)&)÷*÷@%, %_ @)&!÷@÷@)\nk]z ePsf cg'udg k|ltj]bg g=kf= af]8{ a}7sdf 5nkmn ePsf] kfO{Pg . ","sfof{no clen]v",null,{"$f":"COUNTIF(F192:F196,\"a\")","v":3},{"$f":"COUNTIF(G192:G196,\"a\")","v":2},{"$f":"COUNTIF(F192,\"a\")","v":1},0,{"$f":"N192+O192","v":1},{"$f":"D192","v":2},{"$f":"H192","v":1}]
[null,null,null,null,"df;' k;n ;~rfng ug{ Go\"gtd dfkb08 tf]sL nfu\" u/]sf]",null,"a",null,null,null,null,null,null,0,1,1]
[null,null,null,null,"df;' k;nsf] Joj:yfkgdf lhNnf kz' ;]jf sfo{fno,pBf]u jfl0fHo ;+3 tyf pkef]Qmf ;+/If0f d~r;+u ;dGjo u/L lgoldt cg'udg u/]sf] ","a",null,null,null,null,null,null,null,1,0,1]
[null,null,null,null,"cg'udg k|ltj]bg gu/kflnsf ;dIf k]z u/]sf] ","a",null,null,null,null,null,null,null,1,0,1]
[null,null,null,null,"cg'udg k|ltj]bg pk/ gu/kflnsf af]8{df 5nkmn eO lg0f{o x'g] u/]sf]",null,"a",null,null,null,null,null,null,0,1,1]
[null,"dfkg tflnsfsf] ;j} sf]7fsf] æ5Æ df -a _] lrGx nfu]df b'O cÍ k|bfg ug{], sDLtdf s'g} tLg sf]7fsf] æ5Æ df -a _] lrGx nfu]df Ps cÍ k|bfg ug{], cGoyf z\"Go cÍ k|bfg ug{] ."]
[null,"hg:jf:Yo k|a4{g  ",37,2,"/fli6«o sfo{qmdsf cltl/Qm hg:jf:Yo kj4{g ;DaGwL yk sfo{qmd gu/kl/ifb\\\\jf6 :jLs[t u/fO ;~rfng u/]sf] ","a",null,{"$f":"IF(I198=\"\",P3,IF(OR(P198=2,P199=2,P200=2,P201=2),P2,IF(L198=4,2,IF(OR(L198=3,L198=2),1,IF(M198>0,0,P1)))))","v":1},"cf=j= @)&).&! df :jf:Yo jftfj/0f tyf ;/;kmfO{ gLlt kfl/t ul/Psf] .\npk dxfgu/kflnsfsf] j8f g+= !$, !& / !( df gu/ :jf:Yo s]Gb| ;+rflnt /x]sf] h;df g=kf= sf !! hgf sd{rf/L sfo{/t /x]sf] -c=x]=j=, c=g=ld=, sfof{no ;xof]uL ;d]t_\ncf}ifwL tyf c:ktfn vr{df )&).&! df ?=% nfv vr{ ePsf] / )&!.&@ df cg'dflgt Joo !% nfv /x]sf] .\n;/;kmfO{ hgr]tgfdf ?= @%,))) vr{ ePsf] .\nzf}rfno k|jw{gsf] nflu 3'DtL zf}rfno, 7fpF 7fpFdf zf}rfno / ;Mz'Ns kmf]x/ ;+sng ug]{ sfo{qmd eP klg v'Nnf lbzfd'Qm If]q s'g} j8f 3f]if0ff ePsf] 5}g .\nldlt @)&).^.* df lg/h ls/fgf kfg k;nM\n   @)&).^.(     hf]luGb| ls/fgf k;n\n   @)&).*.@#    ho dfF b'uf{ ls/fgf :6f];{\n   @)&).*.@%    v'Zj' ls/fgf\n   @)&!.@.@)    zld k|m]; xfp;\n   @)&!.@.@!    d's]z zfsfxf/L\n   @)&).^.*     an/fd ls/fgf\n   @)&).^.*     hubDjf ls/fgf\nk;nx?sf] cg'udg ePsf] . cg'udg ubf{ b]lvPsf sdL sdhf]/Lsf] xsdf s}lkmot v'nfO{  hfgsf/L lbOPsf] / sfo{jfxL :j?k ! k6snfO{ ;r]t u/fOPsf] / dfkb08 cg';f/ k;n ;+rfng ug{ lgb]{lzt ul/Psf] .\nkqklqsfdf :jf:Yo ;DjGwL hg]tgf ug]{ u/fpg] sfo{ Pkm Pd= af6 ;d]t k|rf/ k|;f/ ePsf] kfOG5 .","gu/ ljsf; of]hgf k'l:tsf / jflif{s k|ult k|ltj]bg . Jff]8{ a}7ssf] lg0f{o k'l:tsf . ",null,{"$f":"COUNTIF(F198:F201,\"a\")","v":3},{"$f":"COUNTIF(G198:G201,\"a\")","v":1},{"$f":"COUNTIF(F198,\"a\")","v":1},0,1,{"$f":"D198","v":2},{"$f":"H198","v":1}]
[null,null,null,null,"zf}rfno k|a4{g tyf v'Nnf lb;fd'Qm If]q sfo{qmd sDtLdf kRrL; k|ltzt j8fx?df ;~rfng u/]sf]",null,"a",null,null,null,null,null,null,0,1,1]
[null,null,null,null,";Dj4 ;/sf/L lgsfo, pkef]Qmf lxt ;+/If0f d~r tyf pBf]u afl0fHo ;+3 ;+u ;dGjo u/L pkef]Uo j:t'sf] j]rljvg ug]{ k;nx?sf] cg'udg u/]sf]","a",null,null,null,null,null,null,null,1,0,1]
[null,null,null,null,"cg'udg k|ltj]bg pk/ lgoldt ?kdf jf]8{ j}7sdf 5nkmn u/L clgoldt sfo{ ug]{ pk/ sf/jfxL tyf ;hfo u/]sf]","a",null,null,null,null,null,null,null,1,0,1]
[null,"dfkg tflnsfsf] ;a} sf]7fsf] æ5Æ df -a _] lrGx nfu]df b'O cÍ k|bfg ug{], s'g} b'O sf]7fsf] æ5Æ df -a _] lrGx nfu]df Ps cÍ k|bfg ug{], cGoyf z\"Go cÍ k|bfg ug{] ."]
[null,"cfsl:ds ;]jf / ljkb hf]lvd Joj:yfkg ",38,4,"ljkb\\sf If]qx?, hf]lvdsf] cj:yf, hf]lvd Go\"lgs/0fsf pkfox? tyf ;+:yfut k|jGw ;d]t pNn]lvt cfjlws ljkb\\ hf]lvd Joj:yfkg of]hgf (Disaster Risk Management Plan) kl/ifb\\jf6 :jLs[t ePsf] ","a",null,{"$f":"IF(I203=\"\",P3,IF(OR(P203=2,P204=2,P205=2,P206=2),P2,IF(L203=4,4,IF(L203=3,3,IF(L203=2,2,IF(M203>0,0,P1))))))","v":4},"jL/u+h pk–dxfgu/kflnsfdf cfjlws ljkt hf]lvd Joj:yfkg of]hgf :jLs[t ePsf] 5 .:jLs[t ljkt hf]lvd Joj:yfkg of]hgfn] lgDg If]qx? ;d]6]sf] kfO{of] . \n!= lztnx/ @= cfunfuL #= dxfdf/L $= ;k{ 8G;, %= af9L, ^= x'/L atf;, &= e'sDk, *= r6\\ofË\nljkt hf]lvd Joj:yfkg sfo{qmd :jLs[t ug]{ kl/ifbsf] lg0f{o ldlt @)&)÷(÷@( lg=g+= !!\naflif{s ljkt hf]lvd Joj:yfkg sfo{qmd :jLs[t u/L sfof{Gjogdf NofO{Psf] 5 . \njL/u+h g=kf=df jf?0f oGq @ j6f /x]sf 5g\\ . ;+rfngdf /x] klg lgs} k'/fgf b]lvG5g\\ . \nljkt hf]lvd Joj:yfkd sf]if vftf /x]sf] a}+s g]kfn /fi6« a}+s jL/u+h zfvf, vftf g+= !&)$&)@–))!–!@@–%@$ . hDdf u/]sf] /sd ?= !!&$(#*%÷– ut cf=j=df hDdf ul/Psf] /sd dWo] (!,(#,%#@ vr{ eO{ ?= @%,%%,*%@.%* afFsL /x]sf] vftfaf6 b]lvPsf] .  ","lakb hf]lvd Joj:yfkg of]hgf",null,{"$f":"COUNTIF(F203:F206,\"a\")","v":4},{"$f":"COUNTIF(G203:G206,\"a\")","v":0},{"$f":"COUNTIF(F203,\"a\")","v":1},0,1,{"$f":"D203","v":4},{"$f":"H203","v":4}]
[null,null,null,null,"cfjlws ljkb\\ hf]lvd Joj:yfkg of]hgfsf] cfwf/df jflif{s ljkb\\ hf]lvd Joj:yfkg sfo{qmd :jLs[t u/L sfof{Gjogdf NofPsf]  ","a",null,null,null,null,null,null,null,1,0,1]
[null,null,null,null,"jf?0foGq ;~rfng ePsf]","a",null,null,null,null,null,null,null,1,0,1]
[null,null,null,null,"ljkb\\ Joj:yfkg sf]if v8f u/L ;f] sf]ifdf /sd hDdf u/]sf]","a",null,null,null,null,null,null,null,1,0,1]
[null,"dfkg tflnsfsf] ;a} sf]7fsf] æ5Æ df -a _] lrGx nfu]df rf/ cÍ, s'g} ltg sf]7fsf] æ5Æ df  -a_] lrGx nfu]df tLg cÍ, s'g} b'O{ sf]7fsf] æ5Æ df  -a_] lrGx nfu]df b'O{ cÍ, cGoyf z\"Go cÍ k|bfg ug{] ."]
[null,"kl~hs/0f Joj:yfkg ",39,2,"JolQmut 36gf ;DaGwL kfFr j6} 36gfsf] btf{ /lhi6/ cBfjlws u/L clen]v /flvPsf] ",null,"a",{"$f":"IF(I208=\"\",P3,IF(OR(P208=2,P209=2,P210=2,P211=2),P2,IF(L208=4,2,IF(L208=3,1,IF(M208>0,0,P1)))))","v":0},"36gf btf{ x/]sf j8fdf g} x'g] Joj:yf ePsf]n] 36gfbtf{ /lhi6/ $ j6f 36gf btf{ /lhi6/ j8fdf g} /xg] u/]sf] / ;DaGw lj5]b /lhi6/ g=kf= g} /xg] Joj:yf ePsf] . ;a} j8faf6 k|fKt $ j6f 36gfbtf{sf] dfl;s ljj/0f g=kf= sfof{nodf k|fKt ePkl5 ;DaGw lj5]bsf] 36gf btf{ ;d]tsf] hf]8L % j6f 36gfbtf{sf] ljj/0f lh=lj=;=df k7fpg] ul/Psf] . ;a} j8fdf /x]sf $–$ j6f 36gfbtf{ /lhi6/ b'?:t /x]sf] a'lemof] . \n36gf btf{ ;\"rgf kmf/fdx? ;]jfu|fxLnfO{ lgz'Ns ?kdf pknAw u/fpg] Joj:yf ldnfO{Psf] . \n@)&)sf] JolQmut 36gf btf{sf] aflif{s k|ltj]bg lh=lj=;=df k7fPsf] ldlt M @)&!÷!÷%, r=g+= !)@&! sf] kqaf6 dfWod kq, a'em]sf] ekf{O . lh=lj=;=df k7fPsf] / sfof{nosf] /]s8{ cg';f/ @)&) ;fnsf] 36gf btf{ ;d'xut ;+Vof o; k|sf/ 5 . \n!= hGd btf{– %(^%. @= d[To' btf{ $$^. #= a;fO{ ;/fO{ -s_ cfPsf] – %!# uPsf] $*% \n$= ljjfx btf{ –(&# -%_ ;DaGw ljR5]b– 5}g \ns'n 36gf btf{ ;+Vof M *#*@\n@)&) ;fnsf] JolQmut 36gf btf{sf] aflif{s k|ltj]bg k|sflzt u/L ;fj{hlgs u/]sf] kfO{Pg . \nj]j;fO{6 dfkm{t\\ ;fj{hlgs ul/Psf] elgPsf] t/ ldlt k|fKt x'g g;s]sf] sf/0f 36\\gf btf{ ;fj{hlgs ePsf] eGg g;lsPsf] .","36gf btf{ clen]v / kqx?",null,{"$f":"COUNTIF(F208:F211,\"a\")","v":2},{"$f":"COUNTIF(G208:G211,\"a\")","v":2},{"$f":"COUNTIF(F208,\"a\")","v":0},1,1,{"$f":"D208","v":2},{"$f":"H208","v":0}]
[null,null,null,null,"kfFrj6} 36gfsf] nflu ;\"rgf kmf/dx? pknAw u/fOPsf]","a",null,null,null,null,null,null,null,1,0,1]
[null,null,null,null,"JolQmut 36gf btf{sf] jflif{s k|ltj]bg a}zfv d;fGtleq} ;DalGwt lhlj;sf] sfof{nodf k7fPsf] ","a",null,null,null,null,null,null,null,1,0,1]
[null,null,null,null,"JolQmut 36gf btf{sf] jflif{s ljj/0f k|sfzg u/L cfiff9 d;fGtleq} ;fj{hlgs u/]sf]",null,"a",null,null,null,null,null,null,0,1,1]
[null,"dfkg tflnsfsf] ;a} sf]7fsf] æ5Æ df -a _] lrGx nfu]df b'O cÍ k|bfg ug{], s'g} tLg sf]7fsf] æ5Æ df -a _] lrGx nfu]df Ps cÍ k|bfg ug{], cGoyf z\"Go cÍ k|bfg ug{] ."]
[null,"ejg lgdf{0f dfkb08 / /fli6«o ejg ;+lxtf, @)^) sfof{Gjog ",40,2,"ejg lgdf{0f cg'dltsf nflu ejg lgodfjnL, @)^^ sf] cg';\"rL ! adf]lhd :6«Sr/n l8hfOg ;lxtsf] b/vf:t kmf/fd lng] u/]sf] ","a",null,{"$f":"IF(I213=\"\",P3,IF(OR(P213=2,P214=2,P215=2,P216=2,P217=2),P2,IF(L213=5,2,IF(L213>=3,1,IF(M213>0,0,P1)))))","v":1},"jL/u+h pk–dxfgu/kflnsfdf ejg lgdf{0f cg'dltsf nfuL :6«Sr/n l8hfO{g ;lxtsf] b/vf:t lbg] Joj:yf ePsf] 5 . \ngu/ If]qdf x'g] ejg lgdf{0f sfo{sf] nfuL ejg :jLs[t gS;f / ejg ;+lxtf cg';f/ eP gePsf] ;DaGwdf :ynut lgl/If0f ug]{ ul/Psf] 5 . ;dfGotof # r/0fdf lgl/If0f ug]{ ul/Psf] . k|yd r/0fdf ;fdfGo lgl/If0f u/L yk ejg lgdf{0f ug{ :jLs[t lbg] ul/Psf] . ejg lgl/If0fsf] qmddf lgdf{0fdf clgoldttf u/]sf] kfO{Pdf gS;f l8hfO{g cg';f/ ePsf] gkfO{Pdf ejg eTsfO{g] / ;hl/jfgf tf]sL c;'n pk/ eP kl5 dfq yk lgdf{0f ug{ cg'dlt lbg] Joj:yf ePsf] . # r/0fdf lgl/If0f u/L l7s 7x/] /fli6«o ejg ;+lxtf cg';f/ gS;f kf; u/L k|df0f kq lbg] Joj:yf ePsf] . \n;/sf/L ÷;fj{hlgs ejgsf] gS;f kf; ug]{ u/]sf] / gS;f kf; gu/fPsf ;/sf/L÷;fj{hlgs ejgsf] gS;f kf; u/fpg sf/jfxL e} /x]sf]5 . \n;/sf/L÷;fj{hlgs ejgsf] gofF gS;f kf; ubf{ /fli6«o ejg ;+lxtf @)^) cg';f/ ckf+u d}qL eP dfq gS;f kf; ug]{ Joj:yf ul/Psf] .\nejg lgdf{0f ;DaGwdf ejg tyf zx/L ljsf; ljefuaf6 dfq hgr]tfd'ns sfo{qmd ;+rfng ePsf] t/ jL=p=d=g=kf=n] e'sDk lb;df dfq sfo{qmd ug]{ afx]s cGo hgr]tgfd'ns sfo{qmd ;+rfng gu/]sf] hfgsf/L k|fKt ePsf] . ","ejg lgdf{0f dfkb08 tyf 3/gS;f kf; clen]v",null,{"$f":"COUNTIF(F213:F217,\"a\")","v":4},{"$f":"COUNTIF(G213:G217,\"a\")","v":1},{"$f":"COUNTIF(F213,\"a\")","v":1},0,1,{"$f":"D213","v":2},{"$f":"H213","v":1}]
[null,null,null,null,"gu/ If]qdf x'g] ejg lgdf{0f sfo{ :jLs[t gS;f / /fli6«o ejg ;+lxtf, @)^) adf]lhd eP gePsf] :ynut lg/LIf0f u/L clgoldt lgdf{0f sfo{ pk/ sf/jfxLsf] Joj:yf u/]sf]","a",null,null,null,null,null,null,null,1,0,1]
[null,null,null,null,"/fli6«o ejg ;+lxtf cg';f/ gS;f kf; ug]{ Joj:yf u/]sf]","a",null,null,null,null,null,null,null,1,0,1]
[null,null,null,null,";/sf/L÷;fj{hlgs ejgsf] gS;f ckfË d}qL eP dfq kf; ug]{ Joj:yf u/]sf]] ","a",null,null,null,null,null,null,null,1,0,1]
[null,null,null,null,"e\"slDko hf]lvd Go\"lgs/0f, k\"j{tof/L / e\"sDk k|lt/f]wL ejg lgdf{0f ;DaGwL k|lzIf0f tyf hgr]tgf sfo{qmdx? ;~rfng u/]sf]",null,"a",null,null,null,null,null,null,0,1,1]
[null,"dfkg tflnsfsf] ;j} sf]7fsf] æ5Æ df -a _] lrGx nfu]df b'O cÍ k|bfg ug{], s'g} ltg sf]7fsf] æ5Æ df -a _] 7Ls lrGx nfu]df Ps cÍ k|bfg ug{], cGoyf z\"Go cÍ k|bfg ug{] ."]
["zx/L cfwf/e\"t ;]jf Joj:yfkg sfo{If]qsf] hDdf",null,null,null,null,null,null,{"$f":"SUM(H172:H218)","v":9},{"$f":"IF(I172=\"\",P3,IF(H219>8,Q1,Q2))","v":"pQm sfo{If]qdf ;kmn ePsf]"}]
[]
[null,null,null,null,"s'n hDdf",null,null,{"$f":"H52+H100+H144+H169+H219","v":57}]
[null,null,null,null,";kmn sfo{If]qsf] ;+Vof",null,null,{"$f":"COUNTIF(N222:N226,1)","v":5},null,null,null,null,null,{"$f":"IF(H52>7,1,0)","v":1}]
[null,null,null,null,"c;kmn sfo{If]qsf] ;+Vof",null,null,{"$f":"COUNTIF(N222:N226,0)","v":0},null,null,null,null,null,{"$f":"IF(H100>10,1,0)","v":1}]
[null,null,null,null,null,null,null,null,null,null,null,null,null,{"$f":"IF(H144>7,1,0)","v":1}]
[null,"ljQLo Aoj:yfkg lj1 M",null,null,{"$f":"'MC Sheet'!C68","v":""},":yfgLo zf;g lj1 M",null,null,{"$f":"'MC Sheet'!G68","v":""},null,null,null,null,{"$f":"IF(H169>3,1,0)","v":1}]
[null,"gfd M",null,null,{"$f":"'MC Sheet'!C69","v":""},"gfd M",null,null,{"$f":"'MC Sheet'!G69","v":""},null,null,null,null,{"$f":"IF(H219>8,1,0)","v":1}]
[null,";Dks{ g+M",null,null,{"$f":"'MC Sheet'!C70","v":""},";Dks{ g+M",null,null,{"$f":"'MC Sheet'!G70","v":""}]
[null,"ldltM",null,null,{"$f":"'MC Sheet'!C71","v":""},"ldlt M",null,null,{"$f":"'MC Sheet'!G71","v":""}]

{"sheet":"Summary Sheet","index":2,"n_rows":77,"n_cols":14,"rows_kept":77,"cut":false,"hidden":false,"merged":[[11,2,11,3],[12,2,12,3],[51,6,55,6],[56,6,63,6],[0,0,0,6],[1,0,1,6],[3,2,3,3],[4,2,4,3],[5,2,5,3],[13,2,13,3],[43,0,50,1],[6,2,6,3],[7,2,7,3],[8,2,8,3],[9,2,9,3],[10,2,10,3],[20,0,20,6],[21,0,21,6],[16,1,16,3],[17,1,17,3],[16,4,16,6],[17,4,17,6],[76,0,76,2],[51,0,55,1],[56,0,63,1],[73,0,73,2],[74,0,74,2],[75,0,75,2],[23,0,23,1],[64,0,64,3],[70,0,70,2],[71,0,71,2],[72,0,72,2],[67,0,67,6],[68,0,68,6],[32,0,42,1],[32,6,42,6],[43,6,50,6],[24,0,31,1],[24,6,31,6]]}
[{"$f":"'MC Sheet'!A1","v":"lj/u~h pk dxfgu/kflnsfsf] sfof{no , "}]
["gu/kflnsfsf] sfof{nosf] cf=j= @)&).&! sf] Go\"gtd\\ zt{ dfkgsf] glthf"]
[]
[null,"qm=;+",";\"rs",null,"Go\"gtd\\ zt{ k'/f ","s}lkmot"]
[null,1,{"$f":"'MC Sheet'!A7","v":"jflif{s sfo{qmd tyf ah]6 :jLs[lt "},null,{"$f":"'MC Sheet'!F7","v":"ePsf]"}]
[null,2,{"$f":"'MC Sheet'!A11","v":"jflif{s k|ult ;dLIff "},null,{"$f":"'MC Sheet'!F11","v":"ePsf]"}]
[null,3,{"$f":"'MC Sheet'!A16","v":"rf}dfl;s tyf jflif{s k|ult k|ltj]bg"},null,{"$f":"'MC Sheet'!F16","v":"ePsf]"}]
[null,4,"gu/kflnsf sf]ifsf] vftf ;~rfng",null,{"$f":"'MC Sheet'!F20","v":"ePsf]"}]
[null,5,{"$f":"'MC Sheet'!A26","v":"s/ tyf cfo;|f]tsf] clen]v   "},null,{"$f":"'MC Sheet'!F26","v":"ePsf]"}]
[null,6,{"$f":"'MC Sheet'!A30","v":"n]vfk/LIf0f tyf a]?h' km5\\of}{6 "},null,{"$f":"'MC Sheet'!F30","v":"ePsf]"}]
[null,7,{"$f":"'MC Sheet'!A35","v":";DklQ Joj:yfkg"},null,{"$f":"'MC Sheet'!F35","v":"ePsf]"}]
[null,8,{"$f":"'MC Sheet'!A44","v":"ejg lgdf{0f tyf gS;f kf; "},null,{"$f":"'MC Sheet'!F44","v":"ePsf]"}]
[null,9,{"$f":"'MC Sheet'!A47","v":"cfo–Joo ljj/0f / /fh:jsf b/x? ;fj{hlgsLs/0f"},null,{"$f":"'MC Sheet'!F47","v":"ePsf]"}]
[null,10,{"$f":"'MC Sheet'!A50","v":"sd{rf/L Joj:yfkg"},null,{"$f":"'MC Sheet'!F50","v":"ePsf]"}]
[]
[]
[null,"k'/f ePsf Go\"gtd\\ zt{sf] ;+Vof",null,null,"k'/f gePsf Go\"gtd\\ zt{sf] ;+Vof"]
[null,{"$f":"COUNTIF(E5:E14,\"ePsf]\")","v":10},null,null,{"$f":"COUNTIF(E5:E14,\"gePsf]\")","v":0}]
[]
[]
[{"$f":"A1","v":"lj/u~h pk dxfgu/kflnsfsf] sfof{no , "}]
["gu/kflnsfsf] sfof{nosf] cf=j= @)&).&! sf] sfo{ ;Dkfbg dfkgsf] glthf"]
[]
[";d\"x",null,";\"rs g+=",";\"rssf] gfd","k'0ff{s","k|fKtf+s","s\"n c+s"]
["!=:yfgLo zf;g",null,1,{"$f":"'PM Sheet'!B7","v":";xeflutfTds gu/ of]hgf th'{df  "},{"$f":"'PM Sheet'!D7","v":4},{"$f":"'PM Sheet'!H7","v":4},{"$f":"SUM(F25:F32)","v":14},null,null,null,{"$f":"'PM Sheet'!Q7","v":4},{"$f":"'PM Sheet'!R7","v":4},{"$f":"E25-K25","v":0},{"$f":"F25-L25","v":0}]
[null,null,2,{"$f":"'PM Sheet'!B13","v":"nlIft ;d\"x ljsf; sfo{qmddf ljlgof]hg "},{"$f":"'PM Sheet'!D13","v":2},{"$f":"'PM Sheet'!H13","v":2},null,null,null,null,{"$f":"'PM Sheet'!Q13","v":2},{"$f":"'PM Sheet'!R13","v":2},0,0]
[null,null,3,{"$f":"'PM Sheet'!B17","v":"nlIft ;d\"x ljsf; sfo{qmddf vr{ "},{"$f":"'PM Sheet'!D17","v":2},{"$f":"'PM Sheet'!H17","v":1},null,null,null,null,{"$f":"'PM Sheet'!Q17","v":2},{"$f":"'PM Sheet'!R17","v":1},0,0]
[null,null,4,{"$f":"'PM Sheet'!B20","v":"afn ljsf; tyf ;+/If0f "},{"$f":"'PM Sheet'!D20","v":2},{"$f":"'PM Sheet'!H20","v":1},null,null,null,null,{"$f":"'PM Sheet'!Q20","v":2},{"$f":"'PM Sheet'!R20","v":1},0,0]
[null,null,5,{"$f":"'PM Sheet'!B25","v":";\"rgf Joj:yfkg "},{"$f":"'PM Sheet'!D25","v":4},{"$f":"'PM Sheet'!H25","v":3},null,null,null,null,{"$f":"'PM Sheet'!Q25","v":4},{"$f":"'PM Sheet'!R25","v":3},0,0]
[null,null,6,{"$f":"'PM Sheet'!B32","v":";fdflhs ;'/Iff sfo{qmd sfof{Gjog"},{"$f":"'PM Sheet'!D32","v":2},{"$f":"'PM Sheet'!H32","v":1},null,null,null,null,{"$f":"'PM Sheet'!Q32","v":2},{"$f":"'PM Sheet'!R32","v":1},0,0]
[null,null,7,{"$f":"'PM Sheet'!B44","v":"dfl;s tyf jflif{s ef}lts Pjd ljQLo k|ult ljj/0f"},{"$f":"'PM Sheet'!D44","v":2},{"$f":"'PM Sheet'!H44","v":2},null,null,null,null,{"$f":"'PM Sheet'!Q44","v":2},{"$f":"'PM Sheet'!R44","v":2},0,0]
[null,null,8,{"$f":"'PM Sheet'!B47","v":";fj{hlgs ;'g'jfO"},{"$f":"'PM Sheet'!D47","v":2},{"$f":"'PM Sheet'!H47","v":0},null,null,null,null,{"$f":"'PM Sheet'!Q47","v":2},{"$f":"'PM Sheet'!R47","v":0},0,0]
["@=ljQLo ;|f]t kl/rfng tyf Joj:yfkg",null,9,{"$f":"'PM Sheet'!B55","v":"/fh:j ;DefJotf cWoog / k|If]k0f  "},{"$f":"'PM Sheet'!D55","v":2},{"$f":"'PM Sheet'!H55","v":2},{"$f":"SUM(F33:F43)","v":16},null,null,null,{"$f":"'PM Sheet'!Q55","v":2},{"$f":"'PM Sheet'!R55","v":2},0,0]
[null,null,10,{"$f":"'PM Sheet'!B60","v":"cfo Joosf] oyfy{tf "},{"$f":"'PM Sheet'!D60","v":4},{"$f":"'PM Sheet'!H60","v":0},{"$f":"SUM(F34:F44)","v":14},null,null,null,{"$f":"'PM Sheet'!Q60","v":4},{"$f":"'PM Sheet'!R60","v":0},0,0]
[null,null,11,{"$f":"'PM Sheet'!B64","v":"/fh:j k|zf;gsf] Joj:yfkg"},{"$f":"'PM Sheet'!D64","v":4},{"$f":"'PM Sheet'!H64","v":4},null,null,null,null,{"$f":"'PM Sheet'!Q64","v":4},{"$f":"'PM Sheet'!R64","v":4},0,0]
[null,null,12,{"$f":"'PM Sheet'!B70","v":"Plss[t ;Dklt s/ "},{"$f":"'PM Sheet'!D70","v":2},{"$f":"'PM Sheet'!H70","v":0},null,null,null,null,{"$f":"'PM Sheet'!Q70","v":2},{"$f":"'PM Sheet'!R70","v":0},0,0]
[null,null,13,{"$f":"'PM Sheet'!B73","v":";fj{hlgs lghL If]q ;fem]bf/L "},{"$f":"'PM Sheet'!D73","v":2},{"$f":"'PM Sheet'!H73","v":2},null,null,null,null,{"$f":"'PM Sheet'!Q73","v":2},{"$f":"'PM Sheet'!R73","v":2},0,0]
[null,null,14,{"$f":"'PM Sheet'!B77","v":"k|zf;lgs vr{sf] ;Ldf kfngf"},{"$f":"'PM Sheet'!D77","v":2},{"$f":"'PM Sheet'!H77","v":0},null,null,null,null,{"$f":"'PM Sheet'!Q77","v":2},{"$f":"'PM Sheet'!R77","v":0},0,0]
[null,null,15,{"$f":"'PM Sheet'!B79","v":"k|f]b\\efjL  n]vf k|0ffnL "},{"$f":"'PM Sheet'!D79","v":2},{"$f":"'PM Sheet'!H79","v":0},null,null,null,null,{"$f":"'PM Sheet'!Q79","v":2},{"$f":"'PM Sheet'!R79","v":0},0,0]
[null,null,16,{"$f":"'PM Sheet'!B83","v":"w/f}6L vftfsf] cj:yf"},{"$f":"'PM Sheet'!D83","v":2},{"$f":"'PM Sheet'!H83","v":2},null,null,null,null,{"$f":"'PM Sheet'!Q83","v":2},{"$f":"'PM Sheet'!R83","v":2},0,0]
[null,null,17,{"$f":"'PM Sheet'!B88","v":"cfly{s sf/f]jf/sf] u'0f:t/"},{"$f":"'PM Sheet'!D88","v":2},{"$f":"'PM Sheet'!H88","v":0},null,null,null,null,{"$f":"'PM Sheet'!Q88","v":2},{"$f":"'PM Sheet'!R88","v":0},0,0]
[null,null,18,{"$f":"'PM Sheet'!B92","v":"cfly{s ;xfotfsf] ;Ldf kfngf"},{"$f":"'PM Sheet'!D92","v":2},{"$f":"'PM Sheet'!H92","v":2},null,null,null,null,{"$f":"'PM Sheet'!Q92","v":2},{"$f":"'PM Sheet'!R92","v":2},0,0]
[null,null,19,{"$f":"'PM Sheet'!B96","v":":yfgLo ;|f]t kl/rfng"},{"$f":"'PM Sheet'!D96","v":4},{"$f":"'PM Sheet'!H96","v":4},null,null,null,null,{"$f":"'PM Sheet'!Q96","v":4},{"$f":"'PM Sheet'!R96","v":4},0,0]
["#=of]hgf tyf sfo{qmd Joj:yfkg",null,20,{"$f":"'PM Sheet'!B103","v":"cfjlws gu/ of]hgf "},{"$f":"'PM Sheet'!D103","v":2},{"$f":"'PM Sheet'!H103","v":0},{"$f":"SUM(F44:F51)","v":13},null,null,null,{"$f":"'PM Sheet'!Q103","v":2},{"$f":"'PM Sheet'!R103","v":0},0,0]
[null,null,21,{"$f":"'PM Sheet'!B108","v":";DefJotf cWoog "},{"$f":"'PM Sheet'!D108","v":2},{"$f":"'PM Sheet'!H108","v":2},{"$f":"SUM(F45:F51)","v":13},null,null,null,{"$f":"'PM Sheet'!Q108","v":2},{"$f":"'PM Sheet'!R108","v":2},0,0]
[null,null,22,{"$f":"'PM Sheet'!B112","v":"vl/b Joj:yfkg "},{"$f":"'PM Sheet'!D112","v":4},{"$f":"'PM Sheet'!H112","v":3},null,null,null,null,{"$f":"'PM Sheet'!Q112","v":4},{"$f":"'PM Sheet'!R112","v":3},0,0]
[null,null,23,{"$f":"'PM Sheet'!B118","v":"hfFrkf; tyf km/kmf/s"},{"$f":"'PM Sheet'!D118","v":2},{"$f":"'PM Sheet'!H118","v":2},null,null,null,null,{"$f":"'PM Sheet'!Q118","v":2},{"$f":"'PM Sheet'!R118","v":2},0,0]
[null,null,24,{"$f":"'PM Sheet'!B123","v":"dd{t ;+ef/ Joj:yf "},{"$f":"'PM Sheet'!D123","v":4},{"$f":"'PM Sheet'!H123","v":3},null,null,null,null,{"$f":"'PM Sheet'!Q123","v":4},{"$f":"'PM Sheet'!R123","v":3},0,0]
[null,null,25,{"$f":"'PM Sheet'!B129","v":"cfof]hgf ;~rfngdf kf/blz{tf "},{"$f":"'PM Sheet'!D129","v":2},{"$f":"'PM Sheet'!H129","v":2},null,null,null,null,{"$f":"'PM Sheet'!Q129","v":2},{"$f":"'PM Sheet'!R129","v":2},0,0]
[null,null,26,{"$f":"'PM Sheet'!B134","v":"cg'udg tyf d\"NofÍg"},{"$f":"'PM Sheet'!D134","v":2},{"$f":"'PM Sheet'!H134","v":0},null,null,null,null,{"$f":"'PM Sheet'!Q134","v":2},{"$f":"'PM Sheet'!R134","v":0},0,0]
[null,null,27,{"$f":"'PM Sheet'!B139","v":";fdflhs k/LIf0f "},{"$f":"'PM Sheet'!D139","v":2},{"$f":"'PM Sheet'!H139","v":1},null,null,null,null,{"$f":"'PM Sheet'!Q139","v":2},{"$f":"'PM Sheet'!R139","v":1},0,0]
["$=;+u7g tyf hgzlQm ljsf; ",null,28,{"$f":"'PM Sheet'!B147","v":"sd{rf/Lsf] sfo{ ljj/0f tyf dfl;s a}7s "},{"$f":"'PM Sheet'!D147","v":2},{"$f":"'PM Sheet'!H147","v":0},{"$f":"SUM(F52:F56)","v":5},null,null,null,{"$f":"'PM Sheet'!Q147","v":2},{"$f":"'PM Sheet'!R147","v":0},0,0]
[null,null,29,{"$f":"'PM Sheet'!B153","v":";]jf k|jfx Joj:yfkg "},{"$f":"'PM Sheet'!D153","v":2},{"$f":"'PM Sheet'!H153","v":2},null,null,null,null,{"$f":"'PM Sheet'!Q153","v":2},{"$f":"'PM Sheet'!R153","v":2},0,0]
[null,null,30,{"$f":"'PM Sheet'!B157","v":"sd{rf/L sNof0f sf]if "},{"$f":"'PM Sheet'!D157","v":2},{"$f":"'PM Sheet'!H157","v":2},null,null,null,null,{"$f":"'PM Sheet'!Q157","v":2},{"$f":"'PM Sheet'!R157","v":2},0,0]
[null,null,31,{"$f":"'PM Sheet'!B160","v":";]jf s/f/"},{"$f":"'PM Sheet'!D160","v":2},{"$f":"'PM Sheet'!H160","v":0},null,null,null,null,{"$f":"'PM Sheet'!Q160","v":2},{"$f":"'PM Sheet'!R160","v":0},0,0]
[null,null,32,{"$f":"'PM Sheet'!B165","v":"cfrf/ ;+lxtf tyf ;DklQ ljj/0f "},{"$f":"'PM Sheet'!D165","v":2},{"$f":"'PM Sheet'!H165","v":1},null,null,null,null,{"$f":"'PM Sheet'!Q165","v":2},{"$f":"'PM Sheet'!R165","v":1},0,0]
["%=zx/L cfwf/e't ;]jf Joj:yfkg ",null,33,{"$f":"'PM Sheet'!B172","v":";/;kmfO{ tyf kmf]x/ Joj:yfkg "},{"$f":"'PM Sheet'!D172","v":4},{"$f":"'PM Sheet'!H172","v":0},{"$f":"SUM(F57:F64)","v":9},null,null,null,{"$f":"'PM Sheet'!Q172","v":4},{"$f":"'PM Sheet'!R172","v":0},0,0]
[null,null,34,{"$f":"'PM Sheet'!B180","v":"jftfj/0f Joj:yfkg"},{"$f":"'PM Sheet'!D180","v":4},{"$f":"'PM Sheet'!H180","v":0},{"$f":"SUM(F58:F64)","v":9},null,null,null,{"$f":"'PM Sheet'!Q180","v":4},{"$f":"'PM Sheet'!R180","v":0},0,0]
[null,null,35,{"$f":"'PM Sheet'!B188","v":";jf/L ;fwg kfls{Ë Joj:yfkg "},{"$f":"'PM Sheet'!D188","v":2},{"$f":"'PM Sheet'!H188","v":2},null,null,null,null,{"$f":"'PM Sheet'!Q188","v":2},{"$f":"'PM Sheet'!R188","v":2},0,0]
[null,null,36,{"$f":"'PM Sheet'!B192","v":"df;' k;nsf] lgodg tyf Joj:yfkg "},{"$f":"'PM Sheet'!D192","v":2},{"$f":"'PM Sheet'!H192","v":1},null,null,null,null,{"$f":"'PM Sheet'!Q192","v":2},{"$f":"'PM Sheet'!R192","v":1},0,0]
[null,null,37,{"$f":"'PM Sheet'!B198","v":"hg:jf:Yo k|a4{g  "},{"$f":"'PM Sheet'!D198","v":2},{"$f":"'PM Sheet'!H198","v":1},null,null,null,null,{"$f":"'PM Sheet'!Q198","v":2},{"$f":"'PM Sheet'!R198","v":1},0,0]
[null,null,38,{"$f":"'PM Sheet'!B203","v":"cfsl:ds ;]jf / ljkb hf]lvd Joj:yfkg "},{"$f":"'PM Sheet'!D203","v":4},{"$f":"'PM Sheet'!H203","v":4},null,null,null,null,{"$f":"'PM Sheet'!Q203","v":4},{"$f":"'PM Sheet'!R203","v":4},0,0]
[null,null,39,{"$f":"'PM Sheet'!B208","v":"kl~hs/0f Joj:yfkg "},{"$f":"'PM Sheet'!D208","v":2},{"$f":"'PM Sheet'!H208","v":0},null,null,null,null,{"$f":"'PM Sheet'!Q208","v":2},{"$f":"'PM Sheet'!R208","v":0},0,0]
[null,null,40,{"$f":"'PM Sheet'!B213","v":"ejg lgdf{0f dfkb08 / /fli6«o ejg ;+lxtf, @)^) sfof{Gjog "},{"$f":"'PM Sheet'!D213","v":2},{"$f":"'PM Sheet'!H213","v":1},null,null,null,null,{"$f":"'PM Sheet'!Q213","v":2},{"$f":"'PM Sheet'!R213","v":1},0,0]
["hDdf",null,null,null,{"$f":"SUM(E25:E64)","v":100},{"$f":"SUM(F25:F64)","v":57},{"$f":"IF(AND(E65=K65,F65=L65),\"a\",\"r\")","v":"a"},null,null,null,{"$f":"SUM(K25:K64)","v":100},{"$f":"SUM(L25:L64)","v":57},0,0]
[]
[]
[{"$f":"A1","v":"lj/u~h pk dxfgu/kflnsfsf] sfof{no , "}]
["gu/kflnsfsf] sfof{nosf] cf=j= @)&).&! sf] sfo{If]qut  glthf"]
[]
["sfo{;Dkfbg dfkg÷If]q",null,null,";\"rs ;+Vof","clwstd c+s","k|fKtf+s","k|ltzt"]
[{"$f":"A25","v":"!=:yfgLo zf;g"},{"$f":"A25","v":"!=:yfgLo zf;g"},null,8,20,{"$f":"G25","v":14},{"$f":"F72/F77*100","v":24.561403508771928}]
[{"$f":"A33","v":"@=ljQLo ;|f]t kl/rfng tyf Joj:yfkg"},"ljlQo Aoj:yfkg",null,11,28,{"$f":"G33","v":16},{"$f":"F73/F77*100","v":28.07017543859649}]
[{"$f":"A44","v":"#=of]hgf tyf sfo{qmd Joj:yfkg"},"of]hgf tyf sfo{qmd Aoj:yfkg",null,8,20,{"$f":"G44","v":13},{"$f":"F74/F77*100","v":22.807017543859647}]
[{"$f":"A52","v":"$=;+u7g tyf hgzlQm ljsf; "},";+u7g tyf hgzlQm ljsf;",null,5,10,{"$f":"G52","v":5},{"$f":"F75/F77*100","v":8.7719298245614024}]
[{"$f":"A57","v":"%=zx/L cfwf/e't ;]jf Joj:yfkg "},"zx/L cfwf/e\"t ;]jf Aoj:yfkg",null,8,22,{"$f":"G57","v":9},{"$f":"F76/F77*100","v":15.789473684210526}]
["hDdf",null,null,{"$f":"SUM(D72:D76)","v":40},{"$f":"SUM(E72:E76)","v":100},{"$f":"SUM(F72:F76)","v":57}]